Workbook

Sheet Dashboard
B2: GLOBAL CLIMATESCOPE INDEX 2015
B3: INSTRUCTIONS
B4: Climatescope is a comprehensive index and report assessing the environment for low-carbon investment in 80 countries and regions in Africa, Asia and Latin America and the Caribbean, developed by the Multilateral
B5: Investment Fund (part of the Inter-American Development Bank), the UK Department for International Development, the US Agency for International Development and Bloomberg New Energy Finance.
B6: TAB CONTENT
B7: ="Climatescope scores countries on a 0 to "&dbl_ScoreMax&" scale and is composed of four parameters (see list below) - each of which has a unique weight to the overall final score." -> Climatescope scores countries on a 0 to 5 scale and is composed of four parameters (see list below) - each of which has a unique weight to the overall final score.
B8: ="The maximum attainable score is "& dbl_ScoreMax& " given the total weight of all parameters and/or categories do not exceed 100%." -> The maximum attainable score is 5 given the total weight of all parameters and/or categories do not exceed 100%.
B9: 1) Enabling Framework (40%)
B10: 2) Clean Energy Investment & Climate Financing (30%)
B11: 3) Low-Carbon Business & Clean Energy Value Chains (15%)
B12: 4) Greenhouse Gas Management Activities (15%)
B13: INSTRUCTIONS
B14: The Climatescope tool allows users to fine tune the methodology for parameter weights to fit their preferences. To customise parameter weighting scenarios...
B15: 1) Choose between global and regional results, Indian states, Chinese provinces and off-grid focus countries in the drop-down menu (Cell E21).
B16: 2) Choose pre-selected scenarios to analyse countries’ performance under a specific parameter. Country rankings will automatically reshuffle to reflect the results of your personalised Climatescope index.
B17: 3) To assign custom weights, choose the option 'Custom' in the drop-down menu and type in your own weighting assumptions. Click on 'Calculate Scores' to see the changes in the results.
B18: 4) To see how countries performed in each of the Climatescope’s 53 indicators click on 'View Country Profile'. This button will take you to a new tab 'Country', which lists all Climatescope’s indicators, as well as their respective weights.
B19: FOR QUESTIONS OR FEEDBACK PLEASE EMAIL CLIMATESCOPE@BLOOMBERG.NET
B21: REGION | E21: Global | O21: SCORE RANGES
B22: PARAMETER WEIGHTING SCENARIO | E22: Defaults | O22: 4.01 to 5.00
B23: I. Enabling Framework | E23: 0.4 | O23: 3.01 to 4.00
B24: II. Clean Energy Investment & Climate Financing | E24: 0.3 | O24: 2.01 to 3.01
B25: III. Low Carbon Value Chain | E25: 0.15 | O25: 1.01 to 2.00
B26: IV. Greenhouse Gas Management Activities | E26: 0.15 | O26: 0.00 to 1.00
E27: =dbl_DBWeightP1+dbl_DBWeightP2+dbl_DBWeightP3+dbl_DBWeightP4 -> 1
B32: RANK | C32: REGION | D32: COUNTRY | E32: SCORE
B33: =IF(E33="", "", IFERROR(RANK(E33, $E$33:$E$92), "")) -> 1 | C33: =IFERROR(INDEX(Indicator!$H$12:$H$91, MATCH(D33, Indicator!$I$12:$I$91, 0), 1), "") -> Asia | D33: China | E33: 2.292071786
B34: 2 | C34: =IFERROR(INDEX(Indicator!$H$12:$H$91, MATCH(D34, Indicator!$I$12:$I$91, 0), 1), "") -> LAC | D34: Brazil | E34: 2.119753608
B35: 3 | C35: =IFERROR(INDEX(Indicator!$H$12:$H$91, MATCH(D35, Indicator!$I$12:$I$91, 0), 1), "") -> LAC | D35: Chile | E35: 1.967272254
B36: 4 | C36: =IFERROR(INDEX(Indicator!$H$12:$H$91, MATCH(D36, Indicator!$I$12:$I$91, 0), 1), "") -> Africa | D36: South Africa | E36: 1.907670293
B37: 5 | C37: =IFERROR(INDEX(Indicator!$H$12:$H$91, MATCH(D37, Indicator!$I$12:$I$91, 0), 1), "") -> Asia | D37: India | E37: 1.808747545
B38: 6 | C38: =IFERROR(INDEX(Indicator!$H$12:$H$91, MATCH(D38, Indicator!$I$12:$I$91, 0), 1), "") -> Africa | D38: Kenya | E38: 1.743313503
B39: 7 | C39: =IFERROR(INDEX(Indicator!$H$12:$H$91, MATCH(D39, Indicator!$I$12:$I$91, 0), 1), "") -> LAC | D39: Mexico | E39: 1.72359906
B40: 8 | C40: =IFERROR(INDEX(Indicator!$H$12:$H$91, MATCH(D40, Indicator!$I$12:$I$91, 0), 1), "") -> LAC | D40: Uruguay | E40: 1.688017665
B41: 9 | C41: =IFERROR(INDEX(Indicator!$H$12:$H$91, MATCH(D41, Indicator!$I$12:$I$91, 0), 1), "") -> Africa | D41: Uganda | E41: 1.681500976
B42: 10 | C42: =IFERROR(INDEX(Indicator!$H$12:$H$91, MATCH(D42, Indicator!$I$12:$I$91, 0), 1), "") -> Asia | D42: Nepal | E42: 1.62896797
B43: 11 | C43: =IFERROR(INDEX(Indicator!$H$12:$H$91, MATCH(D43, Indicator!$I$12:$I$91, 0), 1), "") -> Asia | D43: Indonesia | E43: 1.614388037
B44: 12 | C44: =IFERROR(INDEX(Indicator!$H$12:$H$91, MATCH(D44, Indicator!$I$12:$I$91, 0), 1), "") -> Africa | D44: Nigeria | E44: 1.577621528
B45: 13 | C45: =IFERROR(INDEX(Indicator!$H$12:$H$91, MATCH(D45, Indicator!$I$12:$I$91, 0), 1), "") -> Asia | D45: Pakistan | E45: 1.52959984
B46: 14 | C46: =IFERROR(INDEX(Indicator!$H$12:$H$91, MATCH(D46, Indicator!$I$12:$I$91, 0), 1), "") -> LAC | D46: Honduras | E46: 1.499036806
B47: 15 | C47: =IFERROR(INDEX(Indicator!$H$12:$H$91, MATCH(D47, Indicator!$I$12:$I$91, 0), 1), "") -> LAC | D47: Costa Rica | E47: 1.493371847
B48: 16 | C48: =IFERROR(INDEX(Indicator!$H$12:$H$91, MATCH(D48, Indicator!$I$12:$I$91, 0), 1), "") -> LAC | D48: Peru | E48: 1.435258624
B49: 17 | C49: =IFERROR(INDEX(Indicator!$H$12:$H$91, MATCH(D49, Indicator!$I$12:$I$91, 0), 1), "") -> Africa | D49: Rwanda | E49: 1.414933201
B50: 18 | C50: =IFERROR(INDEX(Indicator!$H$12:$H$91, MATCH(D50, Indicator!$I$12:$I$91, 0), 1), "") -> LAC | D50: Guatemala | E50: 1.4009845
B51: 19 | C51: =IFERROR(INDEX(Indicator!$H$12:$H$91, MATCH(D51, Indicator!$I$12:$I$91, 0), 1), "") -> LAC | D51: Colombia | E51: 1.391965615
B52: 20 | C52: =IFERROR(INDEX(Indicator!$H$12:$H$91, MATCH(D52, Indicator!$I$12:$I$91, 0), 1), "") -> LAC | D52: Argentina | E52: 1.389311397
B53: 21 | C53: =IFERROR(INDEX(Indicator!$H$12:$H$91, MATCH(D53, Indicator!$I$12:$I$91, 0), 1), "") -> LAC | D53: Panama | E53: 1.31392477
B54: 22 | C54: =IFERROR(INDEX(Indicator!$H$12:$H$91, MATCH(D54, Indicator!$I$12:$I$91, 0), 1), "") -> Asia | D54: Vietnam | E54: 1.282090791
B55: 23 | C55: =IFERROR(INDEX(Indicator!$H$12:$H$91, MATCH(D55, Indicator!$I$12:$I$91, 0), 1), "") -> Africa | D55: Tanzania | E55: 1.221688161
B56: 24 | C56: =IFERROR(INDEX(Indicator!$H$12:$H$91, MATCH(D56, Indicator!$I$12:$I$91, 0), 1), "") -> Asia | D56: Bangladesh | E56: 1.201788985
B57: 25 | C57: =IFERROR(INDEX(Indicator!$H$12:$H$91, MATCH(D57, Indicator!$I$12:$I$91, 0), 1), "") -> Asia | D57: Sri Lanka | E57: 1.191994209
B58: 26 | C58: =IFERROR(INDEX(Indicator!$H$12:$H$91, MATCH(D58, Indicator!$I$12:$I$91, 0), 1), "") -> Africa | D58: Ethiopia | E58: 1.1695479
B59: 27 | C59: =IFERROR(INDEX(Indicator!$H$12:$H$91, MATCH(D59, Indicator!$I$12:$I$91, 0), 1), "") -> LAC | D59: Nicaragua | E59: 1.143266796
B60: 28 | C60: =IFERROR(INDEX(Indicator!$H$12:$H$91, MATCH(D60, Indicator!$I$12:$I$91, 0), 1), "") -> Africa | D60: Ghana | E60: 1.066135331
B61: 29 | C61: =IFERROR(INDEX(Indicator!$H$12:$H$91, MATCH(D61, Indicator!$I$12:$I$91, 0), 1), "") -> LAC | D61: Bolivia | E61: 1.040509513
B62: 30 | C62: =IFERROR(INDEX(Indicator!$H$12:$H$91, MATCH(D62, Indicator!$I$12:$I$91, 0), 1), "") -> LAC | D62: El Salvador | E62: 1.027656728
B63: 31 | C63: =IFERROR(INDEX(Indicator!$H$12:$H$91, MATCH(D63, Indicator!$I$12:$I$91, 0), 1), "") -> LAC | D63: Ecuador | E63: 1.025610536
B64: 32 | C64: =IFERROR(INDEX(Indicator!$H$12:$H$91, MATCH(D64, Indicator!$I$12:$I$91, 0), 1), "") -> LAC | D64: Dominican Republic | E64: 1.018957149
B65: =IF(E65="", "", IFERROR(RANK(E65, $E$33:$E$92), "")) -> 33 | C65: =IFERROR(INDEX(Indicator!$H$12:$H$91, MATCH(D65, Indicator!$I$12:$I$91, 0), 1), "") -> Africa | D65: Malawi | E65: 1.007208636
B66: 34 | C66: =IFERROR(INDEX(Indicator!$H$12:$H$91, MATCH(D66, Indicator!$I$12:$I$91, 0), 1), "") -> Africa | D66: Zambia | E66: 0.9932063376
B67: 35 | C67: =IFERROR(INDEX(Indicator!$H$12:$H$91, MATCH(D67, Indicator!$I$12:$I$91, 0), 1), "") -> Africa | D67: Liberia | E67: 0.9091566006
B68: 36 | C68: =IFERROR(INDEX(Indicator!$H$12:$H$91, MATCH(D68, Indicator!$I$12:$I$91, 0), 1), "") -> Africa | D68: Senegal | E68: 0.8607234608
B69: 37 | C69: =IFERROR(INDEX(Indicator!$H$12:$H$91, MATCH(D69, Indicator!$I$12:$I$91, 0), 1), "") -> Asia | D69: Myanmar | E69: 0.8548009456
B70: 38 | C70: =IFERROR(INDEX(Indicator!$H$12:$H$91, MATCH(D70, Indicator!$I$12:$I$91, 0), 1), "") -> LAC | D70: Belize | E70: 0.8107160209
B71: 39 | C71: =IFERROR(INDEX(Indicator!$H$12:$H$91, MATCH(D71, Indicator!$I$12:$I$91, 0), 1), "") -> LAC | D71: Jamaica | E71: 0.8087277756
B72: 40 | C72: =IFERROR(INDEX(Indicator!$H$12:$H$91, MATCH(D72, Indicator!$I$12:$I$91, 0), 1), "") -> Africa | D72: Sierra Leone | E72: 0.7948038771
B73: 41 | C73: =IFERROR(INDEX(Indicator!$H$12:$H$91, MATCH(D73, Indicator!$I$12:$I$91, 0), 1), "") -> Africa | D73: Mozambique | E73: 0.7693655374
B74: 42 | C74: =IFERROR(INDEX(Indicator!$H$12:$H$91, MATCH(D74, Indicator!$I$12:$I$91, 0), 1), "") -> Africa | D74: Cote d'Ivoire | E74: 0.7104142172
B75: 43 | C75: =IFERROR(INDEX(Indicator!$H$12:$H$91, MATCH(D75, Indicator!$I$12:$I$91, 0), 1), "") -> Africa | D75: Zimbabwe | E75: 0.7033010351
B76: 44 | C76: =IFERROR(INDEX(Indicator!$H$12:$H$91, MATCH(D76, Indicator!$I$12:$I$91, 0), 1), "") -> LAC | D76: Barbados | E76: 0.6423334969
B77: 45 | C77: =IFERROR(INDEX(Indicator!$H$12:$H$91, MATCH(D77, Indicator!$I$12:$I$91, 0), 1), "") -> LAC | D77: Haiti | E77: 0.6358744827
B78: 46 | C78: =IFERROR(INDEX(Indicator!$H$12:$H$91, MATCH(D78, Indicator!$I$12:$I$91, 0), 1), "") -> Asia | D78: Tajikistan | E78: 0.618932271
B79: 47 | C79: =IFERROR(INDEX(Indicator!$H$12:$H$91, MATCH(D79, Indicator!$I$12:$I$91, 0), 1), "") -> Africa | D79: Botswana | E79: 0.5888406552
B80: 48 | C80: =IFERROR(INDEX(Indicator!$H$12:$H$91, MATCH(D80, Indicator!$I$12:$I$91, 0), 1), "") -> LAC | D80: Trinidad & Tobago | E80: 0.5707378109
B81: 49 | C81: =IFERROR(INDEX(Indicator!$H$12:$H$91, MATCH(D81, Indicator!$I$12:$I$91, 0), 1), "") -> Africa | D81: Cameroon | E81: 0.5638909852
B82: 50 | C82: =IFERROR(INDEX(Indicator!$H$12:$H$91, MATCH(D82, Indicator!$I$12:$I$91, 0), 1), "") -> Africa | D82: Congo (Dem. Rep.) | E82: 0.5460569032
B83: 51 | C83: =IFERROR(INDEX(Indicator!$H$12:$H$91, MATCH(D83, Indicator!$I$12:$I$91, 0), 1), "") -> LAC | D83: Guyana | E83: 0.5413767828
B84: 52 | C84: =IFERROR(INDEX(Indicator!$H$12:$H$91, MATCH(D84, Indicator!$I$12:$I$91, 0), 1), "") -> LAC | D84: Paraguay | E84: 0.4921447142
B85: 53 | C85: =IFERROR(INDEX(Indicator!$H$12:$H$91, MATCH(D85, Indicator!$I$12:$I$91, 0), 1), "") -> LAC | D85: Bahamas | E85: 0.4805631941
B86: 54 | C86: =IFERROR(INDEX(Indicator!$H$12:$H$91, MATCH(D86, Indicator!$I$12:$I$91, 0), 1), "") -> LAC | D86: Venezuela | E86: 0.4004454369
B87: 55 | C87: =IFERROR(INDEX(Indicator!$H$12:$H$91, MATCH(D87, Indicator!$I$12:$I$91, 0), 1), "") -> LAC | D87: Suriname | E87: 0.2227917111
C88: =IFERROR(INDEX(Indicator!$H$12:$H$91, MATCH(D88, Indicator!$I$12:$I$91, 0), 1), "") -> 
C89: =IFERROR(INDEX(Indicator!$H$12:$H$91, MATCH(D89, Indicator!$I$12:$I$91, 0), 1), "") -> 
C90: =IFERROR(INDEX(Indicator!$H$12:$H$91, MATCH(D90, Indicator!$I$12:$I$91, 0), 1), "") -> 
C91: =IFERROR(INDEX(Indicator!$H$12:$H$91, MATCH(D91, Indicator!$I$12:$I$91, 0), 1), "") -> 
C92: =IFERROR(INDEX(Indicator!$H$12:$H$91, MATCH(D92, Indicator!$I$12:$I$91, 0), 1), "") -> 

Sheet Country (hidden)
B2: COUNTRY PROFILE
B3: INSTRUCTIONS
B4: Climatescope is a comprehensive index and report assessing the environment for low-carbon investment in 26 countries in Latin America and the Caribbean,
B5: developed by the Multilateral Investment Fund (part of the Inter-American Development Bank) and Bloomberg New Energy Finance.
B6: TAB CONTENT
B7: 1) Column B: Parameters (4)
B8: 2) Column C: Parameter weights
B9: 3) Column D: Categories (13)
B10: 4) Column E: Category weights
B11: 5) Column G: Indicators (53)
B12: 6) Column H: Grid status (on or off-grid)
B13: 7) Column I: Indicator weight (as a percentage of category weight)
B14: 8) Column J: Indicator net weight (as a percentage of the overall Climatescope score)
B15: 9) Column K: The underlying data which is used to derive the indicator scores
B16: 10) Column M: Aggregate scored data per indicator
B17: 11) Column N: Country’s relative performance per indicator (e.g. a full bar means the country has achieved the highest score possible for that indicator)
B18: INSTRUCTIONS
B19: 1) Select country of choice in the drop-down menu (Cell C24).
B20: 2) Scroll down to row 83 to visualize additional information, under 'Further Indicator Details'. Here you can see charts and tables which provide a more details on the related indicators.
B21: 3) Expand the indicator additional information by clicking on the '+' (plus sign) on the left.
B22: FOR QUESTIONS OR FEEDBACK PLEASE EMAIL CLIMATESCOPE@BLOOMBERG.NET
B23: INDICATOR ANALYSIS
B24: Country | C24: China
B25: Region | C25: =INDEX(Indicator!$H$12:$H$91, MATCH(str_Country, Indicator!$I$12:$I$91, 0), 1) -> Asia
B26: Score | C26: =SUM($M$29:$M$81) -> 2.292071786
B27: Indicators | C27: =COUNTIF(K29:K81, "<>0") -> 44 | R27: Grid type… | S27: =IF(ISNUMBER(MATCH(str_Country, list_RegionOnGrid, 0)), "On-Grid", "Off-Grid") -> On-Grid
B28: PARAMETER | C28: P-WEIGHT | D28: CATEGORY | E28: C-WEIGHT | F28: ID. | G28: INDICATOR | H28: ON/OFF-GRID | I28: I-WEIGHT | J28: NET WEIGHT | K28: DATA | L28: UNITS | M28: SCORE | N28: PERFORMANCE | O28: DETAILS | P28: INDICATOR ID. | Q28: UNIT TYPE | R28: OFF-GRID I-WEIGHT | S28: ON-GRID I-WEIGHT
B29: Enabling framework | C29: 0.4 | D29: Policy & Regulation | E29: 0.4 | F29: 1.01 | G29: Clean energy policies | H29: Both | I29: =IF($S$27="Off-Grid", R29, S29) -> 0.6 | J29: =IF(I29="", "", C29*E29*I29) -> 0.096 | K29: =IFERROR(INDEX(Indicator!$M$12:$M$4252, MATCH($F29&" > "&$C$24, Indicator!$R$12:$R$4252, 0), 1)*IF(Q29="Percentage (Source Calculated)", 100, 1), 0) -> 7 | L29: =IF(K29=1, "Policy Type", "Policy Types") -> Policy Types | M29: =IF(J29="", "", IFERROR(J29*dbl_ScoreMax*MAX(0, IFERROR(INDEX(Indicator!$P$12:$P$4252, MATCH($F29&" > "&$C$24, Indicator!$R$12:$R$4252, 0), 1), 0))/100, 0)) -> 0.2535221938 | N29: =IF(M29="", "", IFERROR(M29/(J29*dbl_ScoreMax), 0)) -> 0.5281712371 | O29: =HYPERLINK(MID(CELL("FileName", str_Hyperlink101), FIND("[", CELL("FileName", str_Hyperlink101)), 255) & "!str_Hyperlink101", "LINK") -> LINK | P29: 1 | Q29: Decimal | R29: 0.4 | S29: 0.6
B30: Enabling framework | C30: =C29 -> 0.4 | D30: Policy & Regulation | E30: =E29 -> 0.4 | F30: =F29+0.01 -> 1.02 | G30: Power sector structure | H30: Both | I30: 0.3 | J30: =IF(I30="", "", C30*E30*I30) -> 0.048 | K30: =IFERROR(INDEX(Indicator!$M$12:$M$4252, MATCH($F30&" > "&$C$24, Indicator!$R$12:$R$4252, 0), 1)*IF(Q30="Percentage (Source Calculated)", 100, 1), 0) -> 7.125 | L30: =IF(K30=1, "Question", "Questions") -> Questions | M30: =IF(J30="", "", IFERROR(J30*dbl_ScoreMax*MAX(0, IFERROR(INDEX(Indicator!$P$12:$P$4252, MATCH($F30&" > "&$C$24, Indicator!$R$12:$R$4252, 0), 1), 0))/100, 0)) -> 0.1554545455 | N30: =IF(M30="", "", IFERROR(M30/(J30*dbl_ScoreMax), 0)) -> 0.6477272727 | O30: =HYPERLINK(MID(CELL("FileName", str_Hyperlink102), FIND("[", CELL("FileName", str_Hyperlink102)), 255) & "!str_Hyperlink102", "LINK") -> LINK | P30: =P29+1 -> 2 | Q30: Decimal | R30: 0.25 | S30: 0.3
B31: Enabling framework | C31: 0.4 | D31: Policy & Regulation | E31: =E30 -> 0.4 | F31: =F30+0.01 -> 1.03 | G31: Distributed energy regulatory framework | H31: Off-grid | I31: 0 | J31: 0 | K31: =IFERROR(INDEX(Indicator!$M$12:$M$4252, MATCH($F31&" > "&$C$24, Indicator!$R$12:$R$4252, 0), 1)*IF(Q31="Percentage (Source Calculated)", 100, 1), 0) -> 0 | L31: =IF(K31=1, "Question", "Questions") -> Questions | M31: =IF(J31="", "", IFERROR(J31*dbl_ScoreMax*MAX(0, IFERROR(INDEX(Indicator!$P$12:$P$4252, MATCH($F31&" > "&$C$24, Indicator!$R$12:$R$4252, 0), 1), 0))/100, 0)) -> 0 | N31: 0 | O31: =HYPERLINK(MID(CELL("FileName", str_Hyperlink103), FIND("[", CELL("FileName", str_Hyperlink103)), 255) & "!str_Hyperlink103", "LINK") -> LINK | P31: 3 | Q31: Decimal | R31: 0.15 | S31: 0
B32: Enabling framework | C32: 0.4 | D32: Policy & Regulation | E32: =E31 -> 0.4 | F32: 1.04 | G32: Clean energy rural electrification | H32: Both | I32: 0.05 | J32: 0.008 | K32: =IFERROR(INDEX(Indicator!$M$12:$M$4252, MATCH($F32&" > "&$C$24, Indicator!$R$12:$R$4252, 0), 1)*IF(Q32="Percentage (Source Calculated)", 100, 1), 0) -> 1 | L32: =IF(K32=1, "Program", "Programs") -> Program | M32: =IF(J32="", "", IFERROR(J32*dbl_ScoreMax*MAX(0, IFERROR(INDEX(Indicator!$P$12:$P$4252, MATCH($F32&" > "&$C$24, Indicator!$R$12:$R$4252, 0), 1), 0))/100, 0)) -> 0.04 | N32: 1 | P32: 4 | Q32: Decimal | R32: 0.05 | S32: 0.05
B33: Enabling framework | C33: 0.4 | D33: Policy & Regulation | E33: =E32 -> 0.4 | F33: 1.05 | G33: Energy access policies | H33: Off-grid | I33: 0 | J33: 0 | K33: =IFERROR(INDEX(Indicator!$M$12:$M$4252, MATCH($F33&" > "&$C$24, Indicator!$R$12:$R$4252, 0), 1)*IF(Q33="Percentage (Source Calculated)", 100, 1), 0) -> 0 | L33: =IF(K33=1, "Policy", "Policies") -> Policies | M33: =IF(J33="", "", IFERROR(J33*dbl_ScoreMax*MAX(0, IFERROR(INDEX(Indicator!$P$12:$P$4252, MATCH($F33&" > "&$C$24, Indicator!$R$12:$R$4252, 0), 1), 0))/100, 0)) -> 0 | N33: 0 | O33: =HYPERLINK(MID(CELL("FileName", str_Hyperlink105), FIND("[", CELL("FileName", str_Hyperlink105)), 255) & "!str_Hyperlink105", "LINK") -> LINK | P33: 5 | Q33: Decimal | R33: 0.1 | S33: 0
B34: Enabling framework | C34: 0.4 | D34: Policy & Regulation | E34: =E33 -> 0.4 | F34: 1.06 | G34: Policy barriers | H34: Both | I34: 0.05 | J34: 0.008 | K34: =IFERROR(INDEX(Indicator!$M$12:$M$4252, MATCH($F34&" > "&$C$24, Indicator!$R$12:$R$4252, 0), 1)*IF(Q34="Percentage (Source Calculated)", 100, 1), 0) -> 0.2623524268 | L34: =IF(K33=1, "Barrier", "Barriers") -> Barriers | M34: =IF(J34="", "", IFERROR(J34*dbl_ScoreMax*MAX(0, IFERROR(INDEX(Indicator!$P$12:$P$4252, MATCH($F34&" > "&$C$24, Indicator!$R$12:$R$4252, 0), 1), 0))/100, 0)) -> 0.002098819414 | N34: 0.05247048535 | P34: 6 | Q34: Decimal | R34: 0.05 | S34: 0.05
B35: Enabling framework | C35: 0.4 | D35: Clean Energy Penetration | E35: 0.4 | F35: 1.07 | G35: Clean energy installed capacity | H35: Both | I35: 0.2 | J35: 0.032 | K35: =IFERROR(INDEX(Indicator!$M$12:$M$4252, MATCH($F35&" > "&$C$24, Indicator!$R$12:$R$4252, 0), 1)*IF(Q35="Percentage (Source Calculated)", 100, 1), 0) -> 201358 | L35: MW | M35: =IF(J35="", "", IFERROR(J35*dbl_ScoreMax*MAX(0, IFERROR(INDEX(Indicator!$P$12:$P$4252, MATCH($F35&" > "&$C$24, Indicator!$R$12:$R$4252, 0), 1), 0))/100, 0)) -> 0.03673751447 | N35: 0.2296094655 | O35: =HYPERLINK(MID(CELL("FileName", str_Hyperlink107), FIND("[", CELL("FileName", str_Hyperlink107)), 255) & "!str_Hyperlink107", "LINK") -> LINK | P35: 7 | Q35: Decimal | R35: 0.2 | S35: 0.2
B36: Enabling framework | C36: 0.4 | D36: Clean Energy Penetration | E36: =E35 -> 0.4 | F36: 1.08 | G36: Growth rate of installed capacity | H36: Both | I36: 0.2 | J36: 0.032 | K36: =IFERROR(INDEX(Indicator!$M$12:$M$4252, MATCH($F36&" > "&$C$24, Indicator!$R$12:$R$4252, 0), 1)*IF(Q36="Percentage (Source Calculated)", 100, 1), 0) -> 21.02223211 | L36: % | M36: =IF(J36="", "", IFERROR(J36*dbl_ScoreMax*MAX(0, IFERROR(INDEX(Indicator!$P$12:$P$4252, MATCH($F36&" > "&$C$24, Indicator!$R$12:$R$4252, 0), 1), 0))/100, 0)) -> 0.02242371425 | N36: 0.140148214 | P36: 8 | Q36: Percentage (Source Calculated) | R36: 0.2 | S36: 0.2
B37: Enabling framework | C37: 0.4 | D37: Clean Energy Penetration | E37: =E36 -> 0.4 | F37: 1.09 | G37: Clean energy electricity generation | H37: Both | I37: 0.2 | J37: 0.032 | K37: =IFERROR(INDEX(Indicator!$M$12:$M$4252, MATCH($F37&" > "&$C$24, Indicator!$R$12:$R$4252, 0), 1)*IF(Q37="Percentage (Source Calculated)", 100, 1), 0) -> 535370 | L37: GWh | M37: =IF(J37="", "", IFERROR(J37*dbl_ScoreMax*MAX(0, IFERROR(INDEX(Indicator!$P$12:$P$4252, MATCH($F37&" > "&$C$24, Indicator!$R$12:$R$4252, 0), 1), 0))/100, 0)) -> 0.01712755141 | N37: 0.1070471963 | O37: =HYPERLINK(MID(CELL("FileName", str_Hyperlink109), FIND("[", CELL("FileName", str_Hyperlink109)), 255) & "!str_Hyperlink109", "LINK") -> LINK | P37: 9 | Q37: Decimal | R37: 0.2 | S37: 0.2
B38: Enabling framework | C38: 0.4 | D38: Clean Energy Penetration | E38: =E37 -> 0.4 | F38: 1.1 | G38: Growth rate of electricity generation | H38: Both | I38: 0.2 | J38: 0.032 | K38: =IFERROR(INDEX(Indicator!$M$12:$M$4252, MATCH($F38&" > "&$C$24, Indicator!$R$12:$R$4252, 0), 1)*IF(Q38="Percentage (Source Calculated)", 100, 1), 0) -> 27.52590117 | L38: % | M38: =IF(J38="", "", IFERROR(J38*dbl_ScoreMax*MAX(0, IFERROR(INDEX(Indicator!$P$12:$P$4252, MATCH($F38&" > "&$C$24, Indicator!$R$12:$R$4252, 0), 1), 0))/100, 0)) -> 0.02936096125 | N38: 0.1835060078 | P38: 10 | Q38: Percentage (Source Calculated) | R38: 0.2 | S38: 0.2
B39: Enabling framework | C39: 0.4 | D39: Clean Energy Penetration | E39: =E38 -> 0.4 | F39: 1.11 | G39: Biofuels production | H39: Both | I39: 0.1 | J39: 0.016 | K39: =IFERROR(INDEX(Indicator!$M$12:$M$4252, MATCH($F39&" > "&$C$24, Indicator!$R$12:$R$4252, 0), 1)*IF(Q39="Percentage (Source Calculated)", 100, 1), 0) -> 3.78 | L39: =IF(K39=1, "Billion Litre", "Billion Litres") -> Billion Litres | M39: =IF(J39="", "", IFERROR(J39*dbl_ScoreMax*MAX(0, IFERROR(INDEX(Indicator!$P$12:$P$4252, MATCH($F39&" > "&$C$24, Indicator!$R$12:$R$4252, 0), 1), 0))/100, 0)) -> 0.001010123417 | N39: 0.01262654272 | P39: 11 | Q39: Decimal | R39: 0.1 | S39: 0.1
B40: Enabling framework | C40: 0.4 | D40: Clean Energy Penetration | E40: =E39 -> 0.4 | F40: 1.12 | G40: Growth rate biofuels production | H40: Both | I40: 0.1 | J40: 0.016 | K40: =IFERROR(INDEX(Indicator!$M$12:$M$4252, MATCH($F40&" > "&$C$24, Indicator!$R$12:$R$4252, 0), 1)*IF(Q40="Percentage (Source Calculated)", 100, 1), 0) -> 7.082152975 | L40: % | M40: =IF(J40="", "", IFERROR(J40*dbl_ScoreMax*MAX(0, IFERROR(INDEX(Indicator!$P$12:$P$4252, MATCH($F40&" > "&$C$24, Indicator!$R$12:$R$4252, 0), 1), 0))/100, 0)) -> 0.0123902633 | N40: 0.1548782912 | P40: 12 | Q40: Percentage (Source Calculated) | R40: 0.1 | S40: 0.1
B41: Enabling framework | C41: 0.4 | D41: Price Attractiveness | E41: 0.1 | F41: 1.13 | G41: Average electricity spot prices | H41: Both | I41: 0 | J41: 0 | K41: =IFERROR(INDEX(Indicator!$M$12:$M$4252, MATCH($F41&" > "&$C$24, Indicator!$R$12:$R$4252, 0), 1)*IF(Q41="Percentage (Source Calculated)", 100, 1), 0) -> 0 | L41: USD/MWh | M41: =IF(J41="", "", IFERROR(J41*dbl_ScoreMax*MAX(0, IFERROR(INDEX(Indicator!$P$12:$P$4252, MATCH($F41&" > "&$C$24, Indicator!$R$12:$R$4252, 0), 1), 0))/100, 0)) -> 0 | N41: 0 | P41: 13 | Q41: Decimal | R41: =IF(K41=0,0,((1-SUM($R$43:$R$47))/COUNTIF($K$41:$K$42,"<>0"))) -> 0 | S41: =IF(K41=0, 0, 1/COUNTIF($K$41:$K$42, "<>0")) -> 0
B42: Enabling framework | C42: 0.4 | D42: Price Attractiveness | E42: =E41 -> 0.1 | F42: 1.14 | G42: Average retail electricity prices | H42: Both | I42: 1 | J42: 0.04 | K42: =IFERROR(INDEX(Indicator!$M$12:$M$4252, MATCH($F42&" > "&$C$24, Indicator!$R$12:$R$4252, 0), 1)*IF(Q42="Percentage (Source Calculated)", 100, 1), 0) -> 90.78 | L42: USD/MWh | M42: =IF(J42="", "", IFERROR(J42*dbl_ScoreMax*MAX(0, IFERROR(INDEX(Indicator!$P$12:$P$4252, MATCH($F42&" > "&$C$24, Indicator!$R$12:$R$4252, 0), 1), 0))/100, 0)) -> 0.03185263158 | N42: 0.1592631579 | P42: 14 | Q42: Decimal | R42: =IF(K42=0,0,((1-SUM($R$43:$R$47))/COUNTIF($K$41:$K$42,"<>0"))) -> 0.6 | S42: =IF(K42=0, 0, 1/COUNTIF($K$41:$K$42, "<>0")) -> 1
B43: Enabling framework | C43: 0.4 | D43: Price Attractiveness | E43: =E42 -> 0.1 | F43: 1.15 | G43: Average residential electricity prices | H43: Both | I43: 0 | J43: 0 | K43: =IFERROR(INDEX(Indicator!$M$12:$M$4252, MATCH($F43&" > "&$C$24, Indicator!$R$12:$R$4252, 0), 1)*IF(Q43="Percentage (Source Calculated)", 100, 1), 0) -> 82.05 | L43: USD/MWh | M43: =IF(J43="", "", IFERROR(J43*dbl_ScoreMax*MAX(0, IFERROR(INDEX(Indicator!$P$12:$P$4252, MATCH($F43&" > "&$C$24, Indicator!$R$12:$R$4252, 0), 1), 0))/100, 0)) -> 0 | N43: =IF(M43="", "", IFERROR(M43/(J43*dbl_ScoreMax), 0)) -> 0 | P43: 15 | Q43: Decimal | R43: 0 | S43: 0
B44: Enabling framework | C44: 0.4 | D44: Price Attractiveness | E44: =E43 -> 0.1 | F44: 1.16 | G44: Average commercial electricity prices | H44: Both | I44: 0 | J44: 0 | K44: =IFERROR(INDEX(Indicator!$M$12:$M$4252, MATCH($F44&" > "&$C$24, Indicator!$R$12:$R$4252, 0), 1)*IF(Q44="Percentage (Source Calculated)", 100, 1), 0) -> 131.19 | L44: USD/MWh | M44: =IF(J44="", "", IFERROR(J44*dbl_ScoreMax*MAX(0, IFERROR(INDEX(Indicator!$P$12:$P$4252, MATCH($F44&" > "&$C$24, Indicator!$R$12:$R$4252, 0), 1), 0))/100, 0)) -> 0 | N44: =IF(M44="", "", IFERROR(M44/(J44*dbl_ScoreMax), 0)) -> 0 | P44: 16 | Q44: Decimal | R44: 0 | S44: 0
B45: Enabling framework | C45: 0.4 | D45: Price Attractiveness | E45: 0.1 | F45: 1.17 | G45: Average industrial electricity prices | H45: Both | I45: 0 | J45: 0 | K45: =IFERROR(INDEX(Indicator!$M$12:$M$4252, MATCH($F45&" > "&$C$24, Indicator!$R$12:$R$4252, 0), 1)*IF(Q45="Percentage (Source Calculated)", 100, 1), 0) -> 142.71 | L45: USD/MWh | M45: =IF(J45="", "", IFERROR(J45*dbl_ScoreMax*MAX(0, IFERROR(INDEX(Indicator!$P$12:$P$4252, MATCH($F45&" > "&$C$24, Indicator!$R$12:$R$4252, 0), 1), 0))/100, 0)) -> 0 | N45: =IF(M45="", "", IFERROR(M45/(J45*dbl_ScoreMax), 0)) -> 0 | P45: 17 | Q45: Decimal | R45: 0 | S45: 0
B46: Enabling framework | C46: 0.4 | D46: Price Attractiveness | E46: 0.1 | F46: 1.18 | G46: Average kerosene prices | H46: Off-grid | I46: 0 | J46: 0 | K46: =IFERROR(INDEX(Indicator!$M$12:$M$4252, MATCH($F46&" > "&$C$24, Indicator!$R$12:$R$4252, 0), 1)*IF(Q46="Percentage (Source Calculated)", 100, 1), 0) -> 0 | L46: USD/Litre | M46: =IF(J46="", "", IFERROR(J46*dbl_ScoreMax*MAX(0, IFERROR(INDEX(Indicator!$P$12:$P$4252, MATCH($F46&" > "&$C$24, Indicator!$R$12:$R$4252, 0), 1), 0))/100, 0)) -> 0 | N46: =IF(M46="", "", IFERROR(M46/(J46*dbl_ScoreMax), 0)) -> 0 | P46: 18 | Q46: Decimal | R46: 0.2 | S46: 0
B47: Enabling framework | C47: 0.4 | D47: Price Attractiveness | E47: 0.1 | F47: 1.19 | G47: Average diesel prices | H47: Off-grid | I47: 0 | J47: 0 | K47: =IFERROR(INDEX(Indicator!$M$12:$M$4252, MATCH($F47&" > "&$C$24, Indicator!$R$12:$R$4252, 0), 1)*IF(Q47="Percentage (Source Calculated)", 100, 1), 0) -> 0 | L47: USD/Litre | M47: =IF(J47="", "", IFERROR(J47*dbl_ScoreMax*MAX(0, IFERROR(INDEX(Indicator!$P$12:$P$4252, MATCH($F47&" > "&$C$24, Indicator!$R$12:$R$4252, 0), 1), 0))/100, 0)) -> 0 | N47: =IF(M47="", "", IFERROR(M47/(J47*dbl_ScoreMax), 0)) -> 0 | P47: 19 | Q47: Decimal | R47: 0.2 | S47: 0
B48: Enabling framework | C48: 0.4 | D48: Market Size Expectations | E48: 0.1 | F48: 1.2 | G48: Growth rate of power demand | H48: Both | I48: 0.5 | J48: 0.02 | K48: =IFERROR(INDEX(Indicator!$M$12:$M$4252, MATCH($F48&" > "&$C$24, Indicator!$R$12:$R$4252, 0), 1)*IF(Q48="Percentage (Source Calculated)", 100, 1), 0) -> 3.399404575 | L48: % | M48: =IF(J48="", "", IFERROR(J48*dbl_ScoreMax*MAX(0, IFERROR(INDEX(Indicator!$P$12:$P$4252, MATCH($F48&" > "&$C$24, Indicator!$R$12:$R$4252, 0), 1), 0))/100, 0)) -> 0.01382432833 | N48: 0.1382432833 | P48: 20 | Q48: Percentage (Source Calculated) | R48: 0.3 | S48: 0.5
B49: Enabling framework | C49: 0.4 | D49: Market Size Expectations | E49: 0.1 | F49: 1.21 | G49: Electrification rate | H49: Both | I49: 0.5 | J49: 0.02 | K49: =IFERROR(INDEX(Indicator!$M$12:$M$4252, MATCH($F49&" > "&$C$24, Indicator!$R$12:$R$4252, 0), 1)*IF(Q49="Percentage (Source Calculated)", 100, 1), 0) -> 100 | L49: % | M49: =IF(J49="", "", IFERROR(J49*dbl_ScoreMax*MAX(0, IFERROR(INDEX(Indicator!$P$12:$P$4252, MATCH($F49&" > "&$C$24, Indicator!$R$12:$R$4252, 0), 1), 0))/100, 0)) -> 0.002 | N49: 0.02 | P49: 21 | Q49: Percentage (Source Hardcoded) | R49: 0.6 | S49: 0.5
B50: Enabling framework | C50: 0.4 | E50: 0.1 | F50: 1.22 | G50: Population using solid fuels for cooking | H50: Off-grid | I50: 0 | J50: 0 | K50: =IFERROR(INDEX(Indicator!$M$12:$M$4252, MATCH($F50&" > "&$C$24, Indicator!$R$12:$R$4252, 0), 1)*IF(Q50="Percentage (Source Calculated)", 100, 1), 0) -> 45 | L50: % | M50: =IF(J50="", "", IFERROR(J50*dbl_ScoreMax*MAX(0, IFERROR(INDEX(Indicator!$P$12:$P$4252, MATCH($F50&" > "&$C$24, Indicator!$R$12:$R$4252, 0), 1), 0))/100, 0)) -> 0 | N50: =IF(M50="", "", IFERROR(M50/(J50*dbl_ScoreMax), 0)) -> 0 | P50: 22 | Q50: Percentage (Source Hardcoded) | R50: 0.1 | S50: 0
B51: Clean Energy Investment | C51: 0.3 | D51: Amount Invested | E51: 0.45 | F51: 2.01 | G51: ="Clean energy investments (" & int_InvStartYear & "-" & int_Year & ")" -> Clean energy investments (2010-2014) | H51: Both | I51: 0.5 | J51: 0.0675 | K51: =IFERROR(INDEX(Indicator!$M$12:$M$4252, MATCH($F51&" > "&$C$24, Indicator!$R$12:$R$4252, 0), 1)*IF(Q51="Percentage (Source Calculated)", 100, 1), 0) -> 303775.3166 | L51: USDm | M51: =IF(J51="", "", IFERROR(J51*dbl_ScoreMax*MAX(0, IFERROR(INDEX(Indicator!$P$12:$P$4252, MATCH($F51&" > "&$C$24, Indicator!$R$12:$R$4252, 0), 1), 0))/100, 0)) -> 0.02467666465 | N51: 0.0731160434 | O51: =HYPERLINK(MID(CELL("FileName", str_Hyperlink201), FIND("[", CELL("FileName", str_Hyperlink201)), 255) & "!str_Hyperlink201", "LINK") -> LINK | P51: 23 | Q51: Decimal | R51: 0.6 | S51: 0.5
B52: Clean Energy Investment | C52: =C51 -> 0.3 | D52: Amount Invested | E52: =E51 -> 0.45 | F52: 2.02 | G52: Growth rate of clean energy investments | H52: Both | I52: 0.5 | J52: 0.0675 | K52: =IFERROR(INDEX(Indicator!$M$12:$M$4252, MATCH($F52&" > "&$C$24, Indicator!$R$12:$R$4252, 0), 1)*IF(Q52="Percentage (Source Calculated)", 100, 1), 0) -> 40.80618135 | L52: % | M52: =IF(J52="", "", IFERROR(J52*dbl_ScoreMax*MAX(0, IFERROR(INDEX(Indicator!$P$12:$P$4252, MATCH($F52&" > "&$C$24, Indicator!$R$12:$R$4252, 0), 1), 0))/100, 0)) -> 0.09181390804 | N52: 0.272041209 | P52: 24 | Q52: Percentage (Source Calculated) | R52: 0.4 | S52: 0.5
B53: Clean Energy Investment | C53: 0.3 | D53: Investment Type | E53: 0 | F53: 2.03 | G53: Asset finance investments | H53: Both | I53: 0 | J53: 0 | K53: =IFERROR(INDEX(Indicator!$M$12:$M$4252, MATCH($F53&" > "&$C$24, Indicator!$R$12:$R$4252, 0), 1)*IF(Q53="Percentage (Source Calculated)", 100, 1), 0) -> 275266.8675 | L53: USDm | M53: =IF(J53="", "", IFERROR(J53*dbl_ScoreMax*MAX(0, IFERROR(INDEX(Indicator!$P$12:$P$4252, MATCH($F53&" > "&$C$24, Indicator!$R$12:$R$4252, 0), 1), 0))/100, 0)) -> 0 | N53: =IF(M53="", "", IFERROR(M53/(J53*dbl_ScoreMax), 0)) -> 0 | P53: 25 | Q53: Decimal | R53: 0 | S53: 0
B54: Clean Energy Investment | C54: 0.3 | D54: Investment Type | E54: =E53 -> 0 | F54: 2.04 | G54: Corporate finance investments | H54: Both | I54: 0 | J54: 0 | K54: =IFERROR(INDEX(Indicator!$M$12:$M$4252, MATCH($F54&" > "&$C$24, Indicator!$R$12:$R$4252, 0), 1)*IF(Q54="Percentage (Source Calculated)", 100, 1), 0) -> 26955.55365 | L54: USDm | M54: =IF(J54="", "", IFERROR(J54*dbl_ScoreMax*MAX(0, IFERROR(INDEX(Indicator!$P$12:$P$4252, MATCH($F54&" > "&$C$24, Indicator!$R$12:$R$4252, 0), 1), 0))/100, 0)) -> 0 | N54: =IF(M54="", "", IFERROR(M54/(J54*dbl_ScoreMax), 0)) -> 0 | P54: 26 | Q54: Decimal | R54: 0 | S54: 0
B55: Clean Energy Investment | C55: 0.3 | D55: Investment Type | E55: =E54 -> 0 | F55: 2.05 | G55: VC/PE investments | H55: Both | I55: 0 | J55: 0 | K55: =IFERROR(INDEX(Indicator!$M$12:$M$4252, MATCH($F55&" > "&$C$24, Indicator!$R$12:$R$4252, 0), 1)*IF(Q55="Percentage (Source Calculated)", 100, 1), 0) -> 1552.895429 | L55: USDm | M55: =IF(J55="", "", IFERROR(J55*dbl_ScoreMax*MAX(0, IFERROR(INDEX(Indicator!$P$12:$P$4252, MATCH($F55&" > "&$C$24, Indicator!$R$12:$R$4252, 0), 1), 0))/100, 0)) -> 0 | N55: =IF(M55="", "", IFERROR(M55/(J55*dbl_ScoreMax), 0)) -> 0 | P55: 27 | Q55: Decimal | R55: 0 | S55: 0
B56: Clean Energy Investment | C56: 0.3 | D56: Fund Sources | E56: 0.2 | F56: 2.07 | G56: Loans, grants, grant programs | H56: Both | I56: 0.5 | J56: 0.03 | K56: =IFERROR(INDEX(Indicator!$M$12:$M$4252, MATCH($F56&" > "&$C$24, Indicator!$R$12:$R$4252, 0), 1)*IF(Q56="Percentage (Source Calculated)", 100, 1), 0) -> 20.20635 | L56: USDm | M56: =IF(J56="", "", IFERROR(J56*dbl_ScoreMax*MAX(0, IFERROR(INDEX(Indicator!$P$12:$P$4252, MATCH($F56&" > "&$C$24, Indicator!$R$12:$R$4252, 0), 1), 0))/100, 0)) -> 2.846174426e-05 | N56: 0.0001897449617 | P56: 28 | Q56: Decimal | R56: 0.5 | S56: 0.5
B57: Clean Energy Investment | C57: 0.3 | D57: Fund Sources | E57: =E56 -> 0.2 | F57: 2.08 | G57: Local investments | H57: Both | I57: 0.5 | J57: 0.03 | K57: =IFERROR(INDEX(Indicator!$M$12:$M$4252, MATCH($F57&" > "&$C$24, Indicator!$R$12:$R$4252, 0), 1)*IF(Q57="Percentage (Source Calculated)", 100, 1), 0) -> 66522.00019 | L57: USDm | M57: =IF(J57="", "", IFERROR(J57*dbl_ScoreMax*MAX(0, IFERROR(INDEX(Indicator!$P$12:$P$4252, MATCH($F57&" > "&$C$24, Indicator!$R$12:$R$4252, 0), 1), 0))/100, 0)) -> 0.03777214145 | N57: 0.2518142763 | P57: 29 | Q57: Decimal | R57: 0.5 | S57: 0.5
B58: Clean Energy Investment | C58: 0.3 | D58: Green Micro Finance | E58: 0.18 | F58: 2.09 | G58: Number of Green MFI | H58: Both | I58: 0.3833333333 | J58: 0.0207 | K58: =IFERROR(INDEX(Indicator!$M$12:$M$4252, MATCH($F58&" > "&$C$24, Indicator!$R$12:$R$4252, 0), 1)*IF(Q58="Percentage (Source Calculated)", 100, 1), 0) -> 5 | L58: =IF(K58=1, "Company", "Companies") -> Companies | M58: =IF(J58="", "", IFERROR(J58*dbl_ScoreMax*MAX(0, IFERROR(INDEX(Indicator!$P$12:$P$4252, MATCH($F58&" > "&$C$24, Indicator!$R$12:$R$4252, 0), 1), 0))/100, 0)) -> 0.1035 | N58: 1 | P58: 30 | Q58: Decimal | R58: 0.3833333333 | S58: 0.3833333333
B59: Clean Energy Investment | C59: 0.3 | D59: Green Micro Finance | E59: =E58 -> 0.18 | F59: 2.1 | G59: Green micro-loans | H59: Both | I59: 0.2166666667 | J59: 0.0117 | K59: =IFERROR(INDEX(Indicator!$M$12:$M$4252, MATCH($F59&" > "&$C$24, Indicator!$R$12:$R$4252, 0), 1)*IF(Q59="Percentage (Source Calculated)", 100, 1), 0) -> 102800000 | L59: USD | M59: =IF(J59="", "", IFERROR(J59*dbl_ScoreMax*MAX(0, IFERROR(INDEX(Indicator!$P$12:$P$4252, MATCH($F59&" > "&$C$24, Indicator!$R$12:$R$4252, 0), 1), 0))/100, 0)) -> 8.938822994e-05 | N59: 0.001528003931 | P59: 31 | Q59: Decimal | R59: 0.2166666667 | S59: 0.2166666667
B60: Clean Energy Investment | C60: 0.3 | D60: Green Micro Finance | E60: =E59 -> 0.18 | F60: 2.11 | G60: Green micro-borrowers | H60: Both | I60: 0.2166666667 | J60: 0.0117 | K60: =IFERROR(INDEX(Indicator!$M$12:$M$4252, MATCH($F60&" > "&$C$24, Indicator!$R$12:$R$4252, 0), 1)*IF(Q60="Percentage (Source Calculated)", 100, 1), 0) -> 0 | L60: =IF(K60=1, "Borrower", "Borrowers") -> Borrowers | M60: =IF(J60="", "", IFERROR(J60*dbl_ScoreMax*MAX(0, IFERROR(INDEX(Indicator!$P$12:$P$4252, MATCH($F60&" > "&$C$24, Indicator!$R$12:$R$4252, 0), 1), 0))/100, 0)) -> 0 | N60: 0 | P60: 32 | Q60: Decimal | R60: 0.2166666667 | S60: 0.2166666667
B61: Clean Energy Investment | C61: 0.3 | D61: Green Micro Finance | E61: =E60 -> 0.18 | F61: 2.12 | G61: Average cost of green micro debt | H61: Both | I61: =IF($S$27="Off-Grid", R61, S61) -> 0.1833333333 | J61: 0.0099 | K61: =IFERROR(INDEX(Indicator!$M$12:$M$4252, MATCH($F61&" > "&$C$24, Indicator!$R$12:$R$4252, 0), 1)*IF(Q61="Percentage (Source Calculated)", 100, 1), 0) -> 5.666666667 | L61: % | M61: =IF(J61="", "", IFERROR(J61*dbl_ScoreMax*MAX(0, IFERROR(INDEX(Indicator!$P$12:$P$4252, MATCH($F61&" > "&$C$24, Indicator!$R$12:$R$4252, 0), 1), 0))/100, 0)) -> 0.01310294118 | N61: =IF(M61="", "", IFERROR(M61/(J61*dbl_ScoreMax), 0)) -> 0.2647058824 | P61: 33 | Q61: Percentage (Source Hardcoded) | R61: 0.1833333333 | S61: 0.1833333333
B62: Clean Energy Investment | C62: 0.3 | D62: Cost of Debt | E62: 0.17 | F62: 2.13 | G62: Average cost of debt | H62: Both | I62: 0.5 | J62: =IF(I62="", "", C62*E62*I62) -> 0.0255 | K62: =IFERROR(INDEX(Indicator!$M$12:$M$4252, MATCH($F62&" > "&$C$24, Indicator!$R$12:$R$4252, 0), 1)*IF(Q62="Percentage (Source Calculated)", 100, 1), 0) -> 5.6 | L62: % | M62: =IF(J62="", "", IFERROR(J62*dbl_ScoreMax*MAX(0, IFERROR(INDEX(Indicator!$P$12:$P$4252, MATCH($F62&" > "&$C$24, Indicator!$R$12:$R$4252, 0), 1), 0))/100, 0)) -> 0.08086383929 | N62: 0.6342261905 | P62: 34 | Q62: Percentage (Source Hardcoded) | R62: =IF(K62=0, 0, 1/COUNTIF($K$62:$K$63, "<>0")) -> 0.5 | S62: =IF(K62=0, 0, 1/COUNTIF($K$62:$K$63, "<>0")) -> 0.5
B63: Clean Energy Investment | C63: 0.3 | D63: Cost of Debt | E63: =E62 -> 0.17 | F63: 2.14 | G63: Swap rate | H63: Both | I63: 0.5 | J63: 0.0255 | K63: =IFERROR(INDEX(Indicator!$M$12:$M$4252, MATCH($F63&" > "&$C$24, Indicator!$R$12:$R$4252, 0), 1)*IF(Q63="Percentage (Source Calculated)", 100, 1), 0) -> 4.45 | L63: % | M63: =IF(J63="", "", IFERROR(J63*dbl_ScoreMax*MAX(0, IFERROR(INDEX(Indicator!$P$12:$P$4252, MATCH($F63&" > "&$C$24, Indicator!$R$12:$R$4252, 0), 1), 0))/100, 0)) -> 0.08595505618 | N63: 0.6741573034 | P63: 35 | Q63: Percentage (Source Hardcoded) | R63: =IF(K63=0, 0, 1/COUNTIF($K$62:$K$63, "<>0")) -> 0.5 | S63: =IF(K63=0, 0, 1/COUNTIF($K$62:$K$63, "<>0")) -> 0.5
B64: Low-Carbon Business | C64: 0.15 | D64: Value Chain | E64: 1 | F64: 3.01 | G64: Financial institutions in clean energy | H64: Both | I64: 0.25 | J64: 0.0375 | K64: =IFERROR(INDEX(Indicator!$M$12:$M$4252, MATCH($F64&" > "&$C$24, Indicator!$R$12:$R$4252, 0), 1)*IF(Q64="Percentage (Source Calculated)", 100, 1), 0) -> 5 | L64: =IF(K64=1, "Company Type", "Company Types") -> Company Types | M64: =IF(J64="", "", IFERROR(J64*dbl_ScoreMax*MAX(0, IFERROR(INDEX(Indicator!$P$12:$P$4252, MATCH($F64&" > "&$C$24, Indicator!$R$12:$R$4252, 0), 1), 0))/100, 0)) -> 0.1875 | N64: 1 | O64: =HYPERLINK(MID(CELL("FileName", str_Hyperlink301), FIND("[", CELL("FileName", str_Hyperlink301)), 255) & "!str_Hyperlink301", "LINK") -> LINK | P64: 36 | Q64: Decimal | R64: 0.2 | S64: 0.25
B65: Low-Carbon Business | C65: =C64 -> 0.15 | D65: Value Chain | E65: =E64 -> 1 | F65: 3.02 | G65: Value chains by clean energy sector | H65: Both | I65: 0.5 | J65: 0.075 | K65: =IFERROR(INDEX(Indicator!$M$12:$M$4252, MATCH($F65&" > "&$C$24, Indicator!$R$12:$R$4252, 0), 1)*IF(Q65="Percentage (Source Calculated)", 100, 1), 0) -> 38 | L65: =IF(K65=1, "Value Chain", "Value Chains") -> Value Chains | M65: =IF(J65="", "", IFERROR(J65*dbl_ScoreMax*MAX(0, IFERROR(INDEX(Indicator!$P$12:$P$4252, MATCH($F65&" > "&$C$24, Indicator!$R$12:$R$4252, 0), 1), 0))/100, 0)) -> 0.375 | N65: 1 | O65: =HYPERLINK(MID(CELL("FileName", str_Hyperlink302), FIND("[", CELL("FileName", str_Hyperlink302)), 255) & "!str_Hyperlink302", "LINK") -> LINK | P65: 37 | Q65: Decimal | R65: 0.2 | S65: 0.5
B66: Low-Carbon Business | C66: =C65 -> 0.15 | D66: Value Chain | E66: =E65 -> 1 | F66: 3.03 | G66: Distributed clean energy value chains by sector | H66: Off-grid | I66: 0 | J66: 0 | K66: =IFERROR(INDEX(Indicator!$M$12:$M$4252, MATCH($F66&" > "&$C$24, Indicator!$R$12:$R$4252, 0), 1)*IF(Q66="Percentage (Source Calculated)", 100, 1), 0) -> 0 | L66: =IF(K66=1, "Value Chain", "Value Chains") -> Value Chains | M66: =IF(J66="", "", IFERROR(J66*dbl_ScoreMax*MAX(0, IFERROR(INDEX(Indicator!$P$12:$P$4252, MATCH($F66&" > "&$C$24, Indicator!$R$12:$R$4252, 0), 1), 0))/100, 0)) -> 0 | N66: 0 | O66: =HYPERLINK(MID(CELL("FileName", str_Hyperlink303), FIND("[", CELL("FileName", str_Hyperlink303)), 255) & "!str_Hyperlink303", "LINK") -> LINK | P66: 38 | Q66: Decimal | R66: 0.2 | S66: 0
B67: Low-Carbon Business | C67: =C66 -> 0.15 | D67: Value Chain | E67: =E66 -> 1 | F67: 3.04 | G67: Clean energy service providers | H67: Both | I67: 0.25 | J67: 0.0375 | K67: =IFERROR(INDEX(Indicator!$M$12:$M$4252, MATCH($F67&" > "&$C$24, Indicator!$R$12:$R$4252, 0), 1)*IF(Q67="Percentage (Source Calculated)", 100, 1), 0) -> 20 | L67: =IF(K67=1, "Service Provider", "Sevice Providers") -> Sevice Providers | M67: =IF(J67="", "", IFERROR(J67*dbl_ScoreMax*MAX(0, IFERROR(INDEX(Indicator!$P$12:$P$4252, MATCH($F67&" > "&$C$24, Indicator!$R$12:$R$4252, 0), 1), 0))/100, 0)) -> 0.1875 | N67: 1 | O67: =HYPERLINK(MID(CELL("FileName", str_Hyperlink304), FIND("[", CELL("FileName", str_Hyperlink304)), 255) & "!str_Hyperlink304", "LINK") -> LINK | P67: 39 | Q67: Decimal | R67: 0.2 | S67: 0.25
B68: Low-Carbon Business | C68: =C67 -> 0.15 | D68: Value Chain | E68: =E67 -> 1 | F68: 3.05 | G68: Distributed clean energy service providers | H68: Off-grid | I68: 0 | J68: 0 | K68: =IFERROR(INDEX(Indicator!$M$12:$M$4252, MATCH($F68&" > "&$C$24, Indicator!$R$12:$R$4252, 0), 1)*IF(Q68="Percentage (Source Calculated)", 100, 1), 0) -> 0 | L68: =IF(K68=1, "Service Provider", "Sevice Providers") -> Sevice Providers | M68: =IF(J68="", "", IFERROR(J68*dbl_ScoreMax*MAX(0, IFERROR(INDEX(Indicator!$P$12:$P$4252, MATCH($F68&" > "&$C$24, Indicator!$R$12:$R$4252, 0), 1), 0))/100, 0)) -> 0 | N68: 0 | O68: =HYPERLINK(MID(CELL("FileName", str_Hyperlink305), FIND("[", CELL("FileName", str_Hyperlink305)), 255) & "!str_Hyperlink305", "LINK") -> LINK | P68: 40 | Q68: Decimal | R68: 0.2 | S68: 0
B69: GHG Management Activities | C69: 0.15 | D69: Carbon Offsets | E69: 0.4 | F69: 4.01 | G69: Carbon offsets historical activity | H69: Both | I69: 0.5 | J69: 0.03 | K69: =IFERROR(INDEX(Indicator!$M$12:$M$4252, MATCH($F69&" > "&$C$24, Indicator!$R$12:$R$4252, 0), 1)*IF(Q69="Percentage (Source Calculated)", 100, 1), 0) -> 2 | L69: Projects Score | M69: =IF(J69="", "", IFERROR(J69*dbl_ScoreMax*MAX(0, IFERROR(INDEX(Indicator!$P$12:$P$4252, MATCH($F69&" > "&$C$24, Indicator!$R$12:$R$4252, 0), 1), 0))/100, 0)) -> 0.075 | N69: 0.5 | P69: 41 | Q69: Decimal | R69: 0.5 | S69: 0.5
B70: GHG Management Activities | C70: =C69 -> 0.15 | D70: Carbon Offsets | E70: =E69 -> 0.4 | F70: 4.02 | G70: CDM risk | H70: Both | I70: 0.25 | J70: 0.015 | K70: =IFERROR(INDEX(Indicator!$M$12:$M$4252, MATCH($F70&" > "&$C$24, Indicator!$R$12:$R$4252, 0), 1)*IF(Q70="Percentage (Source Calculated)", 100, 1), 0) -> 5 | L70: Failures/Project | M70: =IF(J70="", "", IFERROR(J70*dbl_ScoreMax*MAX(0, IFERROR(INDEX(Indicator!$P$12:$P$4252, MATCH($F70&" > "&$C$24, Indicator!$R$12:$R$4252, 0), 1), 0))/100, 0)) -> 0.0625 | N70: 0.8333333333 | P70: 42 | Q70: Decimal | R70: 0.25 | S70: 0.25
B71: GHG Management Activities | C71: 0.15 | D71: Carbon Offsets | E71: =E70 -> 0.4 | F71: 4.03 | G71: Carbon offsets future potential | H71: Both | I71: 0.25 | J71: 0.015 | K71: =IFERROR(INDEX(Indicator!$M$12:$M$4252, MATCH($F71&" > "&$C$24, Indicator!$R$12:$R$4252, 0), 1)*IF(Q71="Percentage (Source Calculated)", 100, 1), 0) -> 1.02387068 | L71: Potential | M71: =IF(J71="", "", IFERROR(J71*dbl_ScoreMax*MAX(0, IFERROR(INDEX(Indicator!$P$12:$P$4252, MATCH($F71&" > "&$C$24, Indicator!$R$12:$R$4252, 0), 1), 0))/100, 0)) -> 0.01919757525 | N71: 0.25596767 | P71: 43 | Q71: Decimal | R71: 0.25 | S71: 0.25
B72: GHG Management Activities | C72: 0.15 | D72: Carbon Policy | E72: 0.3 | F72: 4.04 | G72: GHG emissions reduction target | H72: Both | I72: 0.4166666667 | J72: 0.01875 | K72: =IFERROR(INDEX(Indicator!$M$12:$M$4252, MATCH($F72&" > "&$C$24, Indicator!$R$12:$R$4252, 0), 1)*IF(Q72="Percentage (Source Calculated)", 100, 1), 0) -> 5 | L72: Target Score | M72: =IF(J72="", "", IFERROR(J72*dbl_ScoreMax*MAX(0, IFERROR(INDEX(Indicator!$P$12:$P$4252, MATCH($F72&" > "&$C$24, Indicator!$R$12:$R$4252, 0), 1), 0))/100, 0)) -> 0.09375 | N72: 1 | P72: 44 | Q72: Decimal | R72: 0.4166666667 | S72: 0.4166666667
B73: GHG Management Activities | C73: 0.15 | D73: Carbon Policy | E73: =E72 -> 0.3 | F73: 4.05 | G73: GHG country registry | H73: Both | I73: 0.25 | J73: 0.01125 | K73: =IFERROR(INDEX(Indicator!$M$12:$M$4252, MATCH($F73&" > "&$C$24, Indicator!$R$12:$R$4252, 0), 1)*IF(Q73="Percentage (Source Calculated)", 100, 1), 0) -> 3 | L73: Registry Score | M73: =IF(J73="", "", IFERROR(J73*dbl_ScoreMax*MAX(0, IFERROR(INDEX(Indicator!$P$12:$P$4252, MATCH($F73&" > "&$C$24, Indicator!$R$12:$R$4252, 0), 1), 0))/100, 0)) -> 0.05625 | N73: 1 | P73: 45 | Q73: Decimal | R73: 0.25 | S73: 0.25
B74: GHG Management Activities | C74: 0.15 | D74: Carbon Policy | E74: =E73 -> 0.3 | F74: 4.06 | G74: GHG market-based instruments | H74: Both | I74: 0.08333333333 | J74: 0.00375 | K74: =IFERROR(INDEX(Indicator!$M$12:$M$4252, MATCH($F74&" > "&$C$24, Indicator!$R$12:$R$4252, 0), 1)*IF(Q74="Percentage (Source Calculated)", 100, 1), 0) -> 0 | L74: Program | M74: =IF(J74="", "", IFERROR(J74*dbl_ScoreMax*MAX(0, IFERROR(INDEX(Indicator!$P$12:$P$4252, MATCH($F74&" > "&$C$24, Indicator!$R$12:$R$4252, 0), 1), 0))/100, 0)) -> 0 | N74: 0 | P74: 46 | Q74: Decimal | R74: 0.08333333333 | S74: 0.08333333333
B75: GHG Management Activities | C75: 0.15 | D75: Carbon Policy | E75: =E74 -> 0.3 | F75: 4.07 | G75: PMR & NAMA | H75: Both | I75: 0.25 | J75: 0.01125 | K75: =IFERROR(INDEX(Indicator!$M$12:$M$4252, MATCH($F75&" > "&$C$24, Indicator!$R$12:$R$4252, 0), 1)*IF(Q75="Percentage (Source Calculated)", 100, 1), 0) -> 3 | L75: PMR & NAMA | M75: =IF(J75="", "", IFERROR(J75*dbl_ScoreMax*MAX(0, IFERROR(INDEX(Indicator!$P$12:$P$4252, MATCH($F75&" > "&$C$24, Indicator!$R$12:$R$4252, 0), 1), 0))/100, 0)) -> 0.028125 | N75: 0.5 | P75: 47 | Q75: Decimal | R75: 0.25 | S75: 0.25
B76: GHG Management Activities | C76: 0.15 | D76: Corporate Awareness | E76: 0.3 | F76: 4.08 | G76: Voluntary GHG reporting by corporates | H76: Both | I76: 0.1666666667 | J76: 0.0075 | K76: =IFERROR(INDEX(Indicator!$M$12:$M$4252, MATCH($F76&" > "&$C$24, Indicator!$R$12:$R$4252, 0), 1)*IF(Q76="Percentage (Source Calculated)", 100, 1), 0) -> 0.02371759515 | L76: Companies | M76: =IF(J76="", "", IFERROR(J76*dbl_ScoreMax*MAX(0, IFERROR(INDEX(Indicator!$P$12:$P$4252, MATCH($F76&" > "&$C$24, Indicator!$R$12:$R$4252, 0), 1), 0))/100, 0)) -> 0.000889409818 | N76: 0.02371759515 | P76: 48 | Q76: Decimal | R76: 0.1666666667 | S76: 0.1666666667
B77: GHG Management Activities | C77: 0.15 | D77: Corporate Awareness | E77: =E76 -> 0.3 | F77: 4.09 | G77: Investor pressure – PRI signatories | H77: Both | I77: 0.1666666667 | J77: 0.0075 | K77: =IFERROR(INDEX(Indicator!$M$12:$M$4252, MATCH($F77&" > "&$C$24, Indicator!$R$12:$R$4252, 0), 1)*IF(Q77="Percentage (Source Calculated)", 100, 1), 0) -> 0.02012674899 | L77: Companies | M77: =IF(J77="", "", IFERROR(J77*dbl_ScoreMax*MAX(0, IFERROR(INDEX(Indicator!$P$12:$P$4252, MATCH($F77&" > "&$C$24, Indicator!$R$12:$R$4252, 0), 1), 0))/100, 0)) -> 0.0007547530871 | N77: 0.02012674899 | P77: 49 | Q77: Decimal | R77: 0.1666666667 | S77: 0.1666666667
B78: GHG Management Activities | C78: 0.15 | D78: Corporate Awareness | E78: =E77 -> 0.3 | F78: 4.1 | G78: Corporate energy efficiency initiatives | H78: Both | I78: 0.1666666667 | J78: 0.0075 | K78: =IFERROR(INDEX(Indicator!$M$12:$M$4252, MATCH($F78&" > "&$C$24, Indicator!$R$12:$R$4252, 0), 1)*IF(Q78="Percentage (Source Calculated)", 100, 1), 0) -> 1 | L78: Companies | M78: =IF(J78="", "", IFERROR(J78*dbl_ScoreMax*MAX(0, IFERROR(INDEX(Indicator!$P$12:$P$4252, MATCH($F78&" > "&$C$24, Indicator!$R$12:$R$4252, 0), 1), 0))/100, 0)) -> 0.0375 | N78: 1 | P78: 50 | Q78: Decimal | R78: 0.1666666667 | S78: 0.1666666667
B79: GHG Management Activities | C79: 0.15 | D79: Corporate Awareness | E79: =E78 -> 0.3 | F79: 4.11 | G79: Corporate emission reduction policies | H79: Both | I79: 0.1666666667 | J79: 0.0075 | K79: =IFERROR(INDEX(Indicator!$M$12:$M$4252, MATCH($F79&" > "&$C$24, Indicator!$R$12:$R$4252, 0), 1)*IF(Q79="Percentage (Source Calculated)", 100, 1), 0) -> 1 | L79: Companies | M79: =IF(J79="", "", IFERROR(J79*dbl_ScoreMax*MAX(0, IFERROR(INDEX(Indicator!$P$12:$P$4252, MATCH($F79&" > "&$C$24, Indicator!$R$12:$R$4252, 0), 1), 0))/100, 0)) -> 0.0375 | N79: 1 | P79: 51 | Q79: Decimal | R79: 0.1666666667 | S79: 0.1666666667
B80: GHG Management Activities | C80: 0.15 | D80: Corporate Awareness | E80: =E79 -> 0.3 | F80: 4.12 | G80: Capacity building – env. business training | H80: Both | I80: 0.1666666667 | J80: 0.0075 | K80: =IFERROR(INDEX(Indicator!$M$12:$M$4252, MATCH($F80&" > "&$C$24, Indicator!$R$12:$R$4252, 0), 1)*IF(Q80="Percentage (Source Calculated)", 100, 1), 0) -> 1 | L80: Organisations | M80: =IF(J80="", "", IFERROR(J80*dbl_ScoreMax*MAX(0, IFERROR(INDEX(Indicator!$P$12:$P$4252, MATCH($F80&" > "&$C$24, Indicator!$R$12:$R$4252, 0), 1), 0))/100, 0)) -> 0.0375 | N80: 1 | P80: 52 | Q80: Decimal | R80: 0.1666666667 | S80: 0.1666666667
B81: GHG Management Activities | C81: 0.15 | D81: Corporate Awareness | E81: =E80 -> 0.3 | F81: 4.13 | G81: Capacity building – think tanks | H81: Both | I81: 0.1666666667 | J81: 0.0075 | K81: =IFERROR(INDEX(Indicator!$M$12:$M$4252, MATCH($F81&" > "&$C$24, Indicator!$R$12:$R$4252, 0), 1)*IF(Q81="Percentage (Source Calculated)", 100, 1), 0) -> 1 | L81: Organisations | M81: =IF(J81="", "", IFERROR(J81*dbl_ScoreMax*MAX(0, IFERROR(INDEX(Indicator!$P$12:$P$4252, MATCH($F81&" > "&$C$24, Indicator!$R$12:$R$4252, 0), 1), 0))/100, 0)) -> 0.0375 | N81: 1 | P81: 53 | Q81: Decimal | R81: 0.1666666667 | S81: 0.1666666667
B83: FURTHER INDICATOR DETAILS | E83: MAX
A84: 1.01 | B84: 1.01 - Clean energy policies | D84: =COUNTIF(D85:D92, "Yes") -> 7 | E84: =COUNTA($E$85:$E$92) -> 8
A85: =A84 -> 1.01 | B85: Energy target | D85: =IF(F85=1, "Yes", "No") -> Yes | E85: Yes | F85: =SUMIFS(SubIndicator!V$5:V$3684, SubIndicator!$W$5:$W$3684, A85&" > "&B85&" > "&str_Country) -> 1
A86: =A85 -> 1.01 | B86: Auctions | D86: =IF(F86=1, "Yes", "No") -> Yes | E86: Yes | F86: =SUMIFS(SubIndicator!V$5:V$3684, SubIndicator!$W$5:$W$3684, A86&" > "&B86&" > "&str_Country) -> 1
A87: 1.01 | B87: Feed-in tariff | D87: Yes | E87: Yes | F87: =SUMIFS(SubIndicator!V$5:V$3684, SubIndicator!$W$5:$W$3684, A87&" > "&B87&" > "&str_Country) -> 1
A88: 1.01 | B88: Net metering | D88: No | E88: Yes | F88: =SUMIFS(SubIndicator!V$5:V$3684, SubIndicator!$W$5:$W$3684, A88&" > "&B88&" > "&str_Country) -> 0
A89: 1.01 | B89: Utility regulation | D89: Yes | E89: Yes | F89: =SUMIFS(SubIndicator!V$5:V$3684, SubIndicator!$W$5:$W$3684, A89&" > "&B89&" > "&str_Country) -> 1
A90: 1.01 | B90: Debt/Equity incentives | D90: Yes | E90: Yes | F90: =SUMIFS(SubIndicator!V$5:V$3684, SubIndicator!$W$5:$W$3684, A90&" > "&B90&" > "&str_Country) -> 1
A91: 1.01 | B91: Tax incentives | D91: Yes | E91: Yes | F91: =SUMIFS(SubIndicator!V$5:V$3684, SubIndicator!$W$5:$W$3684, A91&" > "&B91&" > "&str_Country) -> 1
A92: 1.01 | B92: Biofuel blending mandate | D92: Yes | E92: Yes | F92: =SUMIFS(SubIndicator!V$5:V$3684, SubIndicator!$W$5:$W$3684, A92&" > "&B92&" > "&str_Country) -> 1
A93: 1.02 | B93: 1.02 - Power sector structure | D93: =$K$30 -> 7.125 | E93: =Indicator!$O$92 -> 11
A94: =A93 -> 1.02 | B94: Public or private vertically integrated monopoly utility | D94: =IF(F94=0, "Yes", IF(AND(F94>0, F94<1), "Somewhat", "No")) -> No | E94: No | F94: =SUMIFS(SubIndicator!V$5:V$3684, SubIndicator!$W$5:$W$3684, A94&" > "&B94&" > "&str_Country) -> 1
A95: 1.02 | B95: Generation/transmission/distribution are legally separate entities | D95: =IF(F95=0, "No", IF(AND(F95>0, F95<1), "Somewhat", "Yes")) -> Somewhat | E95: Yes | F95: =SUMIFS(SubIndicator!V$5:V$3684, SubIndicator!$W$5:$W$3684, A95&" > "&B95&" > "&str_Country) -> 0.5
A96: 1.02 | B96: Independent power transmission | D96: =IF(F96=0, "No", IF(AND(F96>0, F96<1), "Somewhat", "Yes")) -> No | E96: Yes | F96: =SUMIFS(SubIndicator!V$5:V$3684, SubIndicator!$W$5:$W$3684, A96&" > "&B96&" > "&str_Country) -> 0
A97: 1.02 | B97: Distortions to retail electricity prices | D97: =IF(F97=0, "Yes", IF(AND(F97>0, F97<1), "Somewhat", "No")) -> No | E97: No | F97: =SUMIFS(SubIndicator!V$5:V$3684, SubIndicator!$W$5:$W$3684, A97&" > "&B97&" > "&str_Country) -> 1
A98: 1.02 | B98: Cross-border power exchange | D98: =IF(F98=0, "No", IF(AND(F98>0, F98<1), "Somewhat", "Yes")) -> No | E98: Yes | F98: =SUMIFS(SubIndicator!V$5:V$3684, SubIndicator!$W$5:$W$3684, A98&" > "&B98&" > "&str_Country) -> 0
A99: 1.02 | B99: Power outages - frequency | D99: =IF(F99<=0.13, "Very High", IF(AND(F99>0.13, F99<=0.25), "High", IF(AND(F99>0.25, F99<=0.38), "Regular", IF(AND(F99>0.38, F99<=0.5), "Low", "Very Low")))) -> Low | E99: Very Low | F99: =SUMIFS(SubIndicator!V$5:V$3684, SubIndicator!$W$5:$W$3684, A99&" > "&B99&" > "&str_Country) -> 0.5
A100: 1.02 | B100: Power outages - duration | D100: =IF(F100<=0.13, "Very Long", IF(AND(F100>0.13, F100<=0.25), "Long", IF(AND(F100>0.25, F100<=0.38), "Regular", IF(AND(F100>0.38, F100<=0.5), "Short", "Very Short")))) -> Very Long | E100: Very Short | F100: =SUMIFS(SubIndicator!V$5:V$3684, SubIndicator!$W$5:$W$3684, A100&" > "&B100&" > "&str_Country) -> 0.125
A101: 1.02 | B101: Barriers to private sector participation | D101: =IF(F101=0, "No", IF(AND(F101>0, F101<1), "Somewhat", "Yes")) -> Yes | E101: Yes | F101: =SUMIFS(SubIndicator!V$5:V$3684, SubIndicator!$W$5:$W$3684, A101&" > "&B101&" > "&str_Country) -> 1
A102: 1.02 | B102: End-users may choose third-party power marketers | D102: =IF(F102=0, "No", IF(AND(F102>0, F102<1), "Somewhat", "Yes")) -> Somewhat | E102: Yes | F102: =SUMIFS(SubIndicator!V$5:V$3684, SubIndicator!$W$5:$W$3684, A102&" > "&B102&" > "&str_Country) -> 0.5
A103: 1.02 | B103: Presence of wholesale power market | D103: =IF(F103=0, "No", IF(AND(F103>0, F103<1), "Somewhat", "Yes")) -> No | E103: Yes | F103: =SUMIFS(SubIndicator!V$5:V$3684, SubIndicator!$W$5:$W$3684, A103&" > "&B103&" > "&str_Country) -> 0
A104: 1.02 | B104: Concentration of generation market | D104: =IF(F104=0, "Yes", IF(AND(F104>0, F104<0.5), "Somewhat", "No")) -> Yes | E104: No | F104: =SUMIFS(SubIndicator!V$5:V$3684, SubIndicator!$W$5:$W$3684, A104&" > "&B104&" > "&str_Country) -> 0
A105: 1.02 | B105: Concentration of supply market | D105: =IF(F105=0, "Yes", IF(AND(F105>0, F105<0.5), "Somewhat", "No")) -> Yes | E105: No | F105: =SUMIFS(SubIndicator!V$5:V$3684, SubIndicator!$W$5:$W$3684, A105&" > "&B105&" > "&str_Country) -> 0
A106: 1.02 | B106: Openness to newcomers (IPPs) | D106: =SUMIFS(SubIndicator!V$5:V$3684, SubIndicator!$W$5:$W$3684, A106&" > "&B106&" > "&str_Country) -> 0.5 | E106: 1 | F106: =SUMIFS(SubIndicator!V$5:V$3684, SubIndicator!$W$5:$W$3684, A106&" > "&B106&" > "&str_Country) -> 0.5
A107: 1.02 | B107: Credit-worthiness of offtakers | D107: =IF(F107=0, "Very Risky", IF(F107=0.25, "Risky", IF(F107=0.5, "Neutral", IF(F107=1, "Low Risk", "Very Low Risk")))) -> Very Low Risk | E107: Very Low | F107: =SUMIFS(SubIndicator!V$5:V$3684, SubIndicator!$W$5:$W$3684, A107&" > "&B107&" > "&str_Country) -> 2
A108: 1.03 | B108: 1.03 - Distributed energy regulatory framework | D108: =IF($S$27="Off-grid",$K$31,"Off-grid only") -> Off-grid only | E108: =IF($S$27="Off-grid",Indicator!$O$172,"None") -> None
A109: =A108 -> 1.03 | B109: Mini-grids: requirements & license | D109: =IF($S$27="Off-grid",IF(F109=0,"No",IF(AND(F109>0,F109<1),"Somewhat","Yes")),"N/A") -> N/A | E109: =IF($S$27="Off-grid","Yes","None") -> None | F109: =SUMIFS(SubIndicator!V$5:V$3684, SubIndicator!$W$5:$W$3684, A109&" > "&B109&" > "&str_Country) -> 0
A110: 1.03 | B110: Mini-grids: threshold | D110: =IF($S$27="Off-grid",IF(F110=0,"Yes",IF(AND(F110>0,F110<1),"Somewhat","No")),"N/A") -> N/A | E110: =IF($S$27="Off-grid","No","None") -> None | F110: =SUMIFS(SubIndicator!V$5:V$3684, SubIndicator!$W$5:$W$3684, A110&" > "&B110&" > "&str_Country) -> 0
A111: 1.03 | B111: Dedicated regulator | D111: =IF($S$27="Off-grid",IF(F111=0,"No",IF(AND(F111>0,F111<1),"Somewhat","Yes")),"N/A") -> N/A | E111: =IF($S$27="Off-grid","Yes","None") -> None | F111: =SUMIFS(SubIndicator!V$5:V$3684, SubIndicator!$W$5:$W$3684, A111&" > "&B111&" > "&str_Country) -> 0
A112: 1.03 | B112: Dedicated team within utility | D112: N/A | E112: None | F112: =SUMIFS(SubIndicator!V$5:V$3684, SubIndicator!$W$5:$W$3684, A112&" > "&B112&" > "&str_Country) -> 0
A113: 1.03 | B113: Light-handed regulatory framework | D113: N/A | E113: None | F113: =SUMIFS(SubIndicator!V$5:V$3684, SubIndicator!$W$5:$W$3684, A113&" > "&B113&" > "&str_Country) -> 0
A114: 1.03 | B114: Cost reflective tariffs | D114: N/A | E114: None | F114: =SUMIFS(SubIndicator!V$5:V$3684, SubIndicator!$W$5:$W$3684, A114&" > "&B114&" > "&str_Country) -> 0
A115: 1.03 | B115: Duration of tariffs | D115: N/A | E115: None | F115: =SUMIFS(SubIndicator!V$5:V$3684, SubIndicator!$W$5:$W$3684, A115&" > "&B115&" > "&str_Country) -> 0
A116: 1.03 | B116: Tariff deregulation | D116: N/A | E116: None | F116: =SUMIFS(SubIndicator!V$5:V$3684, SubIndicator!$W$5:$W$3684, A116&" > "&B116&" > "&str_Country) -> 0
A117: 1.03 | B117: Standardised PPAs | D117: N/A | E117: None | F117: =SUMIFS(SubIndicator!V$5:V$3684, SubIndicator!$W$5:$W$3684, A117&" > "&B117&" > "&str_Country) -> 0
A118: 1.03 | B118: PPAs of sufficient duration | D118: N/A | E118: None | F118: =SUMIFS(SubIndicator!V$5:V$3684, SubIndicator!$W$5:$W$3684, A118&" > "&B118&" > "&str_Country) -> 0
A119: 1.03 | B119: Purchase obligation | D119: N/A | E119: None | F119: =SUMIFS(SubIndicator!V$5:V$3684, SubIndicator!$W$5:$W$3684, A119&" > "&B119&" > "&str_Country) -> 0
A120: 1.03 | B120: Clear rules on interconnection | D120: N/A | E120: None | F120: =SUMIFS(SubIndicator!V$5:V$3684, SubIndicator!$W$5:$W$3684, A120&" > "&B120&" > "&str_Country) -> 0
A121: 1.03 | B121: Clear rules on arrival of the main grid | D121: N/A | E121: None | F121: =SUMIFS(SubIndicator!V$5:V$3684, SubIndicator!$W$5:$W$3684, A121&" > "&B121&" > "&str_Country) -> 0
A122: 1.03 | B122: Quality of service standards | D122: N/A | E122: None | F122: =SUMIFS(SubIndicator!V$5:V$3684, SubIndicator!$W$5:$W$3684, A122&" > "&B122&" > "&str_Country) -> 0
A123: 1.03 | B123: SPPs can deliver financial services | D123: N/A | E123: None | F123: =SUMIFS(SubIndicator!V$5:V$3684, SubIndicator!$W$5:$W$3684, A123&" > "&B123&" > "&str_Country) -> 0
A124: 1.05 | B124: 1.05 - Energy access policies | D124: =IF($S$27="Off-grid",$K$33,"Off-grid only") -> Off-grid only | E124: =IF($S$27="Off-grid",Indicator!$O$332,"None") -> None
A125: =A124 -> 1.05 | B125: [Rural Electrification] Program status | D125: =IF($S$27="Off-grid",IF(F125=0,"No",IF(AND(F125>0,F125<1),"Somewhat","Yes")),"N/A") -> N/A | E125: =IF($S$27="Off-grid","Yes","None") -> None | F125: =SUMIFS(SubIndicator!V$5:V$3764, SubIndicator!$W$5:$W$3764, A125&" > "&B125&" > "&str_Country) -> 0
A126: 1.05 | B126: [Rural Electrification] Dedicated agency | D126: =IF($S$27="Off-grid",IF(F126=0,"No",IF(AND(F126>0,F126<1),"Somewhat","Yes")),"N/A") -> N/A | E126: =IF($S$27="Off-grid","Yes","None") -> None | F126: =SUMIFS(SubIndicator!V$5:V$3764, SubIndicator!$W$5:$W$3764, A126&" > "&B126&" > "&str_Country) -> 0
A127: 1.05 | B127: [Rural Electrification] Budget | D127: =IF($S$27="Off-grid",IF(F127<0.1, "Relatively Low", IF(AND(F127>=0.1, F127<0.2), "Average", "Relatively High")),"N/A") -> N/A | E127: =IF($S$27="Off-grid","High","None") -> None | F127: =SUMIFS(SubIndicator!V$5:V$3764, SubIndicator!$W$5:$W$3764, A127&" > "&B127&" > "&str_Country) -> 0
A128: 1.05 | B128: Energy access targets | D128: =IF($S$27="Off-grid",IF(F128=0,"No",IF(AND(F128>0,F128<1),"Somewhat","Yes")),"N/A") -> N/A | E128: =IF($S$27="Off-grid","Yes","None") -> None | F128: =SUMIFS(SubIndicator!V$5:V$3764, SubIndicator!$W$5:$W$3764, A128&" > "&B128&" > "&str_Country) -> 0
A129: 1.05 | B129: Clean energy plan | D129: N/A | E129: None | F129: =SUMIFS(SubIndicator!V$5:V$3764, SubIndicator!$W$5:$W$3764, A129&" > "&B129&" > "&str_Country) -> 0
A130: 1.05 | B130: Connection grants | D130: N/A | E130: None | F130: =SUMIFS(SubIndicator!V$5:V$3764, SubIndicator!$W$5:$W$3764, A130&" > "&B130&" > "&str_Country) -> 0
A131: 1.05 | B131: Generation incentives | D131: N/A | E131: None | F131: =SUMIFS(SubIndicator!V$5:V$3764, SubIndicator!$W$5:$W$3764, A131&" > "&B131&" > "&str_Country) -> 0
A132: 1.05 | B132: Tax / duty reductions | D132: N/A | E132: None | F132: =SUMIFS(SubIndicator!V$5:V$3764, SubIndicator!$W$5:$W$3764, A132&" > "&B132&" > "&str_Country) -> 0
A133: 1.05 | B133: Incentives: mobile money | D133: N/A | E133: None | F133: =SUMIFS(SubIndicator!V$5:V$3764, SubIndicator!$W$5:$W$3764, A133&" > "&B133&" > "&str_Country) -> 0
A134: 1.05 | B134: Barriers: licensing | D134: N/A | E134: None | F134: =SUMIFS(SubIndicator!V$5:V$3764, SubIndicator!$W$5:$W$3764, A134&" > "&B134&" > "&str_Country) -> 0
A135: 1.07 | B135: 1.07 - Clean energy capacity (MW) | D135: =SUM(C136:C140) -> 201358
A136: =A135 -> 1.07 | B136: Biomass & Waste | C136: =SUMIFS(SubIndicator!V$3845:V$4884, SubIndicator!$K$3845:$K$4884, str_Country, SubIndicator!$E$3845:$E$4884, $B136) -> 9000 | D136: =IF($D$135=0,0,C136/SUM($C$136:$C$141)) -> 0.006511462344
A137: 1.07 | B137: Geothermal | C137: =SUMIFS(SubIndicator!V$3845:V$4884, SubIndicator!$K$3845:$K$4884, str_Country, SubIndicator!$E$3845:$E$4884, $B137) -> 28 | D137: 2.025788285e-05
A138: 1.07 | B138: Small Hydro | C138: =SUMIFS(SubIndicator!V$3845:V$4884, SubIndicator!$K$3845:$K$4884, str_Country, SubIndicator!$E$3845:$E$4884, $B138) -> 70000 | D138: 0.05064470712
A139: 1.07 | B139: Solar | C139: =SUMIFS(SubIndicator!V$3845:V$4884, SubIndicator!$K$3845:$K$4884, str_Country, SubIndicator!$E$3845:$E$4884, $B139) -> 26520 | D139: 0.01918710904
A140: 1.07 | B140: Wind | C140: =SUMIFS(SubIndicator!V$3845:V$4884, SubIndicator!$K$3845:$K$4884, str_Country, SubIndicator!$E$3845:$E$4884, $B140) -> 95810 | D140: 0.06931813413
A141: 1.07 | B141: Other Energy | C141: =SUMIFS(SubIndicator!V$3845:V$4884, SubIndicator!$K$3845:$K$4884, str_Country, SubIndicator!$E$3845:$E$4884, "All Energy")-D135 -> 1180820 | D141: 0.8543183295
A142: 1.07 | B142: Capacity (MW) - Cumulative
A143: 1.07
A144: 1.07
A145: 1.07
A146: 1.07
A147: 1.07
A148: 1.07
A149: 1.07
A150: 1.07
A151: 1.07
A152: 1.07
A153: 1.07
A154: 1.07
A155: 1.07
A156: 1.07
A157: 1.07
A158: 1.07
A159: 1.07
A160: 1.07
A161: 1.09 | B161: 1.09 - Clean energy generation (GWh) | D161: =SUM(C162:C166) -> 535370
A162: =A161 -> 1.09 | B162: Biomass & Waste | C162: =SUMIFS(SubIndicator!V$4965:V$6004, SubIndicator!$K$4965:$K$6004, str_Country, SubIndicator!$E$4965:$E$6004, $B162) -> 36000 | D162: =IF($D$135=0,0,C162/SUM($C$162:$C$167)) -> 0.006450526255
A163: 1.09 | B163: Geothermal | C163: =SUMIFS(SubIndicator!V$4965:V$6004, SubIndicator!$K$4965:$K$6004, str_Country, SubIndicator!$E$4965:$E$6004, $B163) -> 140 | D163: 2.508537988e-05
A164: 1.09 | B164: Small Hydro | C164: =SUMIFS(SubIndicator!V$4965:V$6004, SubIndicator!$K$4965:$K$6004, str_Country, SubIndicator!$E$4965:$E$6004, $B164) -> 319830 | D164: 0.05730755034
A165: 1.09 | B165: Solar | C165: =SUMIFS(SubIndicator!V$4965:V$6004, SubIndicator!$K$4965:$K$6004, str_Country, SubIndicator!$E$4965:$E$6004, $B165) -> 23100 | D165: 0.004139087681
A166: 1.09 | B166: Wind | C166: =SUMIFS(SubIndicator!V$4965:V$6004, SubIndicator!$K$4965:$K$6004, str_Country, SubIndicator!$E$4965:$E$6004, $B166) -> 156300 | D166: 0.02800603483
A167: 1.09 | B167: Other Energy | C167: =SUMIFS(SubIndicator!V$4965:V$6004, SubIndicator!$K$4965:$K$6004, str_Country, SubIndicator!$E$4965:$E$6004, "All Energy")-D161 -> 5045570 | D167: 0.9040717155
A168: 1.09 | B168: Generation (GWh) - Cumulative
A169: 1.09
A170: 1.09
A171: 1.09
A172: 1.09
A173: 1.09
A174: 1.09
A175: 1.09
A176: 1.09
A177: 1.09
A178: 1.09
A179: 1.09
A180: 1.09
A181: 1.09
A182: 1.09
A183: 1.09
A184: 1.09
A185: 1.09
A186: 1.09
A187: 1.09 | B187: Clean Energy Capacity Factors (%) | D187: =IFERROR(AVERAGEIF(D188:D192, "<>0"), 0) -> 0.3669268138
A188: 1.09 | B188: Biomass & Waste | D188: =IF(C136=0,0,(C162*1000)/(8760*C136)) -> 0.4566210046
A189: 1.09 | B189: Geothermal | D189: 0.5707762557
A190: 1.09 | B190: Small Hydro | D190: 0.5215753425
A191: 1.09 | B191: Solar | D191: =IF(C139=0,0,(C165*1000)/(8760*C139)) -> 0.0994338726
A192: 1.09 | B192: Wind | D192: =IF(C140=0,0,(C166*1000)/(8760*C140)) -> 0.1862275937
A193: 1.09 | B193: Other Energy | D193: 0.4877782477
A194: 2.01 | B194: 2.01 - Clean energy investments (USDm) | D194: =SUM(C196:C202) -> 303775.3166
A195: =A194 -> 2.01 | B195: All
A196: 2.01 | B196: Biofuels | C196: =ChartData!L29 -> 1389.908946 | D196: =IF($D$194=0, 0, C196/$D$194) -> 0.004575450571
A197: 2.01 | B197: Biomass & Waste | C197: =ChartData!L30 -> 14329.09901 | D197: 0.04717005703
A198: 2.01 | B198: Geothermal | C198: =ChartData!L31 -> 1.9930778 | D198: 6.561026164e-06
A199: 2.01 | B199: Small Hydro | C199: =ChartData!L32 -> 11419.11861 | D199: 0.03759067307
A200: 2.01 | B200: Solar | C200: =ChartData!L33 -> 116420.3378 | D200: 0.3832448899
A201: 2.01 | B201: Wind | C201: =ChartData!L34 -> 157665.7067 | D201: 0.5190207961
A202: 2.01 | B202: Other Clean Energy | C202: =ChartData!L35 -> 2549.152522 | D202: 0.008391572267
... 102 more rows

Sheet Indicator (hidden)
A1: INDICATOR DATABASE
A3: Internal Assumptions
A4: Model Base Year | D4: 2014
A5: Investment Year | D5: 2010
A6: Growth Rate Cap (%) | D6: 1.5
A7: Maximum Score | D7: 5
A8: Benchmark Max | D8: 100
A10: Indicator Database | J10: =int_Year -> 2014
A11: ID. | B11: Parameter | C11: Category | D11: Indicator | E11: On/Off-Grid | F11: Levelisation | G11: Units | H11: Region | I11: Countries & States | J11: Best | K11: User Defined | L11: Levelisation | M11: Data (Actual) | N11: Data (Levelised) | O11: Benchmark | P11: Score | Q11: Hardcoded Scores | R11: Row Description | S11: Row | T11: Indicator
A12: 1.01 | B12: Enabling framework | C12: Policy & Regulation | D12: Clean energy policies | E12: Both | F12: None | G12: Policy Types | H12: Africa | I12: Botswana | J12: User Defined | K12: 5 | L12: =IFERROR(IF($F12="None", 1, INDEX(SubIndicator!$L$15445:$U$15924, MATCH($F12&" > "&$I12, SubIndicator!$Y$15445:$Y$15924, 0), MATCH(int_Year, SubIndicator!$L$4:$U$4, 0))), 1) -> 1 | M12: =SUMIFS(SubIndicator!V$5:V$16158, SubIndicator!$X$5:$X$16158, $R12) -> 1 | N12: =IFERROR(IF(ISNUMBER(Q12), MAX(Q12/L12, 0), MAX(IF(LEFT(D12, 11)="Growth rate", MIN(M12, dbl_GrowthCap), M12)/L12, 0)), 0) -> 0.4355968829 | O12: =IFERROR(IF(J12="User Defined", $K12, IF(J12="Min", SMALL(N12:N91, COUNTIF(N12:N91, 0)+1), IF(J12="Max", MAX(N12:N91), IF(J12="Average", AVERAGEIF(N12:N91, "<>0"), IF(J12="Total", SUM(N12:N91), 0))))), 0) -> 5 | P12: =IFERROR(dbl_BenchmarkMax*IF(J12="Min", O12/N12, N12/O12), 0) -> 8.711937658 | Q12: 0.4355968829 | R12: =A12&" > " &I12 -> 1.01 > Botswana | S12: 1 | T12: =ROUNDUP(S12/COUNTA($I$12:$I$91),0) -> 1
A13: 1.01 | B13: Enabling framework | C13: Policy & Regulation | D13: Clean energy policies | E13: Both | F13: None | G13: Policy Types | H13: Africa | I13: Cameroon | J13: =J12 -> User Defined | K13: =K12 -> 5 | L13: =IFERROR(IF($F13="None", 1, INDEX(SubIndicator!$L$15445:$U$15924, MATCH($F13&" > "&$I13, SubIndicator!$Y$15445:$Y$15924, 0), MATCH(int_Year, SubIndicator!$L$4:$U$4, 0))), 1) -> 1 | M13: =SUMIFS(SubIndicator!V$5:V$16158, SubIndicator!$X$5:$X$16158, $R13) -> 1 | N13: =IFERROR(IF(ISNUMBER(Q13), MAX(Q13/L13, 0), MAX(IF(LEFT(D13, 11)="Growth rate", MIN(M13, dbl_GrowthCap), M13)/L13, 0)), 0) -> 0.5736034217 | O13: =O12 -> 5 | P13: 11.47206843 | Q13: 0.5736034217 | R13: 1.01 > Cameroon | S13: =S12+1 -> 2 | T13: 1
A14: 1.01 | B14: Enabling framework | C14: Policy & Regulation | D14: Clean energy policies | E14: Both | F14: None | G14: Policy Types | H14: Africa | I14: Cote d'Ivoire | J14: =J13 -> User Defined | K14: =K13 -> 5 | L14: =IFERROR(IF($F14="None", 1, INDEX(SubIndicator!$L$15445:$U$15924, MATCH($F14&" > "&$I14, SubIndicator!$Y$15445:$Y$15924, 0), MATCH(int_Year, SubIndicator!$L$4:$U$4, 0))), 1) -> 1 | M14: =SUMIFS(SubIndicator!V$5:V$16158, SubIndicator!$X$5:$X$16158, $R14) -> 3 | N14: 0.8664642878 | O14: =O13 -> 5 | P14: 17.32928576 | Q14: 0.8664642878 | R14: 1.01 > Cote d'Ivoire | S14: =S13+1 -> 3 | T14: 1
A15: 1.01 | B15: Enabling framework | C15: Policy & Regulation | D15: Clean energy policies | E15: Both | F15: None | G15: Policy Types | H15: Africa | I15: Congo (Dem. Rep.) | J15: User Defined | K15: 5 | L15: =IFERROR(IF($F15="None", 1, INDEX(SubIndicator!$L$15445:$U$15924, MATCH($F15&" > "&$I15, SubIndicator!$Y$15445:$Y$15924, 0), MATCH(int_Year, SubIndicator!$L$4:$U$4, 0))), 1) -> 1 | M15: =SUMIFS(SubIndicator!V$5:V$16158, SubIndicator!$X$5:$X$16158, $R15) -> 1 | N15: 0.2356785496 | O15: 5 | P15: 4.713570992 | Q15: 0.2356785496 | R15: 1.01 > Congo (Dem. Rep.) | S15: 4 | T15: 1
A16: 1.01 | B16: Enabling framework | C16: Policy & Regulation | D16: Clean energy policies | E16: Both | F16: None | G16: Policy Types | H16: Africa | I16: Ethiopia | J16: User Defined | K16: 5 | L16: =IFERROR(IF($F16="None", 1, INDEX(SubIndicator!$L$15445:$U$15924, MATCH($F16&" > "&$I16, SubIndicator!$Y$15445:$Y$15924, 0), MATCH(int_Year, SubIndicator!$L$4:$U$4, 0))), 1) -> 1 | M16: =SUMIFS(SubIndicator!V$5:V$16158, SubIndicator!$X$5:$X$16158, $R16) -> 4 | N16: 1.379541485 | O16: 5 | P16: 27.5908297 | Q16: 1.379541485 | R16: 1.01 > Ethiopia | S16: 5 | T16: 1
A17: 1.01 | B17: Enabling framework | C17: Policy & Regulation | D17: Clean energy policies | E17: Both | F17: None | G17: Policy Types | H17: Africa | I17: Ghana | J17: User Defined | K17: 5 | L17: =IFERROR(IF($F17="None", 1, INDEX(SubIndicator!$L$15445:$U$15924, MATCH($F17&" > "&$I17, SubIndicator!$Y$15445:$Y$15924, 0), MATCH(int_Year, SubIndicator!$L$4:$U$4, 0))), 1) -> 1 | M17: =SUMIFS(SubIndicator!V$5:V$16158, SubIndicator!$X$5:$X$16158, $R17) -> 1 | N17: 1.432115388 | O17: 5 | P17: 28.64230777 | Q17: 1.432115388 | R17: 1.01 > Ghana | S17: 6 | T17: 1
A18: 1.01 | B18: Enabling framework | C18: Policy & Regulation | D18: Clean energy policies | E18: Both | F18: None | G18: Policy Types | H18: Africa | I18: Kenya | J18: User Defined | K18: 5 | L18: =IFERROR(IF($F18="None", 1, INDEX(SubIndicator!$L$15445:$U$15924, MATCH($F18&" > "&$I18, SubIndicator!$Y$15445:$Y$15924, 0), MATCH(int_Year, SubIndicator!$L$4:$U$4, 0))), 1) -> 1 | M18: =SUMIFS(SubIndicator!V$5:V$16158, SubIndicator!$X$5:$X$16158, $R18) -> 5 | N18: 2.055257039 | O18: 5 | P18: 41.10514077 | Q18: 2.055257039 | R18: 1.01 > Kenya | S18: 7 | T18: 1
A19: 1.01 | B19: Enabling framework | C19: Policy & Regulation | D19: Clean energy policies | E19: Both | F19: None | G19: Policy Types | H19: Africa | I19: Liberia | J19: User Defined | K19: 5 | L19: =IFERROR(IF($F19="None", 1, INDEX(SubIndicator!$L$15445:$U$15924, MATCH($F19&" > "&$I19, SubIndicator!$Y$15445:$Y$15924, 0), MATCH(int_Year, SubIndicator!$L$4:$U$4, 0))), 1) -> 1 | M19: =SUMIFS(SubIndicator!V$5:V$16158, SubIndicator!$X$5:$X$16158, $R19) -> 2 | N19: 1.030928736 | O19: 5 | P19: 20.61857471 | Q19: 1.030928736 | R19: 1.01 > Liberia | S19: 8 | T19: 1
A20: 1.01 | B20: Enabling framework | C20: Policy & Regulation | D20: Clean energy policies | E20: Both | F20: None | G20: Policy Types | H20: Africa | I20: Malawi | J20: User Defined | K20: 5 | L20: =IFERROR(IF($F20="None", 1, INDEX(SubIndicator!$L$15445:$U$15924, MATCH($F20&" > "&$I20, SubIndicator!$Y$15445:$Y$15924, 0), MATCH(int_Year, SubIndicator!$L$4:$U$4, 0))), 1) -> 1 | M20: =SUMIFS(SubIndicator!V$5:V$16158, SubIndicator!$X$5:$X$16158, $R20) -> 4 | N20: 1.329865003 | O20: 5 | P20: 26.59730006 | Q20: 1.329865003 | R20: 1.01 > Malawi | S20: 9 | T20: 1
A21: 1.01 | B21: Enabling framework | C21: Policy & Regulation | D21: Clean energy policies | E21: Both | F21: None | G21: Policy Types | H21: Africa | I21: Mozambique | J21: User Defined | K21: 5 | L21: =IFERROR(IF($F21="None", 1, INDEX(SubIndicator!$L$15445:$U$15924, MATCH($F21&" > "&$I21, SubIndicator!$Y$15445:$Y$15924, 0), MATCH(int_Year, SubIndicator!$L$4:$U$4, 0))), 1) -> 1 | M21: =SUMIFS(SubIndicator!V$5:V$16158, SubIndicator!$X$5:$X$16158, $R21) -> 3 | N21: 1.864407518 | O21: 5 | P21: 37.28815036 | Q21: 1.864407518 | R21: 1.01 > Mozambique | S21: 10 | T21: 1
A22: 1.01 | B22: Enabling framework | C22: Policy & Regulation | D22: Clean energy policies | E22: Both | F22: None | G22: Policy Types | H22: Africa | I22: Nigeria | J22: User Defined | K22: 5 | L22: =IFERROR(IF($F22="None", 1, INDEX(SubIndicator!$L$15445:$U$15924, MATCH($F22&" > "&$I22, SubIndicator!$Y$15445:$Y$15924, 0), MATCH(int_Year, SubIndicator!$L$4:$U$4, 0))), 1) -> 1 | M22: =SUMIFS(SubIndicator!V$5:V$16158, SubIndicator!$X$5:$X$16158, $R22) -> 7 | N22: 1.434183859 | O22: 5 | P22: 28.68367718 | Q22: 1.434183859 | R22: 1.01 > Nigeria | S22: 11 | T22: 1
A23: 1.01 | B23: Enabling framework | C23: Policy & Regulation | D23: Clean energy policies | E23: Both | F23: None | G23: Policy Types | H23: Africa | I23: Rwanda | J23: User Defined | K23: 5 | L23: =IFERROR(IF($F23="None", 1, INDEX(SubIndicator!$L$15445:$U$15924, MATCH($F23&" > "&$I23, SubIndicator!$Y$15445:$Y$15924, 0), MATCH(int_Year, SubIndicator!$L$4:$U$4, 0))), 1) -> 1 | M23: =SUMIFS(SubIndicator!V$5:V$16158, SubIndicator!$X$5:$X$16158, $R23) -> 5 | N23: 1.918984367 | O23: 5 | P23: 38.37968734 | Q23: 1.918984367 | R23: 1.01 > Rwanda | S23: 12 | T23: 1
A24: 1.01 | B24: Enabling framework | C24: Policy & Regulation | D24: Clean energy policies | E24: Both | F24: None | G24: Policy Types | H24: Africa | I24: Senegal | J24: User Defined | K24: 5 | L24: =IFERROR(IF($F24="None", 1, INDEX(SubIndicator!$L$15445:$U$15924, MATCH($F24&" > "&$I24, SubIndicator!$Y$15445:$Y$15924, 0), MATCH(int_Year, SubIndicator!$L$4:$U$4, 0))), 1) -> 1 | M24: =SUMIFS(SubIndicator!V$5:V$16158, SubIndicator!$X$5:$X$16158, $R24) -> 5 | N24: 1.357051436 | O24: 5 | P24: 27.14102872 | Q24: 1.357051436 | R24: 1.01 > Senegal | S24: 13 | T24: 1
A25: 1.01 | B25: Enabling framework | C25: Policy & Regulation | D25: Clean energy policies | E25: Both | F25: None | G25: Policy Types | H25: Africa | I25: Sierra Leone | J25: User Defined | K25: 5 | L25: =IFERROR(IF($F25="None", 1, INDEX(SubIndicator!$L$15445:$U$15924, MATCH($F25&" > "&$I25, SubIndicator!$Y$15445:$Y$15924, 0), MATCH(int_Year, SubIndicator!$L$4:$U$4, 0))), 1) -> 1 | M25: =SUMIFS(SubIndicator!V$5:V$16158, SubIndicator!$X$5:$X$16158, $R25) -> 0 | N25: 0 | O25: 5 | P25: 0 | Q25: 0 | R25: 1.01 > Sierra Leone | S25: 14 | T25: 1
A26: 1.01 | B26: Enabling framework | C26: Policy & Regulation | D26: Clean energy policies | E26: Both | F26: None | G26: Policy Types | H26: Africa | I26: South Africa | J26: User Defined | K26: 5 | L26: =IFERROR(IF($F26="None", 1, INDEX(SubIndicator!$L$15445:$U$15924, MATCH($F26&" > "&$I26, SubIndicator!$Y$15445:$Y$15924, 0), MATCH(int_Year, SubIndicator!$L$4:$U$4, 0))), 1) -> 1 | M26: =SUMIFS(SubIndicator!V$5:V$16158, SubIndicator!$X$5:$X$16158, $R26) -> 5 | N26: 2.553849026 | O26: 5 | P26: 51.07698052 | Q26: 2.553849026 | R26: 1.01 > South Africa | S26: 15 | T26: 1
A27: 1.01 | B27: Enabling framework | C27: Policy & Regulation | D27: Clean energy policies | E27: Both | F27: None | G27: Policy Types | H27: Africa | I27: Tanzania | J27: User Defined | K27: 5 | L27: =IFERROR(IF($F27="None", 1, INDEX(SubIndicator!$L$15445:$U$15924, MATCH($F27&" > "&$I27, SubIndicator!$Y$15445:$Y$15924, 0), MATCH(int_Year, SubIndicator!$L$4:$U$4, 0))), 1) -> 1 | M27: =SUMIFS(SubIndicator!V$5:V$16158, SubIndicator!$X$5:$X$16158, $R27) -> 4 | N27: 2.002066181 | O27: 5 | P27: 40.04132361 | Q27: 2.002066181 | R27: 1.01 > Tanzania | S27: 16 | T27: 1
A28: 1.01 | B28: Enabling framework | C28: Policy & Regulation | D28: Clean energy policies | E28: Both | F28: None | G28: Policy Types | H28: Africa | I28: Uganda | J28: User Defined | K28: 5 | L28: =IFERROR(IF($F28="None", 1, INDEX(SubIndicator!$L$15445:$U$15924, MATCH($F28&" > "&$I28, SubIndicator!$Y$15445:$Y$15924, 0), MATCH(int_Year, SubIndicator!$L$4:$U$4, 0))), 1) -> 1 | M28: =SUMIFS(SubIndicator!V$5:V$16158, SubIndicator!$X$5:$X$16158, $R28) -> 5 | N28: 2.067459147 | O28: 5 | P28: 41.34918294 | Q28: 2.067459147 | R28: 1.01 > Uganda | S28: 17 | T28: 1
A29: 1.01 | B29: Enabling framework | C29: Policy & Regulation | D29: Clean energy policies | E29: Both | F29: None | G29: Policy Types | H29: Africa | I29: Zambia | J29: User Defined | K29: 5 | L29: =IFERROR(IF($F29="None", 1, INDEX(SubIndicator!$L$15445:$U$15924, MATCH($F29&" > "&$I29, SubIndicator!$Y$15445:$Y$15924, 0), MATCH(int_Year, SubIndicator!$L$4:$U$4, 0))), 1) -> 1 | M29: =SUMIFS(SubIndicator!V$5:V$16158, SubIndicator!$X$5:$X$16158, $R29) -> 2 | N29: 0.6065093955 | O29: 5 | P29: 12.13018791 | Q29: 0.6065093955 | R29: 1.01 > Zambia | S29: 18 | T29: 1
A30: 1.01 | B30: Enabling framework | C30: Policy & Regulation | D30: Clean energy policies | E30: Both | F30: None | G30: Policy Types | H30: Africa | I30: Zimbabwe | J30: User Defined | K30: 5 | L30: =IFERROR(IF($F30="None", 1, INDEX(SubIndicator!$L$15445:$U$15924, MATCH($F30&" > "&$I30, SubIndicator!$Y$15445:$Y$15924, 0), MATCH(int_Year, SubIndicator!$L$4:$U$4, 0))), 1) -> 1 | M30: =SUMIFS(SubIndicator!V$5:V$16158, SubIndicator!$X$5:$X$16158, $R30) -> 3 | N30: 1.07161873 | O30: 5 | P30: 21.4323746 | Q30: 1.07161873 | R30: 1.01 > Zimbabwe | S30: 19 | T30: 1
A31: 1.01 | B31: Enabling framework | C31: Policy & Regulation | D31: Clean energy policies | E31: Both | F31: None | G31: Policy Types | H31: Asia | I31: Bangladesh | J31: User Defined | K31: 5 | L31: =IFERROR(IF($F31="None", 1, INDEX(SubIndicator!$L$15445:$U$15924, MATCH($F31&" > "&$I31, SubIndicator!$Y$15445:$Y$15924, 0), MATCH(int_Year, SubIndicator!$L$4:$U$4, 0))), 1) -> 1 | M31: =SUMIFS(SubIndicator!V$5:V$16158, SubIndicator!$X$5:$X$16158, $R31) -> 3 | N31: 1.040366151 | O31: 5 | P31: 20.80732302 | Q31: 1.040366151 | R31: 1.01 > Bangladesh | S31: 20 | T31: 1
A32: 1.01 | B32: Enabling framework | C32: Policy & Regulation | D32: Clean energy policies | E32: Both | F32: None | G32: Policy Types | H32: Asia | I32: China | J32: User Defined | K32: 5 | L32: =IFERROR(IF($F32="None", 1, INDEX(SubIndicator!$L$15445:$U$15924, MATCH($F32&" > "&$I32, SubIndicator!$Y$15445:$Y$15924, 0), MATCH(int_Year, SubIndicator!$L$4:$U$4, 0))), 1) -> 1 | M32: =SUMIFS(SubIndicator!V$5:V$16158, SubIndicator!$X$5:$X$16158, $R32) -> 7 | N32: 2.640856186 | O32: 5 | P32: 52.81712371 | Q32: 2.640856186 | R32: 1.01 > China | S32: 21 | T32: 1
A33: 1.01 | B33: Enabling framework | C33: Policy & Regulation | D33: Clean energy policies | E33: Both | F33: None | G33: Policy Types | H33: Asia | I33: China :: Fujian | J33: User Defined | K33: 5 | L33: =IFERROR(IF($F33="None", 1, INDEX(SubIndicator!$L$15445:$U$15924, MATCH($F33&" > "&$I33, SubIndicator!$Y$15445:$Y$15924, 0), MATCH(int_Year, SubIndicator!$L$4:$U$4, 0))), 1) -> 1 | M33: =SUMIFS(SubIndicator!V$5:V$16158, SubIndicator!$X$5:$X$16158, $R33) -> 6 | N33: 2.640856186 | O33: 5 | P33: 52.81712371 | Q33: 2.640856186 | R33: 1.01 > China :: Fujian | S33: 22 | T33: 1
A34: 1.01 | B34: Enabling framework | C34: Policy & Regulation | D34: Clean energy policies | E34: Both | F34: None | G34: Policy Types | H34: Asia | I34: China :: Gansu | J34: User Defined | K34: 5 | L34: =IFERROR(IF($F34="None", 1, INDEX(SubIndicator!$L$15445:$U$15924, MATCH($F34&" > "&$I34, SubIndicator!$Y$15445:$Y$15924, 0), MATCH(int_Year, SubIndicator!$L$4:$U$4, 0))), 1) -> 1 | M34: =SUMIFS(SubIndicator!V$5:V$16158, SubIndicator!$X$5:$X$16158, $R34) -> 7 | N34: 2.640856186 | O34: 5 | P34: 52.81712371 | Q34: 2.640856186 | R34: 1.01 > China :: Gansu | S34: 23 | T34: 1
A35: 1.01 | B35: Enabling framework | C35: Policy & Regulation | D35: Clean energy policies | E35: Both | F35: None | G35: Policy Types | H35: Asia | I35: China :: Guangdong | J35: User Defined | K35: 5 | L35: =IFERROR(IF($F35="None", 1, INDEX(SubIndicator!$L$15445:$U$15924, MATCH($F35&" > "&$I35, SubIndicator!$Y$15445:$Y$15924, 0), MATCH(int_Year, SubIndicator!$L$4:$U$4, 0))), 1) -> 1 | M35: =SUMIFS(SubIndicator!V$5:V$16158, SubIndicator!$X$5:$X$16158, $R35) -> 6 | N35: 2.640856186 | O35: 5 | P35: 52.81712371 | Q35: 2.640856186 | R35: 1.01 > China :: Guangdong | S35: 24 | T35: 1
A36: 1.01 | B36: Enabling framework | C36: Policy & Regulation | D36: Clean energy policies | E36: Both | F36: None | G36: Policy Types | H36: Asia | I36: China :: Hebei | J36: User Defined | K36: 5 | L36: =IFERROR(IF($F36="None", 1, INDEX(SubIndicator!$L$15445:$U$15924, MATCH($F36&" > "&$I36, SubIndicator!$Y$15445:$Y$15924, 0), MATCH(int_Year, SubIndicator!$L$4:$U$4, 0))), 1) -> 1 | M36: =SUMIFS(SubIndicator!V$5:V$16158, SubIndicator!$X$5:$X$16158, $R36) -> 7 | N36: 2.640856186 | O36: 5 | P36: 52.81712371 | Q36: 2.640856186 | R36: 1.01 > China :: Hebei | S36: 25 | T36: 1
A37: 1.01 | B37: Enabling framework | C37: Policy & Regulation | D37: Clean energy policies | E37: Both | F37: None | G37: Policy Types | H37: Asia | I37: China :: Heilongjiang | J37: User Defined | K37: 5 | L37: =IFERROR(IF($F37="None", 1, INDEX(SubIndicator!$L$15445:$U$15924, MATCH($F37&" > "&$I37, SubIndicator!$Y$15445:$Y$15924, 0), MATCH(int_Year, SubIndicator!$L$4:$U$4, 0))), 1) -> 1 | M37: =SUMIFS(SubIndicator!V$5:V$16158, SubIndicator!$X$5:$X$16158, $R37) -> 6 | N37: 2.640856186 | O37: 5 | P37: 52.81712371 | Q37: 2.640856186 | R37: 1.01 > China :: Heilongjiang | S37: 26 | T37: 1
A38: 1.01 | B38: Enabling framework | C38: Policy & Regulation | D38: Clean energy policies | E38: Both | F38: None | G38: Policy Types | H38: Asia | I38: China :: Hubei | J38: User Defined | K38: 5 | L38: =IFERROR(IF($F38="None", 1, INDEX(SubIndicator!$L$15445:$U$15924, MATCH($F38&" > "&$I38, SubIndicator!$Y$15445:$Y$15924, 0), MATCH(int_Year, SubIndicator!$L$4:$U$4, 0))), 1) -> 1 | M38: =SUMIFS(SubIndicator!V$5:V$16158, SubIndicator!$X$5:$X$16158, $R38) -> 6 | N38: 2.640856186 | O38: 5 | P38: 52.81712371 | Q38: 2.640856186 | R38: 1.01 > China :: Hubei | S38: 27 | T38: 1
A39: 1.01 | B39: Enabling framework | C39: Policy & Regulation | D39: Clean energy policies | E39: Both | F39: None | G39: Policy Types | H39: Asia | I39: China :: Inner Mongolia | J39: User Defined | K39: 5 | L39: =IFERROR(IF($F39="None", 1, INDEX(SubIndicator!$L$15445:$U$15924, MATCH($F39&" > "&$I39, SubIndicator!$Y$15445:$Y$15924, 0), MATCH(int_Year, SubIndicator!$L$4:$U$4, 0))), 1) -> 1 | M39: =SUMIFS(SubIndicator!V$5:V$16158, SubIndicator!$X$5:$X$16158, $R39) -> 7 | N39: 2.640856186 | O39: 5 | P39: 52.81712371 | Q39: 2.640856186 | R39: 1.01 > China :: Inner Mongolia | S39: 28 | T39: 1
A40: 1.01 | B40: Enabling framework | C40: Policy & Regulation | D40: Clean energy policies | E40: Both | F40: None | G40: Policy Types | H40: Asia | I40: China :: Jiangsu | J40: User Defined | K40: 5 | L40: =IFERROR(IF($F40="None", 1, INDEX(SubIndicator!$L$15445:$U$15924, MATCH($F40&" > "&$I40, SubIndicator!$Y$15445:$Y$15924, 0), MATCH(int_Year, SubIndicator!$L$4:$U$4, 0))), 1) -> 1 | M40: =SUMIFS(SubIndicator!V$5:V$16158, SubIndicator!$X$5:$X$16158, $R40) -> 7 | N40: 2.640856186 | O40: 5 | P40: 52.81712371 | Q40: 2.640856186 | R40: 1.01 > China :: Jiangsu | S40: 29 | T40: 1
A41: 1.01 | B41: Enabling framework | C41: Policy & Regulation | D41: Clean energy policies | E41: Both | F41: None | G41: Policy Types | H41: Asia | I41: China :: Jilin | J41: User Defined | K41: 5 | L41: =IFERROR(IF($F41="None", 1, INDEX(SubIndicator!$L$15445:$U$15924, MATCH($F41&" > "&$I41, SubIndicator!$Y$15445:$Y$15924, 0), MATCH(int_Year, SubIndicator!$L$4:$U$4, 0))), 1) -> 1 | M41: =SUMIFS(SubIndicator!V$5:V$16158, SubIndicator!$X$5:$X$16158, $R41) -> 7 | N41: 2.640856186 | O41: 5 | P41: 52.81712371 | Q41: 2.640856186 | R41: 1.01 > China :: Jilin | S41: 30 | T41: 1
A42: 1.01 | B42: Enabling framework | C42: Policy & Regulation | D42: Clean energy policies | E42: Both | F42: None | G42: Policy Types | H42: Asia | I42: China :: Qinghai | J42: User Defined | K42: 5 | L42: =IFERROR(IF($F42="None", 1, INDEX(SubIndicator!$L$15445:$U$15924, MATCH($F42&" > "&$I42, SubIndicator!$Y$15445:$Y$15924, 0), MATCH(int_Year, SubIndicator!$L$4:$U$4, 0))), 1) -> 1 | M42: =SUMIFS(SubIndicator!V$5:V$16158, SubIndicator!$X$5:$X$16158, $R42) -> 7 | N42: 2.640856186 | O42: 5 | P42: 52.81712371 | Q42: 2.640856186 | R42: 1.01 > China :: Qinghai | S42: 31 | T42: 1
A43: 1.01 | B43: Enabling framework | C43: Policy & Regulation | D43: Clean energy policies | E43: Both | F43: None | G43: Policy Types | H43: Asia | I43: China :: Shandong | J43: User Defined | K43: 5 | L43: =IFERROR(IF($F43="None", 1, INDEX(SubIndicator!$L$15445:$U$15924, MATCH($F43&" > "&$I43, SubIndicator!$Y$15445:$Y$15924, 0), MATCH(int_Year, SubIndicator!$L$4:$U$4, 0))), 1) -> 1 | M43: =SUMIFS(SubIndicator!V$5:V$16158, SubIndicator!$X$5:$X$16158, $R43) -> 6 | N43: 2.640856186 | O43: 5 | P43: 52.81712371 | Q43: 2.640856186 | R43: 1.01 > China :: Shandong | S43: 32 | T43: 1
A44: 1.01 | B44: Enabling framework | C44: Policy & Regulation | D44: Clean energy policies | E44: Both | F44: None | G44: Policy Types | H44: Asia | I44: China :: Sichuan | J44: User Defined | K44: 5 | L44: =IFERROR(IF($F44="None", 1, INDEX(SubIndicator!$L$15445:$U$15924, MATCH($F44&" > "&$I44, SubIndicator!$Y$15445:$Y$15924, 0), MATCH(int_Year, SubIndicator!$L$4:$U$4, 0))), 1) -> 1 | M44: =SUMIFS(SubIndicator!V$5:V$16158, SubIndicator!$X$5:$X$16158, $R44) -> 6 | N44: 2.640856186 | O44: 5 | P44: 52.81712371 | Q44: 2.640856186 | R44: 1.01 > China :: Sichuan | S44: 33 | T44: 1
A45: 1.01 | B45: Enabling framework | C45: Policy & Regulation | D45: Clean energy policies | E45: Both | F45: None | G45: Policy Types | H45: Asia | I45: China :: Tibet | J45: User Defined | K45: 5 | L45: =IFERROR(IF($F45="None", 1, INDEX(SubIndicator!$L$15445:$U$15924, MATCH($F45&" > "&$I45, SubIndicator!$Y$15445:$Y$15924, 0), MATCH(int_Year, SubIndicator!$L$4:$U$4, 0))), 1) -> 1 | M45: =SUMIFS(SubIndicator!V$5:V$16158, SubIndicator!$X$5:$X$16158, $R45) -> 7 | N45: 2.640856186 | O45: 5 | P45: 52.81712371 | Q45: 2.640856186 | R45: 1.01 > China :: Tibet | S45: 34 | T45: 1
A46: 1.01 | B46: Enabling framework | C46: Policy & Regulation | D46: Clean energy policies | E46: Both | F46: None | G46: Policy Types | H46: Asia | I46: China :: Xinjiang | J46: User Defined | K46: =K45 -> 5 | L46: =IFERROR(IF($F46="None", 1, INDEX(SubIndicator!$L$15445:$U$15924, MATCH($F46&" > "&$I46, SubIndicator!$Y$15445:$Y$15924, 0), MATCH(int_Year, SubIndicator!$L$4:$U$4, 0))), 1) -> 1 | M46: =SUMIFS(SubIndicator!V$5:V$16158, SubIndicator!$X$5:$X$16158, $R46) -> 7 | N46: 2.640856186 | O46: 5 | P46: 52.81712371 | Q46: 2.640856186 | R46: 1.01 > China :: Xinjiang | S46: 35 | T46: 1
A47: 1.01 | B47: Enabling framework | C47: Policy & Regulation | D47: Clean energy policies | E47: Both | F47: None | G47: Policy Types | H47: Asia | I47: China :: Yunnan | J47: User Defined | K47: 5 | L47: =IFERROR(IF($F47="None", 1, INDEX(SubIndicator!$L$15445:$U$15924, MATCH($F47&" > "&$I47, SubIndicator!$Y$15445:$Y$15924, 0), MATCH(int_Year, SubIndicator!$L$4:$U$4, 0))), 1) -> 1 | M47: =SUMIFS(SubIndicator!V$5:V$16158, SubIndicator!$X$5:$X$16158, $R47) -> 7 | N47: 2.640856186 | O47: 5 | P47: 52.81712371 | Q47: 2.640856186 | R47: 1.01 > China :: Yunnan | S47: 36 | T47: 1
A48: 1.01 | B48: Enabling framework | C48: Policy & Regulation | D48: Clean energy policies | E48: Both | F48: None | G48: Policy Types | H48: Asia | I48: India | J48: User Defined | K48: 5 | L48: =IFERROR(IF($F48="None", 1, INDEX(SubIndicator!$L$15445:$U$15924, MATCH($F48&" > "&$I48, SubIndicator!$Y$15445:$Y$15924, 0), MATCH(int_Year, SubIndicator!$L$4:$U$4, 0))), 1) -> 1 | M48: =SUMIFS(SubIndicator!V$5:V$16158, SubIndicator!$X$5:$X$16158, $R48) -> 8 | N48: 2.634757956 | O48: 5 | P48: 52.69515912 | Q48: 2.634757956 | R48: 1.01 > India | S48: 37 | T48: 1
A49: 1.01 | B49: Enabling framework | C49: Policy & Regulation | D49: Clean energy policies | E49: Both | F49: None | G49: Policy Types | H49: Asia | I49: India :: Andhra Pradesh | J49: User Defined | K49: 5 | L49: =IFERROR(IF($F49="None", 1, INDEX(SubIndicator!$L$15445:$U$15924, MATCH($F49&" > "&$I49, SubIndicator!$Y$15445:$Y$15924, 0), MATCH(int_Year, SubIndicator!$L$4:$U$4, 0))), 1) -> 1 | M49: =SUMIFS(SubIndicator!V$5:V$16158, SubIndicator!$X$5:$X$16158, $R49) -> 7 | N49: 2.634757956 | O49: 5 | P49: 52.69515912 | Q49: 2.634757956 | R49: 1.01 > India :: Andhra Pradesh | S49: 38 | T49: 1
A50: 1.01 | B50: Enabling framework | C50: Policy & Regulation | D50: Clean energy policies | E50: Both | F50: None | G50: Policy Types | H50: Asia | I50: India :: Gujarat | J50: User Defined | K50: 5 | L50: =IFERROR(IF($F50="None", 1, INDEX(SubIndicator!$L$15445:$U$15924, MATCH($F50&" > "&$I50, SubIndicator!$Y$15445:$Y$15924, 0), MATCH(int_Year, SubIndicator!$L$4:$U$4, 0))), 1) -> 1 | M50: =SUMIFS(SubIndicator!V$5:V$16158, SubIndicator!$X$5:$X$16158, $R50) -> 6 | N50: 2.634757956 | O50: 5 | P50: 52.69515912 | Q50: 2.634757956 | R50: 1.01 > India :: Gujarat | S50: 39 | T50: 1
A51: 1.01 | B51: Enabling framework | C51: Policy & Regulation | D51: Clean energy policies | E51: Both | F51: None | G51: Policy Types | H51: Asia | I51: India :: Karnataka | J51: User Defined | K51: 5 | L51: =IFERROR(IF($F51="None", 1, INDEX(SubIndicator!$L$15445:$U$15924, MATCH($F51&" > "&$I51, SubIndicator!$Y$15445:$Y$15924, 0), MATCH(int_Year, SubIndicator!$L$4:$U$4, 0))), 1) -> 1 | M51: =SUMIFS(SubIndicator!V$5:V$16158, SubIndicator!$X$5:$X$16158, $R51) -> 8 | N51: 2.634757956 | O51: 5 | P51: 52.69515912 | Q51: 2.634757956 | R51: 1.01 > India :: Karnataka | S51: 40 | T51: 1
A52: 1.01 | B52: Enabling framework | C52: Policy & Regulation | D52: Clean energy policies | E52: Both | F52: None | G52: Policy Types | H52: Asia | I52: India :: Madhya Pradesh | J52: User Defined | K52: 5 | L52: =IFERROR(IF($F52="None", 1, INDEX(SubIndicator!$L$15445:$U$15924, MATCH($F52&" > "&$I52, SubIndicator!$Y$15445:$Y$15924, 0), MATCH(int_Year, SubIndicator!$L$4:$U$4, 0))), 1) -> 1 | M52: =SUMIFS(SubIndicator!V$5:V$16158, SubIndicator!$X$5:$X$16158, $R52) -> 6 | N52: 2.634757956 | O52: 5 | P52: 52.69515912 | Q52: 2.634757956 | R52: 1.01 > India :: Madhya Pradesh | S52: 41 | T52: 1
A53: 1.01 | B53: Enabling framework | C53: Policy & Regulation | D53: Clean energy policies | E53: Both | F53: None | G53: Policy Types | H53: Asia | I53: India :: Maharashtra | J53: User Defined | K53: 5 | L53: =IFERROR(IF($F53="None", 1, INDEX(SubIndicator!$L$15445:$U$15924, MATCH($F53&" > "&$I53, SubIndicator!$Y$15445:$Y$15924, 0), MATCH(int_Year, SubIndicator!$L$4:$U$4, 0))), 1) -> 1 | M53: =SUMIFS(SubIndicator!V$5:V$16158, SubIndicator!$X$5:$X$16158, $R53) -> 5 | N53: 2.634757956 | O53: 5 | P53: 52.69515912 | Q53: 2.634757956 | R53: 1.01 > India :: Maharashtra | S53: 42 | T53: 1
A54: 1.01 | B54: Enabling framework | C54: Policy & Regulation | D54: Clean energy policies | E54: Both | F54: None | G54: Policy Types | H54: Asia | I54: India :: Punjab | J54: User Defined | K54: 5 | L54: =IFERROR(IF($F54="None", 1, INDEX(SubIndicator!$L$15445:$U$15924, MATCH($F54&" > "&$I54, SubIndicator!$Y$15445:$Y$15924, 0), MATCH(int_Year, SubIndicator!$L$4:$U$4, 0))), 1) -> 1 | M54: =SUMIFS(SubIndicator!V$5:V$16158, SubIndicator!$X$5:$X$16158, $R54) -> 6 | N54: 2.634757956 | O54: 5 | P54: 52.69515912 | Q54: 2.634757956 | R54: 1.01 > India :: Punjab | S54: 43 | T54: 1
A55: 1.01 | B55: Enabling framework | C55: Policy & Regulation | D55: Clean energy policies | E55: Both | F55: None | G55: Policy Types | H55: Asia | I55: India :: Rajasthan | J55: User Defined | K55: 5 | L55: =IFERROR(IF($F55="None", 1, INDEX(SubIndicator!$L$15445:$U$15924, MATCH($F55&" > "&$I55, SubIndicator!$Y$15445:$Y$15924, 0), MATCH(int_Year, SubIndicator!$L$4:$U$4, 0))), 1) -> 1 | M55: =SUMIFS(SubIndicator!V$5:V$16158, SubIndicator!$X$5:$X$16158, $R55) -> 7 | N55: 2.634757956 | O55: 5 | P55: 52.69515912 | Q55: 2.634757956 | R55: 1.01 > India :: Rajasthan | S55: 44 | T55: 1
A56: 1.01 | B56: Enabling framework | C56: Policy & Regulation | D56: Clean energy policies | E56: Both | F56: None | G56: Policy Types | H56: Asia | I56: India :: Tamil Nadu | J56: User Defined | K56: 5 | L56: =IFERROR(IF($F56="None", 1, INDEX(SubIndicator!$L$15445:$U$15924, MATCH($F56&" > "&$I56, SubIndicator!$Y$15445:$Y$15924, 0), MATCH(int_Year, SubIndicator!$L$4:$U$4, 0))), 1) -> 1 | M56: =SUMIFS(SubIndicator!V$5:V$16158, SubIndicator!$X$5:$X$16158, $R56) -> 7 | N56: 2.634757956 | O56: 5 | P56: 52.69515912 | Q56: 2.634757956 | R56: 1.01 > India :: Tamil Nadu | S56: 45 | T56: 1
A57: 1.01 | B57: Enabling framework | C57: Policy & Regulation | D57: Clean energy policies | E57: Both | F57: None | G57: Policy Types | H57: Asia | I57: India :: Uttar Pradesh | J57: User Defined | K57: 5 | L57: =IFERROR(IF($F57="None", 1, INDEX(SubIndicator!$L$15445:$U$15924, MATCH($F57&" > "&$I57, SubIndicator!$Y$15445:$Y$15924, 0), MATCH(int_Year, SubIndicator!$L$4:$U$4, 0))), 1) -> 1 | M57: =SUMIFS(SubIndicator!V$5:V$16158, SubIndicator!$X$5:$X$16158, $R57) -> 7 | N57: 2.634757956 | O57: 5 | P57: 52.69515912 | Q57: 2.634757956 | R57: 1.01 > India :: Uttar Pradesh | S57: 46 | T57: 1
A58: 1.01 | B58: Enabling framework | C58: Policy & Regulation | D58: Clean energy policies | E58: Both | F58: None | G58: Policy Types | H58: Asia | I58: India :: West Bengal | J58: User Defined | K58: 5 | L58: =IFERROR(IF($F58="None", 1, INDEX(SubIndicator!$L$15445:$U$15924, MATCH($F58&" > "&$I58, SubIndicator!$Y$15445:$Y$15924, 0), MATCH(int_Year, SubIndicator!$L$4:$U$4, 0))), 1) -> 1 | M58: =SUMIFS(SubIndicator!V$5:V$16158, SubIndicator!$X$5:$X$16158, $R58) -> 4 | N58: 2.634757956 | O58: 5 | P58: 52.69515912 | Q58: 2.634757956 | R58: 1.01 > India :: West Bengal | S58: 47 | T58: 1
A59: 1.01 | B59: Enabling framework | C59: Policy & Regulation | D59: Clean energy policies | E59: Both | F59: None | G59: Policy Types | H59: Asia | I59: Indonesia | J59: User Defined | K59: 5 | L59: =IFERROR(IF($F59="None", 1, INDEX(SubIndicator!$L$15445:$U$15924, MATCH($F59&" > "&$I59, SubIndicator!$Y$15445:$Y$15924, 0), MATCH(int_Year, SubIndicator!$L$4:$U$4, 0))), 1) -> 1 | M59: =SUMIFS(SubIndicator!V$5:V$16158, SubIndicator!$X$5:$X$16158, $R59) -> 7 | N59: 2.228030613 | O59: 5 | P59: 44.56061227 | Q59: 2.228030613 | R59: 1.01 > Indonesia | S59: 48 | T59: 1
A60: 1.01 | B60: Enabling framework | C60: Policy & Regulation | D60: Clean energy policies | E60: Both | F60: None | G60: Policy Types | H60: Asia | I60: Myanmar | J60: User Defined | K60: 5 | L60: =IFERROR(IF($F60="None", 1, INDEX(SubIndicator!$L$15445:$U$15924, MATCH($F60&" > "&$I60, SubIndicator!$Y$15445:$Y$15924, 0), MATCH(int_Year, SubIndicator!$L$4:$U$4, 0))), 1) -> 1 | M60: =SUMIFS(SubIndicator!V$5:V$16158, SubIndicator!$X$5:$X$16158, $R60) -> 1 | N60: 0.4449665827 | O60: 5 | P60: 8.899331653 | Q60: 0.4449665827 | R60: 1.01 > Myanmar | S60: 49 | T60: 1
A61: 1.01 | B61: Enabling framework | C61: Policy & Regulation | D61: Clean energy policies | E61: Both | F61: None | G61: Policy Types | H61: Asia | I61: Nepal | J61: User Defined | K61: 5 | L61: =IFERROR(IF($F61="None", 1, INDEX(SubIndicator!$L$15445:$U$15924, MATCH($F61&" > "&$I61, SubIndicator!$Y$15445:$Y$15924, 0), MATCH(int_Year, SubIndicator!$L$4:$U$4, 0))), 1) -> 1 | M61: =SUMIFS(SubIndicator!V$5:V$16158, SubIndicator!$X$5:$X$16158, $R61) -> 4 | N61: 1.242840597 | O61: 5 | P61: 24.85681195 | Q61: 1.242840597 | R61: 1.01 > Nepal | S61: 50 | T61: 1
A62: 1.01 | B62: Enabling framework | C62: Policy & Regulation | D62: Clean energy policies | E62: Both | F62: None | G62: Policy Types | H62: Asia | I62: Pakistan | J62: User Defined | K62: 5 | L62: =IFERROR(IF($F62="None", 1, INDEX(SubIndicator!$L$15445:$U$15924, MATCH($F62&" > "&$I62, SubIndicator!$Y$15445:$Y$15924, 0), MATCH(int_Year, SubIndicator!$L$4:$U$4, 0))), 1) -> 1 | M62: =SUMIFS(SubIndicator!V$5:V$16158, SubIndicator!$X$5:$X$16158, $R62) -> 7 | N62: 1.938964709 | O62: 5 | P62: 38.77929419 | Q62: 1.938964709 | R62: 1.01 > Pakistan | S62: 51 | T62: 1
A63: 1.01 | B63: Enabling framework | C63: Policy & Regulation | D63: Clean energy policies | E63: Both | F63: None | G63: Policy Types | H63: Asia | I63: Sri Lanka | J63: User Defined | K63: 5 | L63: =IFERROR(IF($F63="None", 1, INDEX(SubIndicator!$L$15445:$U$15924, MATCH($F63&" > "&$I63, SubIndicator!$Y$15445:$Y$15924, 0), MATCH(int_Year, SubIndicator!$L$4:$U$4, 0))), 1) -> 1 | M63: =SUMIFS(SubIndicator!V$5:V$16158, SubIndicator!$X$5:$X$16158, $R63) -> 4 | N63: 1.216611478 | O63: 5 | P63: 24.33222956 | Q63: 1.216611478 | R63: 1.01 > Sri Lanka | S63: 52 | T63: 1
A64: 1.01 | B64: Enabling framework | C64: Policy & Regulation | D64: Clean energy policies | E64: Both | F64: None | G64: Policy Types | H64: Asia | I64: Tajikistan | J64: User Defined | K64: 5 | L64: =IFERROR(IF($F64="None", 1, INDEX(SubIndicator!$L$15445:$U$15924, MATCH($F64&" > "&$I64, SubIndicator!$Y$15445:$Y$15924, 0), MATCH(int_Year, SubIndicator!$L$4:$U$4, 0))), 1) -> 1 | M64: =SUMIFS(SubIndicator!V$5:V$16158, SubIndicator!$X$5:$X$16158, $R64) -> 4 | N64: 0.9030344272 | O64: 5 | P64: 18.06068854 | Q64: 0.9030344272 | R64: 1.01 > Tajikistan | S64: 53 | T64: 1
A65: 1.01 | B65: Enabling framework | C65: Policy & Regulation | D65: Clean energy policies | E65: Both | F65: None | G65: Policy Types | H65: Asia | I65: Vietnam | J65: User Defined | K65: 5 | L65: =IFERROR(IF($F65="None", 1, INDEX(SubIndicator!$L$15445:$U$15924, MATCH($F65&" > "&$I65, SubIndicator!$Y$15445:$Y$15924, 0), MATCH(int_Year, SubIndicator!$L$4:$U$4, 0))), 1) -> 1 | M65: =SUMIFS(SubIndicator!V$5:V$16158, SubIndicator!$X$5:$X$16158, $R65) -> 4 | N65: 1.814898014 | O65: 5 | P65: 36.29796029 | Q65: 1.814898014 | R65: 1.01 > Vietnam | S65: 54 | T65: 1
A66: 1.01 | B66: Enabling framework | C66: Policy & Regulation | D66: Clean energy policies | E66: Both | F66: None | G66: Policy Types | H66: LAC | I66: Argentina | J66: User Defined | K66: 5 | L66: =IFERROR(IF($F66="None", 1, INDEX(SubIndicator!$L$15445:$U$15924, MATCH($F66&" > "&$I66, SubIndicator!$Y$15445:$Y$15924, 0), MATCH(int_Year, SubIndicator!$L$4:$U$4, 0))), 1) -> 1 | M66: =SUMIFS(SubIndicator!V$5:V$16158, SubIndicator!$X$5:$X$16158, $R66) -> 3 | N66: 1.418533379 | O66: 5 | P66: 28.37066759 | Q66: 1.418533379 | R66: 1.01 > Argentina | S66: 55 | T66: 1
A67: 1.01 | B67: Enabling framework | C67: Policy & Regulation | D67: Clean energy policies | E67: Both | F67: None | G67: Policy Types | H67: LAC | I67: Bahamas | J67: User Defined | K67: 5 | L67: =IFERROR(IF($F67="None", 1, INDEX(SubIndicator!$L$15445:$U$15924, MATCH($F67&" > "&$I67, SubIndicator!$Y$15445:$Y$15924, 0), MATCH(int_Year, SubIndicator!$L$4:$U$4, 0))), 1) -> 1 | M67: =SUMIFS(SubIndicator!V$5:V$16158, SubIndicator!$X$5:$X$16158, $R67) -> 0 | N67: 0 | O67: 5 | P67: 0 | Q67: 0 | R67: 1.01 > Bahamas | S67: 56 | T67: 1
A68: 1.01 | B68: Enabling framework | C68: Policy & Regulation | D68: Clean energy policies | E68: Both | F68: None | G68: Policy Types | H68: LAC | I68: Barbados | J68: User Defined | K68: 5 | L68: =IFERROR(IF($F68="None", 1, INDEX(SubIndicator!$L$15445:$U$15924, MATCH($F68&" > "&$I68, SubIndicator!$Y$15445:$Y$15924, 0), MATCH(int_Year, SubIndicator!$L$4:$U$4, 0))), 1) -> 1 | M68: =SUMIFS(SubIndicator!V$5:V$16158, SubIndicator!$X$5:$X$16158, $R68) -> 2 | N68: 0.7545774048 | O68: 5 | P68: 15.0915481 | Q68: 0.7545774048 | R68: 1.01 > Barbados | S68: 57 | T68: 1
A69: 1.01 | B69: Enabling framework | C69: Policy & Regulation | D69: Clean energy policies | E69: Both | F69: None | G69: Policy Types | H69: LAC | I69: Belize | J69: User Defined | K69: 5 | L69: =IFERROR(IF($F69="None", 1, INDEX(SubIndicator!$L$15445:$U$15924, MATCH($F69&" > "&$I69, SubIndicator!$Y$15445:$Y$15924, 0), MATCH(int_Year, SubIndicator!$L$4:$U$4, 0))), 1) -> 1 | M69: =SUMIFS(SubIndicator!V$5:V$16158, SubIndicator!$X$5:$X$16158, $R69) -> 1 | N69: 0.3848386399 | O69: 5 | P69: 7.696772797 | Q69: 0.3848386399 | R69: 1.01 > Belize | S69: 58 | T69: 1
A70: 1.01 | B70: Enabling framework | C70: Policy & Regulation | D70: Clean energy policies | E70: Both | F70: None | G70: Policy Types | H70: LAC | I70: Bolivia | J70: User Defined | K70: 5 | L70: =IFERROR(IF($F70="None", 1, INDEX(SubIndicator!$L$15445:$U$15924, MATCH($F70&" > "&$I70, SubIndicator!$Y$15445:$Y$15924, 0), MATCH(int_Year, SubIndicator!$L$4:$U$4, 0))), 1) -> 1 | M70: =SUMIFS(SubIndicator!V$5:V$16158, SubIndicator!$X$5:$X$16158, $R70) -> 0 | N70: 0 | O70: 5 | P70: 0 | Q70: 0 | R70: 1.01 > Bolivia | S70: 59 | T70: 1
A71: 1.01 | B71: Enabling framework | C71: Policy & Regulation | D71: Clean energy policies | E71: Both | F71: None | G71: Policy Types | H71: LAC | I71: Brazil | J71: User Defined | K71: 5 | L71: =IFERROR(IF($F71="None", 1, INDEX(SubIndicator!$L$15445:$U$15924, MATCH($F71&" > "&$I71, SubIndicator!$Y$15445:$Y$15924, 0), MATCH(int_Year, SubIndicator!$L$4:$U$4, 0))), 1) -> 1 | M71: =SUMIFS(SubIndicator!V$5:V$16158, SubIndicator!$X$5:$X$16158, $R71) -> 6 | N71: 2.485508771 | O71: 5 | P71: 49.71017543 | Q71: 2.485508771 | R71: 1.01 > Brazil | S71: 60 | T71: 1
A72: 1.01 | B72: Enabling framework | C72: Policy & Regulation | D72: Clean energy policies | E72: Both | F72: None | G72: Policy Types | H72: LAC | I72: Chile | J72: User Defined | K72: 5 | L72: =IFERROR(IF($F72="None", 1, INDEX(SubIndicator!$L$15445:$U$15924, MATCH($F72&" > "&$I72, SubIndicator!$Y$15445:$Y$15924, 0), MATCH(int_Year, SubIndicator!$L$4:$U$4, 0))), 1) -> 1 | M72: =SUMIFS(SubIndicator!V$5:V$16158, SubIndicator!$X$5:$X$16158, $R72) -> 4 | N72: 2.006064879 | O72: 5 | P72: 40.12129759 | Q72: 2.006064879 | R72: 1.01 > Chile | S72: 61 | T72: 1
A73: 1.01 | B73: Enabling framework | C73: Policy & Regulation | D73: Clean energy policies | E73: Both | F73: None | G73: Policy Types | H73: LAC | I73: Colombia | J73: User Defined | K73: 5 | L73: =IFERROR(IF($F73="None", 1, INDEX(SubIndicator!$L$15445:$U$15924, MATCH($F73&" > "&$I73, SubIndicator!$Y$15445:$Y$15924, 0), MATCH(int_Year, SubIndicator!$L$4:$U$4, 0))), 1) -> 1 | M73: =SUMIFS(SubIndicator!V$5:V$16158, SubIndicator!$X$5:$X$16158, $R73) -> 3 | N73: 1.279641938 | O73: 5 | P73: 25.59283876 | Q73: 1.279641938 | R73: 1.01 > Colombia | S73: 62 | T73: 1
A74: 1.01 | B74: Enabling framework | C74: Policy & Regulation | D74: Clean energy policies | E74: Both | F74: None | G74: Policy Types | H74: LAC | I74: Costa Rica | J74: User Defined | K74: 5 | L74: =IFERROR(IF($F74="None", 1, INDEX(SubIndicator!$L$15445:$U$15924, MATCH($F74&" > "&$I74, SubIndicator!$Y$15445:$Y$15924, 0), MATCH(int_Year, SubIndicator!$L$4:$U$4, 0))), 1) -> 1 | M74: =SUMIFS(SubIndicator!V$5:V$16158, SubIndicator!$X$5:$X$16158, $R74) -> 4 | N74: 1.652420764 | O74: 5 | P74: 33.04841528 | Q74: 1.652420764 | R74: 1.01 > Costa Rica | S74: 63 | T74: 1
A75: 1.01 | B75: Enabling framework | C75: Policy & Regulation | D75: Clean energy policies | E75: Both | F75: None | G75: Policy Types | H75: LAC | I75: Dominican Republic | J75: User Defined | K75: 5 | L75: =IFERROR(IF($F75="None", 1, INDEX(SubIndicator!$L$15445:$U$15924, MATCH($F75&" > "&$I75, SubIndicator!$Y$15445:$Y$15924, 0), MATCH(int_Year, SubIndicator!$L$4:$U$4, 0))), 1) -> 1 | M75: =SUMIFS(SubIndicator!V$5:V$16158, SubIndicator!$X$5:$X$16158, $R75) -> 5 | N75: 2.159812778 | O75: 5 | P75: 43.19625556 | Q75: 2.159812778 | R75: 1.01 > Dominican Republic | S75: 64 | T75: 1
A76: 1.01 | B76: Enabling framework | C76: Policy & Regulation | D76: Clean energy policies | E76: Both | F76: None | G76: Policy Types | H76: LAC | I76: Ecuador | J76: User Defined | K76: 5 | L76: =IFERROR(IF($F76="None", 1, INDEX(SubIndicator!$L$15445:$U$15924, MATCH($F76&" > "&$I76, SubIndicator!$Y$15445:$Y$15924, 0), MATCH(int_Year, SubIndicator!$L$4:$U$4, 0))), 1) -> 1 | M76: =SUMIFS(SubIndicator!V$5:V$16158, SubIndicator!$X$5:$X$16158, $R76) -> 3 | N76: =IFERROR(IF(ISNUMBER(Q76), MAX(Q76/L76, 0), MAX(IF(LEFT(D76, 11)="Growth rate", MIN(M76, dbl_GrowthCap), M76)/L76, 0)), 0) -> 1.257531714 | O76: 5 | P76: =IFERROR(dbl_BenchmarkMax*IF(J76="Min", O76/N76, N76/O76), 0) -> 25.15063428 | Q76: 1.257531714 | R76: =A76&" > " &I76 -> 1.01 > Ecuador | S76: 65 | T76: 1
A77: 1.01 | B77: Enabling framework | C77: Policy & Regulation | D77: Clean energy policies | E77: Both | F77: None | G77: Policy Types | H77: LAC | I77: El Salvador | J77: User Defined | K77: 5 | L77: =IFERROR(IF($F77="None", 1, INDEX(SubIndicator!$L$15445:$U$15924, MATCH($F77&" > "&$I77, SubIndicator!$Y$15445:$Y$15924, 0), MATCH(int_Year, SubIndicator!$L$4:$U$4, 0))), 1) -> 1 | M77: =SUMIFS(SubIndicator!V$5:V$16158, SubIndicator!$X$5:$X$16158, $R77) -> 2 | N77: 0.616184019 | O77: 5 | P77: 12.32368038 | Q77: 0.616184019 | R77: 1.01 > El Salvador | S77: 66 | T77: 1
A78: 1.01 | B78: Enabling framework | C78: Policy & Regulation | D78: Clean energy policies | E78: Both | F78: None | G78: Policy Types | H78: LAC | I78: Guatemala | J78: =J77 -> User Defined | K78: =K77 -> 5 | L78: =IFERROR(IF($F78="None", 1, INDEX(SubIndicator!$L$15445:$U$15924, MATCH($F78&" > "&$I78, SubIndicator!$Y$15445:$Y$15924, 0), MATCH(int_Year, SubIndicator!$L$4:$U$4, 0))), 1) -> 1 | M78: =SUMIFS(SubIndicator!V$5:V$16158, SubIndicator!$X$5:$X$16158, $R78) -> 3 | N78: 1.122203031 | O78: =O77 -> 5 | P78: 22.44406062 | Q78: 1.122203031 | R78: 1.01 > Guatemala | S78: =S77+1 -> 67 | T78: 1
A79: 1.01 | B79: Enabling framework | C79: Policy & Regulation | D79: Clean energy policies | E79: Both | F79: None | G79: Policy Types | H79: LAC | I79: Guyana | J79: User Defined | K79: 5 | L79: =IFERROR(IF($F79="None", 1, INDEX(SubIndicator!$L$15445:$U$15924, MATCH($F79&" > "&$I79, SubIndicator!$Y$15445:$Y$15924, 0), MATCH(int_Year, SubIndicator!$L$4:$U$4, 0))), 1) -> 1 | M79: =SUMIFS(SubIndicator!V$5:V$16158, SubIndicator!$X$5:$X$16158, $R79) -> 1 | N79: 0.3602717083 | O79: 5 | P79: 7.205434167 | Q79: 0.3602717083 | R79: 1.01 > Guyana | S79: 68 | T79: 1
A80: 1.01 | B80: Enabling framework | C80: Policy & Regulation | D80: Clean energy policies | E80: Both | F80: None | G80: Policy Types | H80: LAC | I80: Haiti | J80: User Defined | K80: 5 | L80: =IFERROR(IF($F80="None", 1, INDEX(SubIndicator!$L$15445:$U$15924, MATCH($F80&" > "&$I80, SubIndicator!$Y$15445:$Y$15924, 0), MATCH(int_Year, SubIndicator!$L$4:$U$4, 0))), 1) -> 1 | M80: =SUMIFS(SubIndicator!V$5:V$16158, SubIndicator!$X$5:$X$16158, $R80) -> 0 | N80: 0 | O80: 5 | P80: 0 | Q80: 0 | R80: 1.01 > Haiti | S80: 69 | T80: 1
A81: 1.01 | B81: Enabling framework | C81: Policy & Regulation | D81: Clean energy policies | E81: Both | F81: None | G81: Policy Types | H81: LAC | I81: Honduras | J81: User Defined | K81: 5 | L81: =IFERROR(IF($F81="None", 1, INDEX(SubIndicator!$L$15445:$U$15924, MATCH($F81&" > "&$I81, SubIndicator!$Y$15445:$Y$15924, 0), MATCH(int_Year, SubIndicator!$L$4:$U$4, 0))), 1) -> 1 | M81: =SUMIFS(SubIndicator!V$5:V$16158, SubIndicator!$X$5:$X$16158, $R81) -> 3 | N81: 1.103174477 | O81: 5 | P81: 22.06348955 | Q81: 1.103174477 | R81: 1.01 > Honduras | S81: 70 | T81: 1
A82: 1.01 | B82: Enabling framework | C82: Policy & Regulation | D82: Clean energy policies | E82: Both | F82: None | G82: Policy Types | H82: LAC | I82: Jamaica | J82: User Defined | K82: 5 | L82: =IFERROR(IF($F82="None", 1, INDEX(SubIndicator!$L$15445:$U$15924, MATCH($F82&" > "&$I82, SubIndicator!$Y$15445:$Y$15924, 0), MATCH(int_Year, SubIndicator!$L$4:$U$4, 0))), 1) -> 1 | M82: =SUMIFS(SubIndicator!V$5:V$16158, SubIndicator!$X$5:$X$16158, $R82) -> 4 | N82: 1.492160751 | O82: 5 | P82: 29.84321501 | Q82: 1.492160751 | R82: 1.01 > Jamaica | S82: 71 | T82: 1
A83: 1.01 | B83: Enabling framework | C83: Policy & Regulation | D83: Clean energy policies | E83: Both | F83: None | G83: Policy Types | H83: LAC | I83: Mexico | J83: User Defined | K83: 5 | L83: =IFERROR(IF($F83="None", 1, INDEX(SubIndicator!$L$15445:$U$15924, MATCH($F83&" > "&$I83, SubIndicator!$Y$15445:$Y$15924, 0), MATCH(int_Year, SubIndicator!$L$4:$U$4, 0))), 1) -> 1 | M83: =SUMIFS(SubIndicator!V$5:V$16158, SubIndicator!$X$5:$X$16158, $R83) -> 5 | N83: 2.123059841 | O83: 5 | P83: 42.46119683 | Q83: 2.123059841 | R83: 1.01 > Mexico | S83: 72 | T83: 1
A84: 1.01 | B84: Enabling framework | C84: Policy & Regulation | D84: Clean energy policies | E84: Both | F84: None | G84: Policy Types | H84: LAC | I84: Nicaragua | J84: User Defined | K84: 5 | L84: =IFERROR(IF($F84="None", 1, INDEX(SubIndicator!$L$15445:$U$15924, MATCH($F84&" > "&$I84, SubIndicator!$Y$15445:$Y$15924, 0), MATCH(int_Year, SubIndicator!$L$4:$U$4, 0))), 1) -> 1 | M84: =SUMIFS(SubIndicator!V$5:V$16158, SubIndicator!$X$5:$X$16158, $R84) -> 3 | N84: 1.184862732 | O84: 5 | P84: 23.69725465 | Q84: 1.184862732 | R84: 1.01 > Nicaragua | S84: 73 | T84: 1
A85: 1.01 | B85: Enabling framework | C85: Policy & Regulation | D85: Clean energy policies | E85: Both | F85: None | G85: Policy Types | H85: LAC | I85: Panama | J85: User Defined | K85: 5 | L85: =IFERROR(IF($F85="None", 1, INDEX(SubIndicator!$L$15445:$U$15924, MATCH($F85&" > "&$I85, SubIndicator!$Y$15445:$Y$15924, 0), MATCH(int_Year, SubIndicator!$L$4:$U$4, 0))), 1) -> 1 | M85: =SUMIFS(SubIndicator!V$5:V$16158, SubIndicator!$X$5:$X$16158, $R85) -> 5 | N85: 1.993489744 | O85: 5 | P85: 39.86979488 | Q85: 1.993489744 | R85: 1.01 > Panama | S85: 74 | T85: 1
A86: 1.01 | B86: Enabling framework | C86: Policy & Regulation | D86: Clean energy policies | E86: Both | F86: None | G86: Policy Types | H86: LAC | I86: Paraguay | J86: User Defined | K86: 5 | L86: =IFERROR(IF($F86="None", 1, INDEX(SubIndicator!$L$15445:$U$15924, MATCH($F86&" > "&$I86, SubIndicator!$Y$15445:$Y$15924, 0), MATCH(int_Year, SubIndicator!$L$4:$U$4, 0))), 1) -> 1 | M86: =SUMIFS(SubIndicator!V$5:V$16158, SubIndicator!$X$5:$X$16158, $R86) -> 1 | N86: 0.3927633652 | O86: 5 | P86: 7.855267303 | Q86: 0.3927633652 | R86: 1.01 > Paraguay | S86: 75 | T86: 1
A87: 1.01 | B87: Enabling framework | C87: Policy & Regulation | D87: Clean energy policies | E87: Both | F87: None | G87: Policy Types | H87: LAC | I87: Peru | J87: User Defined | K87: 5 | L87: =IFERROR(IF($F87="None", 1, INDEX(SubIndicator!$L$15445:$U$15924, MATCH($F87&" > "&$I87, SubIndicator!$Y$15445:$Y$15924, 0), MATCH(int_Year, SubIndicator!$L$4:$U$4, 0))), 1) -> 1 | M87: =SUMIFS(SubIndicator!V$5:V$16158, SubIndicator!$X$5:$X$16158, $R87) -> 4 | N87: 1.665601606 | O87: 5 | P87: 33.31203213 | Q87: 1.665601606 | R87: 1.01 > Peru | S87: 76 | T87: 1
A88: 1.01 | B88: Enabling framework | C88: Policy & Regulation | D88: Clean energy policies | E88: Both | F88: None | G88: Policy Types | H88: LAC | I88: Suriname | J88: User Defined | K88: 5 | L88: =IFERROR(IF($F88="None", 1, INDEX(SubIndicator!$L$15445:$U$15924, MATCH($F88&" > "&$I88, SubIndicator!$Y$15445:$Y$15924, 0), MATCH(int_Year, SubIndicator!$L$4:$U$4, 0))), 1) -> 1 | M88: =SUMIFS(SubIndicator!V$5:V$16158, SubIndicator!$X$5:$X$16158, $R88) -> 0 | N88: 0 | O88: 5 | P88: 0 | Q88: 0 | R88: 1.01 > Suriname | S88: 77 | T88: 1
A89: 1.01 | B89: Enabling framework | C89: Policy & Regulation | D89: Clean energy policies | E89: Both | F89: None | G89: Policy Types | H89: LAC | I89: Trinidad & Tobago | J89: User Defined | K89: 5 | L89: =IFERROR(IF($F89="None", 1, INDEX(SubIndicator!$L$15445:$U$15924, MATCH($F89&" > "&$I89, SubIndicator!$Y$15445:$Y$15924, 0), MATCH(int_Year, SubIndicator!$L$4:$U$4, 0))), 1) -> 1 | M89: =SUMIFS(SubIndicator!V$5:V$16158, SubIndicator!$X$5:$X$16158, $R89) -> 2 | N89: 0.6012558175 | O89: 5 | P89: 12.02511635 | Q89: 0.6012558175 | R89: 1.01 > Trinidad & Tobago | S89: 78 | T89: 1
A90: 1.01 | B90: Enabling framework | C90: Policy & Regulation | D90: Clean energy policies | E90: Both | F90: None | G90: Policy Types | H90: LAC | I90: Uruguay | J90: User Defined | K90: 5 | L90: =IFERROR(IF($F90="None", 1, INDEX(SubIndicator!$L$15445:$U$15924, MATCH($F90&" > "&$I90, SubIndicator!$Y$15445:$Y$15924, 0), MATCH(int_Year, SubIndicator!$L$4:$U$4, 0))), 1) -> 1 | M90: =SUMIFS(SubIndicator!V$5:V$16158, SubIndicator!$X$5:$X$16158, $R90) -> 5 | N90: 2.506937209 | O90: 5 | P90: 50.13874417 | Q90: 2.506937209 | R90: 1.01 > Uruguay | S90: 79 | T90: 1
A91: 1.01 | B91: Enabling framework | C91: Policy & Regulation | D91: Clean energy policies | E91: Both | F91: None | G91: Policy Types | H91: LAC | I91: Venezuela | J91: User Defined | K91: 5 | L91: =IFERROR(IF($F91="None", 1, INDEX(SubIndicator!$L$15445:$U$15924, MATCH($F91&" > "&$I91, SubIndicator!$Y$15445:$Y$15924, 0), MATCH(int_Year, SubIndicator!$L$4:$U$4, 0))), 1) -> 1 | M91: =SUMIFS(SubIndicator!V$5:V$16158, SubIndicator!$X$5:$X$16158, $R91) -> 0 | N91: 0 | O91: 5 | P91: 0 | Q91: 0 | R91: 1.01 > Venezuela | S91: 80 | T91: 1
A92: 1.02 | B92: Enabling framework | C92: Policy & Regulation | D92: Power sector structure | E92: Both | F92: None | G92: Question | H92: =H12 -> Africa | I92: Botswana | J92: User Defined | K92: 11 | L92: =IFERROR(IF($F92="None", 1, INDEX(SubIndicator!$L$15445:$U$15924, MATCH($F92&" > "&$I92, SubIndicator!$Y$15445:$Y$15924, 0), MATCH(int_Year, SubIndicator!$L$4:$U$4, 0))), 1) -> 1 | M92: =SUMIFS(SubIndicator!V$5:V$16158, SubIndicator!$X$5:$X$16158, $R92) -> 1 | N92: 1 | O92: =IFERROR(IF(J92="User Defined", $K92, IF(J92="Min", SMALL(N92:N171, COUNTIF(N92:N171, 0)+1), IF(J92="Max", MAX(N92:N171), IF(J92="Average", AVERAGEIF(N92:N171, "<>0"), IF(J92="Total", SUM(N92:N171), 0))))), 0) -> 11 | P92: 9.090909091 | Q92: None | R92: 1.02 > Botswana | S92: 81 | T92: 2
A93: 1.02 | B93: Enabling framework | C93: Policy & Regulation | D93: Power sector structure | E93: Both | F93: None | G93: Question | H93: Africa | I93: Cameroon | J93: =J92 -> User Defined | K93: =K92 -> 11 | L93: =IFERROR(IF($F93="None", 1, INDEX(SubIndicator!$L$15445:$U$15924, MATCH($F93&" > "&$I93, SubIndicator!$Y$15445:$Y$15924, 0), MATCH(int_Year, SubIndicator!$L$4:$U$4, 0))), 1) -> 1 | M93: =SUMIFS(SubIndicator!V$5:V$16158, SubIndicator!$X$5:$X$16158, $R93) -> 2.24 | N93: 2.24 | O93: =O92 -> 11 | P93: 20.36363636 | Q93: None | R93: 1.02 > Cameroon | S93: 82 | T93: 2
A94: 1.02 | B94: Enabling framework | C94: Policy & Regulation | D94: Power sector structure | E94: Both | F94: None | G94: Question | H94: Africa | I94: Cote d'Ivoire | J94: User Defined | K94: 11 | L94: =IFERROR(IF($F94="None", 1, INDEX(SubIndicator!$L$15445:$U$15924, MATCH($F94&" > "&$I94, SubIndicator!$Y$15445:$Y$15924, 0), MATCH(int_Year, SubIndicator!$L$4:$U$4, 0))), 1) -> 1 | M94: =SUMIFS(SubIndicator!V$5:V$16158, SubIndicator!$X$5:$X$16158, $R94) -> 6.375 | N94: 6.375 | O94: 11 | P94: 57.95454545 | Q94: None | R94: 1.02 > Cote d'Ivoire | S94: 83 | T94: 2
A95: 1.02 | B95: Enabling framework | C95: Policy & Regulation | D95: Power sector structure | E95: Both | F95: None | G95: Question | H95: Africa | I95: Congo (Dem. Rep.) | J95: User Defined | K95: 11 | L95: =IFERROR(IF($F95="None", 1, INDEX(SubIndicator!$L$15445:$U$15924, MATCH($F95&" > "&$I95, SubIndicator!$Y$15445:$Y$15924, 0), MATCH(int_Year, SubIndicator!$L$4:$U$4, 0))), 1) -> 1 | M95: =SUMIFS(SubIndicator!V$5:V$16158, SubIndicator!$X$5:$X$16158, $R95) -> 0.125 | N95: 0.125 | O95: 11 | P95: 1.136363636 | Q95: None | R95: 1.02 > Congo (Dem. Rep.) | S95: 84 | T95: 2
A96: 1.02 | B96: Enabling framework | C96: Policy & Regulation | D96: Power sector structure | E96: Both | F96: None | G96: Question | H96: Africa | I96: Ethiopia | J96: User Defined | K96: 11 | L96: =IFERROR(IF($F96="None", 1, INDEX(SubIndicator!$L$15445:$U$15924, MATCH($F96&" > "&$I96, SubIndicator!$Y$15445:$Y$15924, 0), MATCH(int_Year, SubIndicator!$L$4:$U$4, 0))), 1) -> 1 | M96: =SUMIFS(SubIndicator!V$5:V$16158, SubIndicator!$X$5:$X$16158, $R96) -> 1.125 | N96: 1.125 | O96: 11 | P96: 10.22727273 | Q96: None | R96: 1.02 > Ethiopia | S96: 85 | T96: 2
A97: 1.02 | B97: Enabling framework | C97: Policy & Regulation | D97: Power sector structure | E97: Both | F97: None | G97: Question | H97: Africa | I97: Ghana | J97: User Defined | K97: 11 | L97: =IFERROR(IF($F97="None", 1, INDEX(SubIndicator!$L$15445:$U$15924, MATCH($F97&" > "&$I97, SubIndicator!$Y$15445:$Y$15924, 0), MATCH(int_Year, SubIndicator!$L$4:$U$4, 0))), 1) -> 1 | M97: =SUMIFS(SubIndicator!V$5:V$16158, SubIndicator!$X$5:$X$16158, $R97) -> 3.605 | N97: 3.605 | O97: 11 | P97: 32.77272727 | Q97: None | R97: 1.02 > Ghana | S97: 86 | T97: 2
A98: 1.02 | B98: Enabling framework | C98: Policy & Regulation | D98: Power sector structure | E98: Both | F98: None | G98: Question | H98: Africa | I98: Kenya | J98: User Defined | K98: 11 | L98: =IFERROR(IF($F98="None", 1, INDEX(SubIndicator!$L$15445:$U$15924, MATCH($F98&" > "&$I98, SubIndicator!$Y$15445:$Y$15924, 0), MATCH(int_Year, SubIndicator!$L$4:$U$4, 0))), 1) -> 1 | M98: =SUMIFS(SubIndicator!V$5:V$16158, SubIndicator!$X$5:$X$16158, $R98) -> 3.84 | N98: 3.84 | O98: 11 | P98: 34.90909091 | Q98: None | R98: 1.02 > Kenya | S98: 87 | T98: 2
A99: 1.02 | B99: Enabling framework | C99: Policy & Regulation | D99: Power sector structure | E99: Both | F99: None | G99: Question | H99: Africa | I99: Liberia | J99: User Defined | K99: 11 | L99: =IFERROR(IF($F99="None", 1, INDEX(SubIndicator!$L$15445:$U$15924, MATCH($F99&" > "&$I99, SubIndicator!$Y$15445:$Y$15924, 0), MATCH(int_Year, SubIndicator!$L$4:$U$4, 0))), 1) -> 1 | M99: =SUMIFS(SubIndicator!V$5:V$16158, SubIndicator!$X$5:$X$16158, $R99) -> 1.5 | N99: 1.5 | O99: 11 | P99: 13.63636364 | Q99: None | R99: 1.02 > Liberia | S99: 88 | T99: 2
A100: 1.02 | B100: Enabling framework | C100: Policy & Regulation | D100: Power sector structure | E100: Both | F100: None | G100: Question | H100: Africa | I100: Malawi | J100: User Defined | K100: 11 | L100: =IFERROR(IF($F100="None", 1, INDEX(SubIndicator!$L$15445:$U$15924, MATCH($F100&" > "&$I100, SubIndicator!$Y$15445:$Y$15924, 0), MATCH(int_Year, SubIndicator!$L$4:$U$4, 0))), 1) -> 1 | M100: =SUMIFS(SubIndicator!V$5:V$16158, SubIndicator!$X$5:$X$16158, $R100) -> 0.3 | N100: 0.3 | O100: 11 | P100: 2.727272727 | Q100: None | R100: 1.02 > Malawi | S100: 89 | T100: 2
A101: 1.02 | B101: Enabling framework | C101: Policy & Regulation | D101: Power sector structure | E101: Both | F101: None | G101: Question | H101: Africa | I101: Mozambique | J101: User Defined | K101: 11 | L101: =IFERROR(IF($F101="None", 1, INDEX(SubIndicator!$L$15445:$U$15924, MATCH($F101&" > "&$I101, SubIndicator!$Y$15445:$Y$15924, 0), MATCH(int_Year, SubIndicator!$L$4:$U$4, 0))), 1) -> 1 | M101: =SUMIFS(SubIndicator!V$5:V$16158, SubIndicator!$X$5:$X$16158, $R101) -> 1.25 | N101: 1.25 | O101: 11 | P101: 11.36363636 | Q101: None | R101: 1.02 > Mozambique | S101: 90 | T101: 2
A102: 1.02 | B102: Enabling framework | C102: Policy & Regulation | D102: Power sector structure | E102: Both | F102: None | G102: Question | H102: Africa | I102: Nigeria | J102: User Defined | K102: 11 | L102: =IFERROR(IF($F102="None", 1, INDEX(SubIndicator!$L$15445:$U$15924, MATCH($F102&" > "&$I102, SubIndicator!$Y$15445:$Y$15924, 0), MATCH(int_Year, SubIndicator!$L$4:$U$4, 0))), 1) -> 1 | M102: =SUMIFS(SubIndicator!V$5:V$16158, SubIndicator!$X$5:$X$16158, $R102) -> 6.25 | N102: 6.25 | O102: 11 | P102: 56.81818182 | Q102: None | R102: 1.02 > Nigeria | S102: 91 | T102: 2
A103: 1.02 | B103: Enabling framework | C103: Policy & Regulation | D103: Power sector structure | E103: Both | F103: None | G103: Question | H103: Africa | I103: Rwanda | J103: User Defined | K103: 11 | L103: =IFERROR(IF($F103="None", 1, INDEX(SubIndicator!$L$15445:$U$15924, MATCH($F103&" > "&$I103, SubIndicator!$Y$15445:$Y$15924, 0), MATCH(int_Year, SubIndicator!$L$4:$U$4, 0))), 1) -> 1 | M103: =SUMIFS(SubIndicator!V$5:V$16158, SubIndicator!$X$5:$X$16158, $R103) -> 2.36 | N103: 2.36 | O103: 11 | P103: 21.45454545 | Q103: None | R103: 1.02 > Rwanda | S103: 92 | T103: 2
A104: 1.02 | B104: Enabling framework | C104: Policy & Regulation | D104: Power sector structure | E104: Both | F104: None | G104: Question | H104: Africa | I104: Senegal | J104: User Defined | K104: 11 | L104: =IFERROR(IF($F104="None", 1, INDEX(SubIndicator!$L$15445:$U$15924, MATCH($F104&" > "&$I104, SubIndicator!$Y$15445:$Y$15924, 0), MATCH(int_Year, SubIndicator!$L$4:$U$4, 0))), 1) -> 1 | M104: =SUMIFS(SubIndicator!V$5:V$16158, SubIndicator!$X$5:$X$16158, $R104) -> 3.72 | N104: 3.72 | O104: 11 | P104: 33.81818182 | Q104: None | R104: 1.02 > Senegal | S104: 93 | T104: 2
A105: 1.02 | B105: Enabling framework | C105: Policy & Regulation | D105: Power sector structure | E105: Both | F105: None | G105: Question | H105: Africa | I105: Sierra Leone | J105: User Defined | K105: 11 | L105: =IFERROR(IF($F105="None", 1, INDEX(SubIndicator!$L$15445:$U$15924, MATCH($F105&" > "&$I105, SubIndicator!$Y$15445:$Y$15924, 0), MATCH(int_Year, SubIndicator!$L$4:$U$4, 0))), 1) -> 1 | M105: =SUMIFS(SubIndicator!V$5:V$16158, SubIndicator!$X$5:$X$16158, $R105) -> 1.39 | N105: 1.39 | O105: 11 | P105: 12.63636364 | Q105: None | R105: 1.02 > Sierra Leone | S105: 94 | T105: 2
A106: 1.02 | B106: Enabling framework | C106: Policy & Regulation | D106: Power sector structure | E106: Both | F106: None | G106: Question | H106: Africa | I106: South Africa | J106: User Defined | K106: 11 | L106: =IFERROR(IF($F106="None", 1, INDEX(SubIndicator!$L$15445:$U$15924, MATCH($F106&" > "&$I106, SubIndicator!$Y$15445:$Y$15924, 0), MATCH(int_Year, SubIndicator!$L$4:$U$4, 0))), 1) -> 1 | M106: =SUMIFS(SubIndicator!V$5:V$16158, SubIndicator!$X$5:$X$16158, $R106) -> 2.045 | N106: 2.045 | O106: 11 | P106: 18.59090909 | Q106: None | R106: 1.02 > South Africa | S106: 95 | T106: 2
A107: 1.02 | B107: Enabling framework | C107: Policy & Regulation | D107: Power sector structure | E107: Both | F107: None | G107: Question | H107: Africa | I107: Tanzania | J107: User Defined | K107: 11 | L107: =IFERROR(IF($F107="None", 1, INDEX(SubIndicator!$L$15445:$U$15924, MATCH($F107&" > "&$I107, SubIndicator!$Y$15445:$Y$15924, 0), MATCH(int_Year, SubIndicator!$L$4:$U$4, 0))), 1) -> 1 | M107: =SUMIFS(SubIndicator!V$5:V$16158, SubIndicator!$X$5:$X$16158, $R107) -> 1.6 | N107: 1.6 | O107: 11 | P107: 14.54545455 | Q107: None | R107: 1.02 > Tanzania | S107: 96 | T107: 2
A108: 1.02 | B108: Enabling framework | C108: Policy & Regulation | D108: Power sector structure | E108: Both | F108: None | G108: Question | H108: Africa | I108: Uganda | J108: User Defined | K108: 11 | L108: =IFERROR(IF($F108="None", 1, INDEX(SubIndicator!$L$15445:$U$15924, MATCH($F108&" > "&$I108, SubIndicator!$Y$15445:$Y$15924, 0), MATCH(int_Year, SubIndicator!$L$4:$U$4, 0))), 1) -> 1 | M108: =SUMIFS(SubIndicator!V$5:V$16158, SubIndicator!$X$5:$X$16158, $R108) -> 3.945 | N108: 3.945 | O108: 11 | P108: 35.86363636 | Q108: None | R108: 1.02 > Uganda | S108: 97 | T108: 2
A109: 1.02 | B109: Enabling framework | C109: Policy & Regulation | D109: Power sector structure | E109: Both | F109: None | G109: Question | H109: Africa | I109: Zambia | J109: User Defined | K109: 11 | L109: =IFERROR(IF($F109="None", 1, INDEX(SubIndicator!$L$15445:$U$15924, MATCH($F109&" > "&$I109, SubIndicator!$Y$15445:$Y$15924, 0), MATCH(int_Year, SubIndicator!$L$4:$U$4, 0))), 1) -> 1 | M109: =SUMIFS(SubIndicator!V$5:V$16158, SubIndicator!$X$5:$X$16158, $R109) -> 3.209 | N109: 3.209 | O109: 11 | P109: 29.17272727 | Q109: None | R109: 1.02 > Zambia | S109: 98 | T109: 2
A110: 1.02 | B110: Enabling framework | C110: Policy & Regulation | D110: Power sector structure | E110: Both | F110: None | G110: Question | H110: Africa | I110: Zimbabwe | J110: User Defined | K110: 11 | L110: =IFERROR(IF($F110="None", 1, INDEX(SubIndicator!$L$15445:$U$15924, MATCH($F110&" > "&$I110, SubIndicator!$Y$15445:$Y$15924, 0), MATCH(int_Year, SubIndicator!$L$4:$U$4, 0))), 1) -> 1 | M110: =SUMIFS(SubIndicator!V$5:V$16158, SubIndicator!$X$5:$X$16158, $R110) -> 0.675 | N110: 0.675 | O110: 11 | P110: 6.136363636 | Q110: None | R110: 1.02 > Zimbabwe | S110: 99 | T110: 2
A111: 1.02 | B111: Enabling framework | C111: Policy & Regulation | D111: Power sector structure | E111: Both | F111: None | G111: Question | H111: Asia | I111: Bangladesh | J111: User Defined | K111: 11 | L111: =IFERROR(IF($F111="None", 1, INDEX(SubIndicator!$L$15445:$U$15924, MATCH($F111&" > "&$I111, SubIndicator!$Y$15445:$Y$15924, 0), MATCH(int_Year, SubIndicator!$L$4:$U$4, 0))), 1) -> 1 | M111: =SUMIFS(SubIndicator!V$5:V$16158, SubIndicator!$X$5:$X$16158, $R111) -> 7.6 | N111: 7.6 | O111: 11 | P111: 69.09090909 | Q111: None | R111: 1.02 > Bangladesh | S111: 100 | T111: 2
A112: 1.02 | B112: Enabling framework | C112: Policy & Regulation | D112: Power sector structure | E112: Both | F112: None | G112: Question | H112: =H32 -> Asia | I112: China | J112: User Defined | K112: 11 | L112: =IFERROR(IF($F112="None", 1, INDEX(SubIndicator!$L$15445:$U$15924, MATCH($F112&" > "&$I112, SubIndicator!$Y$15445:$Y$15924, 0), MATCH(int_Year, SubIndicator!$L$4:$U$4, 0))), 1) -> 1 | M112: =SUMIFS(SubIndicator!V$5:V$16158, SubIndicator!$X$5:$X$16158, $R112) -> 7.125 | N112: 7.125 | O112: 11 | P112: 64.77272727 | Q112: None | R112: 1.02 > China | S112: 101 | T112: 2
A113: 1.02 | B113: Enabling framework | C113: Policy & Regulation | D113: Power sector structure | E113: Both | F113: None | G113: Question | H113: Asia | I113: China :: Fujian | J113: User Defined | K113: 11 | L113: =IFERROR(IF($F113="None", 1, INDEX(SubIndicator!$L$15445:$U$15924, MATCH($F113&" > "&$I113, SubIndicator!$Y$15445:$Y$15924, 0), MATCH(int_Year, SubIndicator!$L$4:$U$4, 0))), 1) -> 1 | M113: =SUMIFS(SubIndicator!V$5:V$16158, SubIndicator!$X$5:$X$16158, $R113) -> 5.625 | N113: 5.625 | O113: 11 | P113: 51.13636364 | Q113: None | R113: 1.02 > China :: Fujian | S113: 102 | T113: 2
A114: 1.02 | B114: Enabling framework | C114: Policy & Regulation | D114: Power sector structure | E114: Both | F114: None | G114: Question | H114: Asia | I114: China :: Gansu | J114: User Defined | K114: 11 | L114: =IFERROR(IF($F114="None", 1, INDEX(SubIndicator!$L$15445:$U$15924, MATCH($F114&" > "&$I114, SubIndicator!$Y$15445:$Y$15924, 0), MATCH(int_Year, SubIndicator!$L$4:$U$4, 0))), 1) -> 1 | M114: =SUMIFS(SubIndicator!V$5:V$16158, SubIndicator!$X$5:$X$16158, $R114) -> 6.625 | N114: 6.625 | O114: 11 | P114: 60.22727273 | Q114: None | R114: 1.02 > China :: Gansu | S114: 103 | T114: 2
A115: 1.02 | B115: Enabling framework | C115: Policy & Regulation | D115: Power sector structure | E115: Both | F115: None | G115: Question | H115: Asia | I115: China :: Guangdong | J115: User Defined | K115: 11 | L115: =IFERROR(IF($F115="None", 1, INDEX(SubIndicator!$L$15445:$U$15924, MATCH($F115&" > "&$I115, SubIndicator!$Y$15445:$Y$15924, 0), MATCH(int_Year, SubIndicator!$L$4:$U$4, 0))), 1) -> 1 | M115: =SUMIFS(SubIndicator!V$5:V$16158, SubIndicator!$X$5:$X$16158, $R115) -> 6.625 | N115: 6.625 | O115: 11 | P115: 60.22727273 | Q115: None | R115: 1.02 > China :: Guangdong | S115: 104 | T115: 2
A116: 1.02 | B116: Enabling framework | C116: Policy & Regulation | D116: Power sector structure | E116: Both | F116: None | G116: Question | H116: Asia | I116: China :: Hebei | J116: User Defined | K116: 11 | L116: =IFERROR(IF($F116="None", 1, INDEX(SubIndicator!$L$15445:$U$15924, MATCH($F116&" > "&$I116, SubIndicator!$Y$15445:$Y$15924, 0), MATCH(int_Year, SubIndicator!$L$4:$U$4, 0))), 1) -> 1 | M116: =SUMIFS(SubIndicator!V$5:V$16158, SubIndicator!$X$5:$X$16158, $R116) -> 6.625 | N116: 6.625 | O116: 11 | P116: 60.22727273 | Q116: None | R116: 1.02 > China :: Hebei | S116: 105 | T116: 2
A117: 1.02 | B117: Enabling framework | C117: Policy & Regulation | D117: Power sector structure | E117: Both | F117: None | G117: Question | H117: Asia | I117: China :: Heilongjiang | J117: User Defined | K117: 11 | L117: =IFERROR(IF($F117="None", 1, INDEX(SubIndicator!$L$15445:$U$15924, MATCH($F117&" > "&$I117, SubIndicator!$Y$15445:$Y$15924, 0), MATCH(int_Year, SubIndicator!$L$4:$U$4, 0))), 1) -> 1 | M117: =SUMIFS(SubIndicator!V$5:V$16158, SubIndicator!$X$5:$X$16158, $R117) -> 6.625 | N117: 6.625 | O117: 11 | P117: 60.22727273 | Q117: None | R117: 1.02 > China :: Heilongjiang | S117: 106 | T117: 2
A118: 1.02 | B118: Enabling framework | C118: Policy & Regulation | D118: Power sector structure | E118: Both | F118: None | G118: Question | H118: Asia | I118: China :: Hubei | J118: User Defined | K118: 11 | L118: =IFERROR(IF($F118="None", 1, INDEX(SubIndicator!$L$15445:$U$15924, MATCH($F118&" > "&$I118, SubIndicator!$Y$15445:$Y$15924, 0), MATCH(int_Year, SubIndicator!$L$4:$U$4, 0))), 1) -> 1 | M118: =SUMIFS(SubIndicator!V$5:V$16158, SubIndicator!$X$5:$X$16158, $R118) -> 6.625 | N118: 6.625 | O118: 11 | P118: 60.22727273 | Q118: None | R118: 1.02 > China :: Hubei | S118: 107 | T118: 2
A119: 1.02 | B119: Enabling framework | C119: Policy & Regulation | D119: Power sector structure | E119: Both | F119: None | G119: Question | H119: Asia | I119: China :: Inner Mongolia | J119: User Defined | K119: 11 | L119: =IFERROR(IF($F119="None", 1, INDEX(SubIndicator!$L$15445:$U$15924, MATCH($F119&" > "&$I119, SubIndicator!$Y$15445:$Y$15924, 0), MATCH(int_Year, SubIndicator!$L$4:$U$4, 0))), 1) -> 1 | M119: =SUMIFS(SubIndicator!V$5:V$16158, SubIndicator!$X$5:$X$16158, $R119) -> 6.625 | N119: 6.625 | O119: 11 | P119: 60.22727273 | Q119: None | R119: 1.02 > China :: Inner Mongolia | S119: 108 | T119: 2
A120: 1.02 | B120: Enabling framework | C120: Policy & Regulation | D120: Power sector structure | E120: Both | F120: None | G120: Question | H120: Asia | I120: China :: Jiangsu | J120: User Defined | K120: 11 | L120: =IFERROR(IF($F120="None", 1, INDEX(SubIndicator!$L$15445:$U$15924, MATCH($F120&" > "&$I120, SubIndicator!$Y$15445:$Y$15924, 0), MATCH(int_Year, SubIndicator!$L$4:$U$4, 0))), 1) -> 1 | M120: =SUMIFS(SubIndicator!V$5:V$16158, SubIndicator!$X$5:$X$16158, $R120) -> 6.625 | N120: 6.625 | O120: 11 | P120: 60.22727273 | Q120: None | R120: 1.02 > China :: Jiangsu | S120: 109 | T120: 2
A121: 1.02 | B121: Enabling framework | C121: Policy & Regulation | D121: Power sector structure | E121: Both | F121: None | G121: Question | H121: Asia | I121: China :: Jilin | J121: User Defined | K121: 11 | L121: =IFERROR(IF($F121="None", 1, INDEX(SubIndicator!$L$15445:$U$15924, MATCH($F121&" > "&$I121, SubIndicator!$Y$15445:$Y$15924, 0), MATCH(int_Year, SubIndicator!$L$4:$U$4, 0))), 1) -> 1 | M121: =SUMIFS(SubIndicator!V$5:V$16158, SubIndicator!$X$5:$X$16158, $R121) -> 6.625 | N121: 6.625 | O121: 11 | P121: 60.22727273 | Q121: None | R121: 1.02 > China :: Jilin | S121: 110 | T121: 2
A122: 1.02 | B122: Enabling framework | C122: Policy & Regulation | D122: Power sector structure | E122: Both | F122: None | G122: Question | H122: Asia | I122: China :: Qinghai | J122: User Defined | K122: 11 | L122: =IFERROR(IF($F122="None", 1, INDEX(SubIndicator!$L$15445:$U$15924, MATCH($F122&" > "&$I122, SubIndicator!$Y$15445:$Y$15924, 0), MATCH(int_Year, SubIndicator!$L$4:$U$4, 0))), 1) -> 1 | M122: =SUMIFS(SubIndicator!V$5:V$16158, SubIndicator!$X$5:$X$16158, $R122) -> 6.625 | N122: 6.625 | O122: 11 | P122: 60.22727273 | Q122: None | R122: 1.02 > China :: Qinghai | S122: 111 | T122: 2
A123: 1.02 | B123: Enabling framework | C123: Policy & Regulation | D123: Power sector structure | E123: Both | F123: None | G123: Question | H123: Asia | I123: China :: Shandong | J123: User Defined | K123: 11 | L123: =IFERROR(IF($F123="None", 1, INDEX(SubIndicator!$L$15445:$U$15924, MATCH($F123&" > "&$I123, SubIndicator!$Y$15445:$Y$15924, 0), MATCH(int_Year, SubIndicator!$L$4:$U$4, 0))), 1) -> 1 | M123: =SUMIFS(SubIndicator!V$5:V$16158, SubIndicator!$X$5:$X$16158, $R123) -> 6.625 | N123: 6.625 | O123: 11 | P123: 60.22727273 | Q123: None | R123: 1.02 > China :: Shandong | S123: 112 | T123: 2
A124: 1.02 | B124: Enabling framework | C124: Policy & Regulation | D124: Power sector structure | E124: Both | F124: None | G124: Question | H124: Asia | I124: China :: Sichuan | J124: User Defined | K124: 11 | L124: =IFERROR(IF($F124="None", 1, INDEX(SubIndicator!$L$15445:$U$15924, MATCH($F124&" > "&$I124, SubIndicator!$Y$15445:$Y$15924, 0), MATCH(int_Year, SubIndicator!$L$4:$U$4, 0))), 1) -> 1 | M124: =SUMIFS(SubIndicator!V$5:V$16158, SubIndicator!$X$5:$X$16158, $R124) -> 6.625 | N124: 6.625 | O124: 11 | P124: 60.22727273 | Q124: None | R124: 1.02 > China :: Sichuan | S124: 113 | T124: 2
A125: 1.02 | B125: Enabling framework | C125: Policy & Regulation | D125: Power sector structure | E125: Both | F125: None | G125: Question | H125: Asia | I125: China :: Tibet | J125: User Defined | K125: 11 | L125: =IFERROR(IF($F125="None", 1, INDEX(SubIndicator!$L$15445:$U$15924, MATCH($F125&" > "&$I125, SubIndicator!$Y$15445:$Y$15924, 0), MATCH(int_Year, SubIndicator!$L$4:$U$4, 0))), 1) -> 1 | M125: =SUMIFS(SubIndicator!V$5:V$16158, SubIndicator!$X$5:$X$16158, $R125) -> 7.125 | N125: 7.125 | O125: =O124 -> 11 | P125: 64.77272727 | Q125: None | R125: 1.02 > China :: Tibet | S125: 114 | T125: 2
A126: 1.02 | B126: Enabling framework | C126: Policy & Regulation | D126: Power sector structure | E126: Both | F126: None | G126: Question | H126: Asia | I126: China :: Xinjiang | J126: User Defined | K126: 11 | L126: =IFERROR(IF($F126="None", 1, INDEX(SubIndicator!$L$15445:$U$15924, MATCH($F126&" > "&$I126, SubIndicator!$Y$15445:$Y$15924, 0), MATCH(int_Year, SubIndicator!$L$4:$U$4, 0))), 1) -> 1 | M126: =SUMIFS(SubIndicator!V$5:V$16158, SubIndicator!$X$5:$X$16158, $R126) -> 6.625 | N126: 6.625 | O126: 11 | P126: 60.22727273 | Q126: None | R126: 1.02 > China :: Xinjiang | S126: 115 | T126: 2
A127: 1.02 | B127: Enabling framework | C127: Policy & Regulation | D127: Power sector structure | E127: Both | F127: None | G127: Question | H127: Asia | I127: China :: Yunnan | J127: User Defined | K127: 11 | L127: =IFERROR(IF($F127="None", 1, INDEX(SubIndicator!$L$15445:$U$15924, MATCH($F127&" > "&$I127, SubIndicator!$Y$15445:$Y$15924, 0), MATCH(int_Year, SubIndicator!$L$4:$U$4, 0))), 1) -> 1 | M127: =SUMIFS(SubIndicator!V$5:V$16158, SubIndicator!$X$5:$X$16158, $R127) -> 6.625 | N127: 6.625 | O127: 11 | P127: 60.22727273 | Q127: None | R127: 1.02 > China :: Yunnan | S127: 116 | T127: 2
A128: 1.02 | B128: Enabling framework | C128: Policy & Regulation | D128: Power sector structure | E128: Both | F128: None | G128: Question | H128: Asia | I128: India | J128: User Defined | K128: 11 | L128: =IFERROR(IF($F128="None", 1, INDEX(SubIndicator!$L$15445:$U$15924, MATCH($F128&" > "&$I128, SubIndicator!$Y$15445:$Y$15924, 0), MATCH(int_Year, SubIndicator!$L$4:$U$4, 0))), 1) -> 1 | M128: =SUMIFS(SubIndicator!V$5:V$16158, SubIndicator!$X$5:$X$16158, $R128) -> 7.219 | N128: 7.219 | O128: 11 | P128: 65.62727273 | Q128: None | R128: 1.02 > India | S128: 117 | T128: 2
A129: 1.02 | B129: Enabling framework | C129: Policy & Regulation | D129: Power sector structure | E129: Both | F129: None | G129: Question | H129: Asia | I129: India :: Andhra Pradesh | J129: User Defined | K129: 11 | L129: =IFERROR(IF($F129="None", 1, INDEX(SubIndicator!$L$15445:$U$15924, MATCH($F129&" > "&$I129, SubIndicator!$Y$15445:$Y$15924, 0), MATCH(int_Year, SubIndicator!$L$4:$U$4, 0))), 1) -> 1 | M129: =SUMIFS(SubIndicator!V$5:V$16158, SubIndicator!$X$5:$X$16158, $R129) -> 5.655 | N129: 5.655 | O129: 11 | P129: 51.40909091 | Q129: None | R129: 1.02 > India :: Andhra Pradesh | S129: 118 | T129: 2
A130: 1.02 | B130: Enabling framework | C130: Policy & Regulation | D130: Power sector structure | E130: Both | F130: None | G130: Question | H130: Asia | I130: India :: Gujarat | J130: User Defined | K130: 11 | L130: =IFERROR(IF($F130="None", 1, INDEX(SubIndicator!$L$15445:$U$15924, MATCH($F130&" > "&$I130, SubIndicator!$Y$15445:$Y$15924, 0), MATCH(int_Year, SubIndicator!$L$4:$U$4, 0))), 1) -> 1 | M130: =SUMIFS(SubIndicator!V$5:V$16158, SubIndicator!$X$5:$X$16158, $R130) -> 9.475 | N130: 9.475 | O130: 11 | P130: 86.13636364 | Q130: None | R130: 1.02 > India :: Gujarat | S130: 119 | T130: 2
A131: 1.02 | B131: Enabling framework | C131: Policy & Regulation | D131: Power sector structure | E131: Both | F131: None | G131: Question | H131: Asia | I131: India :: Karnataka | J131: User Defined | K131: 11 | L131: =IFERROR(IF($F131="None", 1, INDEX(SubIndicator!$L$15445:$U$15924, MATCH($F131&" > "&$I131, SubIndicator!$Y$15445:$Y$15924, 0), MATCH(int_Year, SubIndicator!$L$4:$U$4, 0))), 1) -> 1 | M131: =SUMIFS(SubIndicator!V$5:V$16158, SubIndicator!$X$5:$X$16158, $R131) -> 7.125 | N131: 7.125 | O131: 11 | P131: 64.77272727 | Q131: None | R131: 1.02 > India :: Karnataka | S131: 120 | T131: 2
A132: 1.02 | B132: Enabling framework | C132: Policy & Regulation | D132: Power sector structure | E132: Both | F132: None | G132: Question | H132: =H52 -> Asia | I132: India :: Madhya Pradesh | J132: User Defined | K132: 11 | L132: =IFERROR(IF($F132="None", 1, INDEX(SubIndicator!$L$15445:$U$15924, MATCH($F132&" > "&$I132, SubIndicator!$Y$15445:$Y$15924, 0), MATCH(int_Year, SubIndicator!$L$4:$U$4, 0))), 1) -> 1 | M132: =SUMIFS(SubIndicator!V$5:V$16158, SubIndicator!$X$5:$X$16158, $R132) -> 5.495 | N132: 5.495 | O132: 11 | P132: 49.95454545 | Q132: None | R132: 1.02 > India :: Madhya Pradesh | S132: 121 | T132: 2
A133: 1.02 | B133: Enabling framework | C133: Policy & Regulation | D133: Power sector structure | E133: Both | F133: None | G133: Question | H133: Asia | I133: India :: Maharashtra | J133: User Defined | K133: 11 | L133: =IFERROR(IF($F133="None", 1, INDEX(SubIndicator!$L$15445:$U$15924, MATCH($F133&" > "&$I133, SubIndicator!$Y$15445:$Y$15924, 0), MATCH(int_Year, SubIndicator!$L$4:$U$4, 0))), 1) -> 1 | M133: =SUMIFS(SubIndicator!V$5:V$16158, SubIndicator!$X$5:$X$16158, $R133) -> 7.375 | N133: 7.375 | O133: 11 | P133: 67.04545455 | Q133: None | R133: 1.02 > India :: Maharashtra | S133: 122 | T133: 2
A134: 1.02 | B134: Enabling framework | C134: Policy & Regulation | D134: Power sector structure | E134: Both | F134: None | G134: Question | H134: Asia | I134: India :: Punjab | J134: User Defined | K134: 11 | L134: =IFERROR(IF($F134="None", 1, INDEX(SubIndicator!$L$15445:$U$15924, MATCH($F134&" > "&$I134, SubIndicator!$Y$15445:$Y$15924, 0), MATCH(int_Year, SubIndicator!$L$4:$U$4, 0))), 1) -> 1 | M134: =SUMIFS(SubIndicator!V$5:V$16158, SubIndicator!$X$5:$X$16158, $R134) -> 5.785 | N134: 5.785 | O134: 11 | P134: 52.59090909 | Q134: None | R134: 1.02 > India :: Punjab | S134: 123 | T134: 2
A135: 1.02 | B135: Enabling framework | C135: Policy & Regulation | D135: Power sector structure | E135: Both | F135: None | G135: Question | H135: Asia | I135: India :: Rajasthan | J135: User Defined | K135: 11 | L135: =IFERROR(IF($F135="None", 1, INDEX(SubIndicator!$L$15445:$U$15924, MATCH($F135&" > "&$I135, SubIndicator!$Y$15445:$Y$15924, 0), MATCH(int_Year, SubIndicator!$L$4:$U$4, 0))), 1) -> 1 | M135: =SUMIFS(SubIndicator!V$5:V$16158, SubIndicator!$X$5:$X$16158, $R135) -> 5.445 | N135: 5.445 | O135: 11 | P135: 49.5 | Q135: None | R135: 1.02 > India :: Rajasthan | S135: 124 | T135: 2
A136: 1.02 | B136: Enabling framework | C136: Policy & Regulation | D136: Power sector structure | E136: Both | F136: None | G136: Question | H136: Asia | I136: India :: Tamil Nadu | J136: User Defined | K136: 11 | L136: =IFERROR(IF($F136="None", 1, INDEX(SubIndicator!$L$15445:$U$15924, MATCH($F136&" > "&$I136, SubIndicator!$Y$15445:$Y$15924, 0), MATCH(int_Year, SubIndicator!$L$4:$U$4, 0))), 1) -> 1 | M136: =SUMIFS(SubIndicator!V$5:V$16158, SubIndicator!$X$5:$X$16158, $R136) -> 5.555 | N136: 5.555 | O136: 11 | P136: 50.5 | Q136: None | R136: 1.02 > India :: Tamil Nadu | S136: 125 | T136: 2
A137: 1.02 | B137: Enabling framework | C137: Policy & Regulation | D137: Power sector structure | E137: Both | F137: None | G137: Question | H137: Asia | I137: India :: Uttar Pradesh | J137: User Defined | K137: 11 | L137: =IFERROR(IF($F137="None", 1, INDEX(SubIndicator!$L$15445:$U$15924, MATCH($F137&" > "&$I137, SubIndicator!$Y$15445:$Y$15924, 0), MATCH(int_Year, SubIndicator!$L$4:$U$4, 0))), 1) -> 1 | M137: =SUMIFS(SubIndicator!V$5:V$16158, SubIndicator!$X$5:$X$16158, $R137) -> 5.645 | N137: 5.645 | O137: 11 | P137: 51.31818182 | Q137: None | R137: 1.02 > India :: Uttar Pradesh | S137: 126 | T137: 2
A138: 1.02 | B138: Enabling framework | C138: Policy & Regulation | D138: Power sector structure | E138: Both | F138: None | G138: Question | H138: Asia | I138: India :: West Bengal | J138: User Defined | K138: 11 | L138: =IFERROR(IF($F138="None", 1, INDEX(SubIndicator!$L$15445:$U$15924, MATCH($F138&" > "&$I138, SubIndicator!$Y$15445:$Y$15924, 0), MATCH(int_Year, SubIndicator!$L$4:$U$4, 0))), 1) -> 1 | M138: =SUMIFS(SubIndicator!V$5:V$16158, SubIndicator!$X$5:$X$16158, $R138) -> 6.025 | N138: 6.025 | O138: 11 | P138: 54.77272727 | Q138: None | R138: 1.02 > India :: West Bengal | S138: 127 | T138: 2
A139: 1.02 | B139: Enabling framework | C139: Policy & Regulation | D139: Power sector structure | E139: Both | F139: None | G139: Question | H139: Asia | I139: Indonesia | J139: User Defined | K139: 11 | L139: =IFERROR(IF($F139="None", 1, INDEX(SubIndicator!$L$15445:$U$15924, MATCH($F139&" > "&$I139, SubIndicator!$Y$15445:$Y$15924, 0), MATCH(int_Year, SubIndicator!$L$4:$U$4, 0))), 1) -> 1 | M139: =SUMIFS(SubIndicator!V$5:V$16158, SubIndicator!$X$5:$X$16158, $R139) -> 2.58 | N139: 2.58 | O139: 11 | P139: 23.45454545 | Q139: None | R139: 1.02 > Indonesia | S139: 128 | T139: 2
A140: 1.02 | B140: Enabling framework | C140: Policy & Regulation | D140: Power sector structure | E140: Both | F140: None | G140: Question | H140: Asia | I140: Myanmar | J140: User Defined | K140: 11 | L140: =IFERROR(IF($F140="None", 1, INDEX(SubIndicator!$L$15445:$U$15924, MATCH($F140&" > "&$I140, SubIndicator!$Y$15445:$Y$15924, 0), MATCH(int_Year, SubIndicator!$L$4:$U$4, 0))), 1) -> 1 | M140: =SUMIFS(SubIndicator!V$5:V$16158, SubIndicator!$X$5:$X$16158, $R140) -> 3.08 | N140: =IFERROR(IF(ISNUMBER(Q140), MAX(Q140/L140, 0), MAX(IF(LEFT(D140, 11)="Growth rate", MIN(M140, dbl_GrowthCap), M140)/L140, 0)), 0) -> 3.08 | O140: 11 | P140: =IFERROR(dbl_BenchmarkMax*IF(J140="Min", O140/N140, N140/O140), 0) -> 28 | Q140: None | R140: =A140&" > " &I140 -> 1.02 > Myanmar | S140: 129 | T140: 2
A141: 1.02 | B141: Enabling framework | C141: Policy & Regulation | D141: Power sector structure | E141: Both | F141: None | G141: Question | H141: Asia | I141: Nepal | J141: User Defined | K141: 11 | L141: =IFERROR(IF($F141="None", 1, INDEX(SubIndicator!$L$15445:$U$15924, MATCH($F141&" > "&$I141, SubIndicator!$Y$15445:$Y$15924, 0), MATCH(int_Year, SubIndicator!$L$4:$U$4, 0))), 1) -> 1 | M141: =SUMIFS(SubIndicator!V$5:V$16158, SubIndicator!$X$5:$X$16158, $R141) -> 1.35 | N141: 1.35 | O141: 11 | P141: 12.27272727 | Q141: None | R141: 1.02 > Nepal | S141: 130 | T141: 2
A142: 1.02 | B142: Enabling framework | C142: Policy & Regulation | D142: Power sector structure | E142: Both | F142: None | G142: Question | H142: Asia | I142: Pakistan | J142: User Defined | K142: 11 | L142: =IFERROR(IF($F142="None", 1, INDEX(SubIndicator!$L$15445:$U$15924, MATCH($F142&" > "&$I142, SubIndicator!$Y$15445:$Y$15924, 0), MATCH(int_Year, SubIndicator!$L$4:$U$4, 0))), 1) -> 1 | M142: =SUMIFS(SubIndicator!V$5:V$16158, SubIndicator!$X$5:$X$16158, $R142) -> 2.536 | N142: 2.536 | O142: 11 | P142: 23.05454545 | Q142: None | R142: 1.02 > Pakistan | S142: =S141+1 -> 131 | T142: 2
A143: 1.02 | B143: Enabling framework | C143: Policy & Regulation | D143: Power sector structure | E143: Both | F143: None | G143: Question | H143: Asia | I143: Sri Lanka | J143: User Defined | K143: 11 | L143: =IFERROR(IF($F143="None", 1, INDEX(SubIndicator!$L$15445:$U$15924, MATCH($F143&" > "&$I143, SubIndicator!$Y$15445:$Y$15924, 0), MATCH(int_Year, SubIndicator!$L$4:$U$4, 0))), 1) -> 1 | M143: =SUMIFS(SubIndicator!V$5:V$16158, SubIndicator!$X$5:$X$16158, $R143) -> 4.56 | N143: 4.56 | O143: 11 | P143: 41.45454545 | Q143: None | R143: 1.02 > Sri Lanka | S143: 132 | T143: 2
A144: 1.02 | B144: Enabling framework | C144: Policy & Regulation | D144: Power sector structure | E144: Both | F144: None | G144: Question | H144: Asia | I144: Tajikistan | J144: User Defined | K144: 11 | L144: =IFERROR(IF($F144="None", 1, INDEX(SubIndicator!$L$15445:$U$15924, MATCH($F144&" > "&$I144, SubIndicator!$Y$15445:$Y$15924, 0), MATCH(int_Year, SubIndicator!$L$4:$U$4, 0))), 1) -> 1 | M144: =SUMIFS(SubIndicator!V$5:V$16158, SubIndicator!$X$5:$X$16158, $R144) -> 0.815 | N144: 0.815 | O144: 11 | P144: 7.409090909 | Q144: None | R144: 1.02 > Tajikistan | S144: 133 | T144: 2
A145: 1.02 | B145: Enabling framework | C145: Policy & Regulation | D145: Power sector structure | E145: Both | F145: None | G145: Question | H145: Asia | I145: Vietnam | J145: User Defined | K145: 11 | L145: =IFERROR(IF($F145="None", 1, INDEX(SubIndicator!$L$15445:$U$15924, MATCH($F145&" > "&$I145, SubIndicator!$Y$15445:$Y$15924, 0), MATCH(int_Year, SubIndicator!$L$4:$U$4, 0))), 1) -> 1 | M145: =SUMIFS(SubIndicator!V$5:V$16158, SubIndicator!$X$5:$X$16158, $R145) -> 3.105 | N145: 3.105 | O145: 11 | P145: 28.22727273 | Q145: None | R145: 1.02 > Vietnam | S145: 134 | T145: 2
A146: 1.02 | B146: Enabling framework | C146: Policy & Regulation | D146: Power sector structure | E146: Both | F146: None | G146: Question | H146: LAC | I146: Argentina | J146: User Defined | K146: 11 | L146: =IFERROR(IF($F146="None", 1, INDEX(SubIndicator!$L$15445:$U$15924, MATCH($F146&" > "&$I146, SubIndicator!$Y$15445:$Y$15924, 0), MATCH(int_Year, SubIndicator!$L$4:$U$4, 0))), 1) -> 1 | M146: =SUMIFS(SubIndicator!V$5:V$16158, SubIndicator!$X$5:$X$16158, $R146) -> 6.625 | N146: 6.625 | O146: 11 | P146: 60.22727273 | Q146: None | R146: 1.02 > Argentina | S146: 135 | T146: 2
A147: 1.02 | B147: Enabling framework | C147: Policy & Regulation | D147: Power sector structure | E147: Both | F147: None | G147: Question | H147: LAC | I147: Bahamas | J147: User Defined | K147: 11 | L147: =IFERROR(IF($F147="None", 1, INDEX(SubIndicator!$L$15445:$U$15924, MATCH($F147&" > "&$I147, SubIndicator!$Y$15445:$Y$15924, 0), MATCH(int_Year, SubIndicator!$L$4:$U$4, 0))), 1) -> 1 | M147: =SUMIFS(SubIndicator!V$5:V$16158, SubIndicator!$X$5:$X$16158, $R147) -> 1.5 | N147: 1.5 | O147: 11 | P147: 13.63636364 | Q147: None | R147: 1.02 > Bahamas | S147: 136 | T147: 2
A148: 1.02 | B148: Enabling framework | C148: Policy & Regulation | D148: Power sector structure | E148: Both | F148: None | G148: Question | H148: LAC | I148: Barbados | J148: User Defined | K148: 11 | L148: =IFERROR(IF($F148="None", 1, INDEX(SubIndicator!$L$15445:$U$15924, MATCH($F148&" > "&$I148, SubIndicator!$Y$15445:$Y$15924, 0), MATCH(int_Year, SubIndicator!$L$4:$U$4, 0))), 1) -> 1 | M148: =SUMIFS(SubIndicator!V$5:V$16158, SubIndicator!$X$5:$X$16158, $R148) -> 2.25 | N148: 2.25 | O148: 11 | P148: 20.45454545 | Q148: None | R148: 1.02 > Barbados | S148: 137 | T148: 2
A149: 1.02 | B149: Enabling framework | C149: Policy & Regulation | D149: Power sector structure | E149: Both | F149: None | G149: Question | H149: LAC | I149: Belize | J149: User Defined | K149: 11 | L149: =IFERROR(IF($F149="None", 1, INDEX(SubIndicator!$L$15445:$U$15924, MATCH($F149&" > "&$I149, SubIndicator!$Y$15445:$Y$15924, 0), MATCH(int_Year, SubIndicator!$L$4:$U$4, 0))), 1) -> 1 | M149: =SUMIFS(SubIndicator!V$5:V$16158, SubIndicator!$X$5:$X$16158, $R149) -> 3.11 | N149: 3.11 | O149: 11 | P149: 28.27272727 | Q149: None | R149: 1.02 > Belize | S149: 138 | T149: 2
A150: 1.02 | B150: Enabling framework | C150: Policy & Regulation | D150: Power sector structure | E150: Both | F150: None | G150: Question | H150: LAC | I150: Bolivia | J150: User Defined | K150: 11 | L150: =IFERROR(IF($F150="None", 1, INDEX(SubIndicator!$L$15445:$U$15924, MATCH($F150&" > "&$I150, SubIndicator!$Y$15445:$Y$15924, 0), MATCH(int_Year, SubIndicator!$L$4:$U$4, 0))), 1) -> 1 | M150: =SUMIFS(SubIndicator!V$5:V$16158, SubIndicator!$X$5:$X$16158, $R150) -> 3.44 | N150: 3.44 | O150: 11 | P150: 31.27272727 | Q150: None | R150: 1.02 > Bolivia | S150: 139 | T150: 2
A151: 1.02 | B151: Enabling framework | C151: Policy & Regulation | D151: Power sector structure | E151: Both | F151: None | G151: Question | H151: LAC | I151: Brazil | J151: User Defined | K151: 11 | L151: =IFERROR(IF($F151="None", 1, INDEX(SubIndicator!$L$15445:$U$15924, MATCH($F151&" > "&$I151, SubIndicator!$Y$15445:$Y$15924, 0), MATCH(int_Year, SubIndicator!$L$4:$U$4, 0))), 1) -> 1 | M151: =SUMIFS(SubIndicator!V$5:V$16158, SubIndicator!$X$5:$X$16158, $R151) -> 8.4 | N151: 8.4 | O151: 11 | P151: 76.36363636 | Q151: None | R151: 1.02 > Brazil | S151: 140 | T151: 2
A152: 1.02 | B152: Enabling framework | C152: Policy & Regulation | D152: Power sector structure | E152: Both | F152: None | G152: Question | H152: =H72 -> LAC | I152: Chile | J152: User Defined | K152: 11 | L152: =IFERROR(IF($F152="None", 1, INDEX(SubIndicator!$L$15445:$U$15924, MATCH($F152&" > "&$I152, SubIndicator!$Y$15445:$Y$15924, 0), MATCH(int_Year, SubIndicator!$L$4:$U$4, 0))), 1) -> 1 | M152: =SUMIFS(SubIndicator!V$5:V$16158, SubIndicator!$X$5:$X$16158, $R152) -> 8 | N152: 8 | O152: 11 | P152: 72.72727273 | Q152: None | R152: 1.02 > Chile | S152: 141 | T152: 2
A153: 1.02 | B153: Enabling framework | C153: Policy & Regulation | D153: Power sector structure | E153: Both | F153: None | G153: Question | H153: LAC | I153: Colombia | J153: User Defined | K153: 11 | L153: =IFERROR(IF($F153="None", 1, INDEX(SubIndicator!$L$15445:$U$15924, MATCH($F153&" > "&$I153, SubIndicator!$Y$15445:$Y$15924, 0), MATCH(int_Year, SubIndicator!$L$4:$U$4, 0))), 1) -> 1 | M153: =SUMIFS(SubIndicator!V$5:V$16158, SubIndicator!$X$5:$X$16158, $R153) -> 8.3 | N153: 8.3 | O153: 11 | P153: 75.45454545 | Q153: None | R153: 1.02 > Colombia | S153: 142 | T153: 2
A154: 1.02 | B154: Enabling framework | C154: Policy & Regulation | D154: Power sector structure | E154: Both | F154: None | G154: Question | H154: LAC | I154: Costa Rica | J154: User Defined | K154: 11 | L154: =IFERROR(IF($F154="None", 1, INDEX(SubIndicator!$L$15445:$U$15924, MATCH($F154&" > "&$I154, SubIndicator!$Y$15445:$Y$15924, 0), MATCH(int_Year, SubIndicator!$L$4:$U$4, 0))), 1) -> 1 | M154: =SUMIFS(SubIndicator!V$5:V$16158, SubIndicator!$X$5:$X$16158, $R154) -> 3.978 | N154: 3.978 | O154: 11 | P154: 36.16363636 | Q154: None | R154: 1.02 > Costa Rica | S154: 143 | T154: 2
A155: 1.02 | B155: Enabling framework | C155: Policy & Regulation | D155: Power sector structure | E155: Both | F155: None | G155: Question | H155: LAC | I155: Dominican Republic | J155: User Defined | K155: 11 | L155: =IFERROR(IF($F155="None", 1, INDEX(SubIndicator!$L$15445:$U$15924, MATCH($F155&" > "&$I155, SubIndicator!$Y$15445:$Y$15924, 0), MATCH(int_Year, SubIndicator!$L$4:$U$4, 0))), 1) -> 1 | M155: =SUMIFS(SubIndicator!V$5:V$16158, SubIndicator!$X$5:$X$16158, $R155) -> 5.5283 | N155: 5.5283 | O155: 11 | P155: 50.25727273 | Q155: None | R155: 1.02 > Dominican Republic | S155: 144 | T155: 2
A156: 1.02 | B156: Enabling framework | C156: Policy & Regulation | D156: Power sector structure | E156: Both | F156: None | G156: Question | H156: LAC | I156: Ecuador | J156: User Defined | K156: 11 | L156: =IFERROR(IF($F156="None", 1, INDEX(SubIndicator!$L$15445:$U$15924, MATCH($F156&" > "&$I156, SubIndicator!$Y$15445:$Y$15924, 0), MATCH(int_Year, SubIndicator!$L$4:$U$4, 0))), 1) -> 1 | M156: =SUMIFS(SubIndicator!V$5:V$16158, SubIndicator!$X$5:$X$16158, $R156) -> 6.13 | N156: 6.13 | O156: 11 | P156: 55.72727273 | Q156: None | R156: 1.02 > Ecuador | S156: 145 | T156: 2
A157: 1.02 | B157: Enabling framework | C157: Policy & Regulation | D157: Power sector structure | E157: Both | F157: None | G157: Question | H157: LAC | I157: El Salvador | J157: =J156 -> User Defined | K157: =K156 -> 11 | L157: =IFERROR(IF($F157="None", 1, INDEX(SubIndicator!$L$15445:$U$15924, MATCH($F157&" > "&$I157, SubIndicator!$Y$15445:$Y$15924, 0), MATCH(int_Year, SubIndicator!$L$4:$U$4, 0))), 1) -> 1 | M157: =SUMIFS(SubIndicator!V$5:V$16158, SubIndicator!$X$5:$X$16158, $R157) -> 6.818 | N157: 6.818 | O157: =O156 -> 11 | P157: 61.98181818 | Q157: None | R157: 1.02 > El Salvador | S157: 146 | T157: 2
A158: 1.02 | B158: Enabling framework | C158: Policy & Regulation | D158: Power sector structure | E158: Both | F158: None | G158: Question | H158: LAC | I158: Guatemala | J158: User Defined | K158: 11 | L158: =IFERROR(IF($F158="None", 1, INDEX(SubIndicator!$L$15445:$U$15924, MATCH($F158&" > "&$I158, SubIndicator!$Y$15445:$Y$15924, 0), MATCH(int_Year, SubIndicator!$L$4:$U$4, 0))), 1) -> 1 | M158: =SUMIFS(SubIndicator!V$5:V$16158, SubIndicator!$X$5:$X$16158, $R158) -> 8.005 | N158: 8.005 | O158: 11 | P158: 72.77272727 | Q158: None | R158: 1.02 > Guatemala | S158: 147 | T158: 2
A159: 1.02 | B159: Enabling framework | C159: Policy & Regulation | D159: Power sector structure | E159: Both | F159: None | G159: Question | H159: LAC | I159: Guyana | J159: User Defined | K159: 11 | L159: =IFERROR(IF($F159="None", 1, INDEX(SubIndicator!$L$15445:$U$15924, MATCH($F159&" > "&$I159, SubIndicator!$Y$15445:$Y$15924, 0), MATCH(int_Year, SubIndicator!$L$4:$U$4, 0))), 1) -> 1 | M159: =SUMIFS(SubIndicator!V$5:V$16158, SubIndicator!$X$5:$X$16158, $R159) -> 2.985 | N159: 2.985 | O159: 11 | P159: 27.13636364 | Q159: None | R159: 1.02 > Guyana | S159: 148 | T159: 2
A160: 1.02 | B160: Enabling framework | C160: Policy & Regulation | D160: Power sector structure | E160: Both | F160: None | G160: Question | H160: LAC | I160: Haiti | J160: User Defined | K160: 11 | L160: =IFERROR(IF($F160="None", 1, INDEX(SubIndicator!$L$15445:$U$15924, MATCH($F160&" > "&$I160, SubIndicator!$Y$15445:$Y$15924, 0), MATCH(int_Year, SubIndicator!$L$4:$U$4, 0))), 1) -> 1 | M160: =SUMIFS(SubIndicator!V$5:V$16158, SubIndicator!$X$5:$X$16158, $R160) -> 1.58 | N160: 1.58 | O160: 11 | P160: 14.36363636 | Q160: None | R160: 1.02 > Haiti | S160: 149 | T160: 2
A161: 1.02 | B161: Enabling framework | C161: Policy & Regulation | D161: Power sector structure | E161: Both | F161: None | G161: Question | H161: LAC | I161: Honduras | J161: User Defined | K161: 11 | L161: =IFERROR(IF($F161="None", 1, INDEX(SubIndicator!$L$15445:$U$15924, MATCH($F161&" > "&$I161, SubIndicator!$Y$15445:$Y$15924, 0), MATCH(int_Year, SubIndicator!$L$4:$U$4, 0))), 1) -> 1 | M161: =SUMIFS(SubIndicator!V$5:V$16158, SubIndicator!$X$5:$X$16158, $R161) -> 3.12 | N161: 3.12 | O161: 11 | P161: 28.36363636 | Q161: None | R161: 1.02 > Honduras | S161: 150 | T161: 2
A162: 1.02 | B162: Enabling framework | C162: Policy & Regulation | D162: Power sector structure | E162: Both | F162: None | G162: Question | H162: LAC | I162: Jamaica | J162: User Defined | K162: 11 | L162: =IFERROR(IF($F162="None", 1, INDEX(SubIndicator!$L$15445:$U$15924, MATCH($F162&" > "&$I162, SubIndicator!$Y$15445:$Y$15924, 0), MATCH(int_Year, SubIndicator!$L$4:$U$4, 0))), 1) -> 1 | M162: =SUMIFS(SubIndicator!V$5:V$16158, SubIndicator!$X$5:$X$16158, $R162) -> 3.195 | N162: 3.195 | O162: 11 | P162: 29.04545455 | Q162: None | R162: 1.02 > Jamaica | S162: 151 | T162: 2
A163: 1.02 | B163: Enabling framework | C163: Policy & Regulation | D163: Power sector structure | E163: Both | F163: None | G163: Question | H163: LAC | I163: Mexico | J163: User Defined | K163: 11 | L163: =IFERROR(IF($F163="None", 1, INDEX(SubIndicator!$L$15445:$U$15924, MATCH($F163&" > "&$I163, SubIndicator!$Y$15445:$Y$15924, 0), MATCH(int_Year, SubIndicator!$L$4:$U$4, 0))), 1) -> 1 | M163: =SUMIFS(SubIndicator!V$5:V$16158, SubIndicator!$X$5:$X$16158, $R163) -> 3.465 | N163: 3.465 | O163: 11 | P163: 31.5 | Q163: None | R163: 1.02 > Mexico | S163: 152 | T163: 2
A164: 1.02 | B164: Enabling framework | C164: Policy & Regulation | D164: Power sector structure | E164: Both | F164: None | G164: Question | H164: LAC | I164: Nicaragua | J164: User Defined | K164: 11 | L164: =IFERROR(IF($F164="None", 1, INDEX(SubIndicator!$L$15445:$U$15924, MATCH($F164&" > "&$I164, SubIndicator!$Y$15445:$Y$15924, 0), MATCH(int_Year, SubIndicator!$L$4:$U$4, 0))), 1) -> 1 | M164: =SUMIFS(SubIndicator!V$5:V$16158, SubIndicator!$X$5:$X$16158, $R164) -> 4.95 | N164: 4.95 | O164: 11 | P164: 45 | Q164: None | R164: 1.02 > Nicaragua | S164: 153 | T164: 2
A165: 1.02 | B165: Enabling framework | C165: Policy & Regulation | D165: Power sector structure | E165: Both | F165: None | G165: Question | H165: LAC | I165: Panama | J165: User Defined | K165: 11 | L165: =IFERROR(IF($F165="None", 1, INDEX(SubIndicator!$L$15445:$U$15924, MATCH($F165&" > "&$I165, SubIndicator!$Y$15445:$Y$15924, 0), MATCH(int_Year, SubIndicator!$L$4:$U$4, 0))), 1) -> 1 | M165: =SUMIFS(SubIndicator!V$5:V$16158, SubIndicator!$X$5:$X$16158, $R165) -> 7.57 | N165: 7.57 | O165: 11 | P165: 68.81818182 | Q165: None | R165: 1.02 > Panama | S165: 154 | T165: 2
A166: 1.02 | B166: Enabling framework | C166: Policy & Regulation | D166: Power sector structure | E166: Both | F166: None | G166: Question | H166: LAC | I166: Paraguay | J166: User Defined | K166: 11 | L166: =IFERROR(IF($F166="None", 1, INDEX(SubIndicator!$L$15445:$U$15924, MATCH($F166&" > "&$I166, SubIndicator!$Y$15445:$Y$15924, 0), MATCH(int_Year, SubIndicator!$L$4:$U$4, 0))), 1) -> 1 | M166: =SUMIFS(SubIndicator!V$5:V$16158, SubIndicator!$X$5:$X$16158, $R166) -> 2 | N166: 2 | O166: 11 | P166: 18.18181818 | Q166: None | R166: 1.02 > Paraguay | S166: 155 | T166: 2
A167: 1.02 | B167: Enabling framework | C167: Policy & Regulation | D167: Power sector structure | E167: Both | F167: None | G167: Question | H167: LAC | I167: Peru | J167: User Defined | K167: 11 | L167: =IFERROR(IF($F167="None", 1, INDEX(SubIndicator!$L$15445:$U$15924, MATCH($F167&" > "&$I167, SubIndicator!$Y$15445:$Y$15924, 0), MATCH(int_Year, SubIndicator!$L$4:$U$4, 0))), 1) -> 1 | M167: =SUMIFS(SubIndicator!V$5:V$16158, SubIndicator!$X$5:$X$16158, $R167) -> 8.2428 | N167: 8.2428 | O167: 11 | P167: 74.93454545 | Q167: None | R167: 1.02 > Peru | S167: 156 | T167: 2
A168: 1.02 | B168: Enabling framework | C168: Policy & Regulation | D168: Power sector structure | E168: Both | F168: None | G168: Question | H168: LAC | I168: Suriname | J168: User Defined | K168: 11 | L168: =IFERROR(IF($F168="None", 1, INDEX(SubIndicator!$L$15445:$U$15924, MATCH($F168&" > "&$I168, SubIndicator!$Y$15445:$Y$15924, 0), MATCH(int_Year, SubIndicator!$L$4:$U$4, 0))), 1) -> 1 | M168: =SUMIFS(SubIndicator!V$5:V$16158, SubIndicator!$X$5:$X$16158, $R168) -> 2.4 | N168: 2.4 | O168: 11 | P168: 21.81818182 | Q168: None | R168: 1.02 > Suriname | S168: 157 | T168: 2
A169: 1.02 | B169: Enabling framework | C169: Policy & Regulation | D169: Power sector structure | E169: Both | F169: None | G169: Question | H169: LAC | I169: Trinidad & Tobago | J169: User Defined | K169: 11 | L169: =IFERROR(IF($F169="None", 1, INDEX(SubIndicator!$L$15445:$U$15924, MATCH($F169&" > "&$I169, SubIndicator!$Y$15445:$Y$15924, 0), MATCH(int_Year, SubIndicator!$L$4:$U$4, 0))), 1) -> 1 | M169: =SUMIFS(SubIndicator!V$5:V$16158, SubIndicator!$X$5:$X$16158, $R169) -> 3.845 | N169: 3.845 | O169: 11 | P169: 34.95454545 | Q169: None | R169: 1.02 > Trinidad & Tobago | S169: 158 | T169: 2
A170: 1.02 | B170: Enabling framework | C170: Policy & Regulation | D170: Power sector structure | E170: Both | F170: None | G170: Question | H170: LAC | I170: Uruguay | J170: User Defined | K170: 11 | L170: =IFERROR(IF($F170="None", 1, INDEX(SubIndicator!$L$15445:$U$15924, MATCH($F170&" > "&$I170, SubIndicator!$Y$15445:$Y$15924, 0), MATCH(int_Year, SubIndicator!$L$4:$U$4, 0))), 1) -> 1 | M170: =SUMIFS(SubIndicator!V$5:V$16158, SubIndicator!$X$5:$X$16158, $R170) -> 5.325 | N170: 5.325 | O170: 11 | P170: 48.40909091 | Q170: None | R170: 1.02 > Uruguay | S170: 159 | T170: 2
A171: 1.02 | B171: Enabling framework | C171: Policy & Regulation | D171: Power sector structure | E171: Both | F171: None | G171: Question | H171: LAC | I171: Venezuela | J171: User Defined | K171: 11 | L171: =IFERROR(IF($F171="None", 1, INDEX(SubIndicator!$L$15445:$U$15924, MATCH($F171&" > "&$I171, SubIndicator!$Y$15445:$Y$15924, 0), MATCH(int_Year, SubIndicator!$L$4:$U$4, 0))), 1) -> 1 | M171: =SUMIFS(SubIndicator!V$5:V$16158, SubIndicator!$X$5:$X$16158, $R171) -> 0.625 | N171: 0.625 | O171: 11 | P171: 5.681818182 | Q171: None | R171: 1.02 > Venezuela | S171: 160 | T171: 2
A172: 1.03 | B172: Enabling framework | C172: Policy & Regulation | D172: Distributed energy regulatory framework | E172: Off-grid | F172: None | G172: Questions | H172: =H92 -> Africa | I172: Botswana | J172: User Defined | K172: 13.5 | L172: =IFERROR(IF($F172="None", 1, INDEX(SubIndicator!$L$15445:$U$15924, MATCH($F172&" > "&$I172, SubIndicator!$Y$15445:$Y$15924, 0), MATCH(int_Year, SubIndicator!$L$4:$U$4, 0))), 1) -> 1 | M172: =SUMIFS(SubIndicator!V$5:V$16158, SubIndicator!$X$5:$X$16158, $R172) -> 1 | N172: 1 | O172: =IFERROR(IF(J172="User Defined", $K172, IF(J172="Min", SMALL(N172:N251, COUNTIF(N172:N251, 0)+1), IF(J172="Max", MAX(N172:N251), IF(J172="Average", AVERAGEIF(N172:N251, "<>0"), IF(J172="Total", SUM(N172:N251), 0))))), 0) -> 13.5 | P172: 7.407407407 | Q172: None | R172: 1.03 > Botswana | S172: 161 | T172: 3
A173: 1.03 | B173: Enabling framework | C173: Policy & Regulation | D173: Distributed energy regulatory framework | E173: Off-grid | F173: None | G173: Questions | H173: Africa | I173: Cameroon | J173: =J172 -> User Defined | K173: =K172 -> 13.5 | L173: =IFERROR(IF($F173="None", 1, INDEX(SubIndicator!$L$15445:$U$15924, MATCH($F173&" > "&$I173, SubIndicator!$Y$15445:$Y$15924, 0), MATCH(int_Year, SubIndicator!$L$4:$U$4, 0))), 1) -> 1 | M173: =SUMIFS(SubIndicator!V$5:V$16158, SubIndicator!$X$5:$X$16158, $R173) -> 3.75 | N173: 3.75 | O173: =O172 -> 13.5 | P173: 27.77777778 | Q173: None | R173: 1.03 > Cameroon | S173: 162 | T173: 3
A174: 1.03 | B174: Enabling framework | C174: Policy & Regulation | D174: Distributed energy regulatory framework | E174: Off-grid | F174: None | G174: Questions | H174: Africa | I174: Cote d'Ivoire | J174: User Defined | K174: 13.5 | L174: =IFERROR(IF($F174="None", 1, INDEX(SubIndicator!$L$15445:$U$15924, MATCH($F174&" > "&$I174, SubIndicator!$Y$15445:$Y$15924, 0), MATCH(int_Year, SubIndicator!$L$4:$U$4, 0))), 1) -> 1 | M174: =SUMIFS(SubIndicator!V$5:V$16158, SubIndicator!$X$5:$X$16158, $R174) -> 5.5 | N174: 5.5 | O174: 13.5 | P174: 40.74074074 | Q174: None | R174: 1.03 > Cote d'Ivoire | S174: 163 | T174: 3
A175: 1.03 | B175: Enabling framework | C175: Policy & Regulation | D175: Distributed energy regulatory framework | E175: Off-grid | F175: None | G175: Questions | H175: Africa | I175: Congo (Dem. Rep.) | J175: User Defined | K175: 13.5 | L175: =IFERROR(IF($F175="None", 1, INDEX(SubIndicator!$L$15445:$U$15924, MATCH($F175&" > "&$I175, SubIndicator!$Y$15445:$Y$15924, 0), MATCH(int_Year, SubIndicator!$L$4:$U$4, 0))), 1) -> 1 | M175: =SUMIFS(SubIndicator!V$5:V$16158, SubIndicator!$X$5:$X$16158, $R175) -> 3 | N175: 3 | O175: 13.5 | P175: 22.22222222 | Q175: None | R175: 1.03 > Congo (Dem. Rep.) | S175: 164 | T175: 3
A176: 1.03 | B176: Enabling framework | C176: Policy & Regulation | D176: Distributed energy regulatory framework | E176: Off-grid | F176: None | G176: Questions | H176: Africa | I176: Ethiopia | J176: User Defined | K176: 13.5 | L176: =IFERROR(IF($F176="None", 1, INDEX(SubIndicator!$L$15445:$U$15924, MATCH($F176&" > "&$I176, SubIndicator!$Y$15445:$Y$15924, 0), MATCH(int_Year, SubIndicator!$L$4:$U$4, 0))), 1) -> 1 | M176: =SUMIFS(SubIndicator!V$5:V$16158, SubIndicator!$X$5:$X$16158, $R176) -> 4.75 | N176: 4.75 | O176: 13.5 | P176: 35.18518519 | Q176: None | R176: 1.03 > Ethiopia | S176: 165 | T176: 3
A177: 1.03 | B177: Enabling framework | C177: Policy & Regulation | D177: Distributed energy regulatory framework | E177: Off-grid | F177: None | G177: Questions | H177: Africa | I177: Ghana | J177: User Defined | K177: 13.5 | L177: =IFERROR(IF($F177="None", 1, INDEX(SubIndicator!$L$15445:$U$15924, MATCH($F177&" > "&$I177, SubIndicator!$Y$15445:$Y$15924, 0), MATCH(int_Year, SubIndicator!$L$4:$U$4, 0))), 1) -> 1 | M177: =SUMIFS(SubIndicator!V$5:V$16158, SubIndicator!$X$5:$X$16158, $R177) -> 5 | N177: 5 | O177: 13.5 | P177: 37.03703704 | Q177: None | R177: 1.03 > Ghana | S177: 166 | T177: 3
A178: 1.03 | B178: Enabling framework | C178: Policy & Regulation | D178: Distributed energy regulatory framework | E178: Off-grid | F178: None | G178: Questions | H178: Africa | I178: Kenya | J178: User Defined | K178: 13.5 | L178: =IFERROR(IF($F178="None", 1, INDEX(SubIndicator!$L$15445:$U$15924, MATCH($F178&" > "&$I178, SubIndicator!$Y$15445:$Y$15924, 0), MATCH(int_Year, SubIndicator!$L$4:$U$4, 0))), 1) -> 1 | M178: =SUMIFS(SubIndicator!V$5:V$16158, SubIndicator!$X$5:$X$16158, $R178) -> 8.75 | N178: 8.75 | O178: 13.5 | P178: 64.81481481 | Q178: None | R178: 1.03 > Kenya | S178: 167 | T178: 3
A179: 1.03 | B179: Enabling framework | C179: Policy & Regulation | D179: Distributed energy regulatory framework | E179: Off-grid | F179: None | G179: Questions | H179: Africa | I179: Liberia | J179: User Defined | K179: 13.5 | L179: =IFERROR(IF($F179="None", 1, INDEX(SubIndicator!$L$15445:$U$15924, MATCH($F179&" > "&$I179, SubIndicator!$Y$15445:$Y$15924, 0), MATCH(int_Year, SubIndicator!$L$4:$U$4, 0))), 1) -> 1 | M179: =SUMIFS(SubIndicator!V$5:V$16158, SubIndicator!$X$5:$X$16158, $R179) -> 5 | N179: 5 | O179: 13.5 | P179: 37.03703704 | Q179: None | R179: 1.03 > Liberia | S179: 168 | T179: 3
A180: 1.03 | B180: Enabling framework | C180: Policy & Regulation | D180: Distributed energy regulatory framework | E180: Off-grid | F180: None | G180: Questions | H180: Africa | I180: Malawi | J180: User Defined | K180: 13.5 | L180: =IFERROR(IF($F180="None", 1, INDEX(SubIndicator!$L$15445:$U$15924, MATCH($F180&" > "&$I180, SubIndicator!$Y$15445:$Y$15924, 0), MATCH(int_Year, SubIndicator!$L$4:$U$4, 0))), 1) -> 1 | M180: =SUMIFS(SubIndicator!V$5:V$16158, SubIndicator!$X$5:$X$16158, $R180) -> 6.5 | N180: 6.5 | O180: 13.5 | P180: 48.14814815 | Q180: None | R180: 1.03 > Malawi | S180: 169 | T180: 3
A181: 1.03 | B181: Enabling framework | C181: Policy & Regulation | D181: Distributed energy regulatory framework | E181: Off-grid | F181: None | G181: Questions | H181: Africa | I181: Mozambique | J181: User Defined | K181: 13.5 | L181: =IFERROR(IF($F181="None", 1, INDEX(SubIndicator!$L$15445:$U$15924, MATCH($F181&" > "&$I181, SubIndicator!$Y$15445:$Y$15924, 0), MATCH(int_Year, SubIndicator!$L$4:$U$4, 0))), 1) -> 1 | M181: =SUMIFS(SubIndicator!V$5:V$16158, SubIndicator!$X$5:$X$16158, $R181) -> 0.5 | N181: 0.5 | O181: 13.5 | P181: 3.703703704 | Q181: None | R181: 1.03 > Mozambique | S181: 170 | T181: 3
A182: 1.03 | B182: Enabling framework | C182: Policy & Regulation | D182: Distributed energy regulatory framework | E182: Off-grid | F182: None | G182: Questions | H182: Africa | I182: Nigeria | J182: User Defined | K182: 13.5 | L182: =IFERROR(IF($F182="None", 1, INDEX(SubIndicator!$L$15445:$U$15924, MATCH($F182&" > "&$I182, SubIndicator!$Y$15445:$Y$15924, 0), MATCH(int_Year, SubIndicator!$L$4:$U$4, 0))), 1) -> 1 | M182: =SUMIFS(SubIndicator!V$5:V$16158, SubIndicator!$X$5:$X$16158, $R182) -> 9 | N182: 9 | O182: 13.5 | P182: 66.66666667 | Q182: None | R182: 1.03 > Nigeria | S182: 171 | T182: 3
A183: 1.03 | B183: Enabling framework | C183: Policy & Regulation | D183: Distributed energy regulatory framework | E183: Off-grid | F183: None | G183: Questions | H183: Africa | I183: Rwanda | J183: User Defined | K183: 13.5 | L183: =IFERROR(IF($F183="None", 1, INDEX(SubIndicator!$L$15445:$U$15924, MATCH($F183&" > "&$I183, SubIndicator!$Y$15445:$Y$15924, 0), MATCH(int_Year, SubIndicator!$L$4:$U$4, 0))), 1) -> 1 | M183: =SUMIFS(SubIndicator!V$5:V$16158, SubIndicator!$X$5:$X$16158, $R183) -> 7.5 | N183: 7.5 | O183: 13.5 | P183: 55.55555556 | Q183: None | R183: 1.03 > Rwanda | S183: 172 | T183: 3
A184: 1.03 | B184: Enabling framework | C184: Policy & Regulation | D184: Distributed energy regulatory framework | E184: Off-grid | F184: None | G184: Questions | H184: Africa | I184: Senegal | J184: User Defined | K184: 13.5 | L184: =IFERROR(IF($F184="None", 1, INDEX(SubIndicator!$L$15445:$U$15924, MATCH($F184&" > "&$I184, SubIndicator!$Y$15445:$Y$15924, 0), MATCH(int_Year, SubIndicator!$L$4:$U$4, 0))), 1) -> 1 | M184: =SUMIFS(SubIndicator!V$5:V$16158, SubIndicator!$X$5:$X$16158, $R184) -> 7 | N184: 7 | O184: 13.5 | P184: 51.85185185 | Q184: None | R184: 1.03 > Senegal | S184: 173 | T184: 3
A185: 1.03 | B185: Enabling framework | C185: Policy & Regulation | D185: Distributed energy regulatory framework | E185: Off-grid | F185: None | G185: Questions | H185: Africa | I185: Sierra Leone | J185: User Defined | K185: 13.5 | L185: =IFERROR(IF($F185="None", 1, INDEX(SubIndicator!$L$15445:$U$15924, MATCH($F185&" > "&$I185, SubIndicator!$Y$15445:$Y$15924, 0), MATCH(int_Year, SubIndicator!$L$4:$U$4, 0))), 1) -> 1 | M185: =SUMIFS(SubIndicator!V$5:V$16158, SubIndicator!$X$5:$X$16158, $R185) -> 1.5 | N185: 1.5 | O185: 13.5 | P185: 11.11111111 | Q185: None | R185: 1.03 > Sierra Leone | S185: 174 | T185: 3
A186: 1.03 | B186: Enabling framework | C186: Policy & Regulation | D186: Distributed energy regulatory framework | E186: Off-grid | F186: None | G186: Questions | H186: Africa | I186: South Africa | J186: User Defined | K186: 13.5 | L186: =IFERROR(IF($F186="None", 1, INDEX(SubIndicator!$L$15445:$U$15924, MATCH($F186&" > "&$I186, SubIndicator!$Y$15445:$Y$15924, 0), MATCH(int_Year, SubIndicator!$L$4:$U$4, 0))), 1) -> 1 | M186: =SUMIFS(SubIndicator!V$5:V$16158, SubIndicator!$X$5:$X$16158, $R186) -> 6 | N186: 6 | O186: 13.5 | P186: 44.44444444 | Q186: None | R186: 1.03 > South Africa | S186: 175 | T186: 3
A187: 1.03 | B187: Enabling framework | C187: Policy & Regulation | D187: Distributed energy regulatory framework | E187: Off-grid | F187: None | G187: Questions | H187: Africa | I187: Tanzania | J187: User Defined | K187: 13.5 | L187: =IFERROR(IF($F187="None", 1, INDEX(SubIndicator!$L$15445:$U$15924, MATCH($F187&" > "&$I187, SubIndicator!$Y$15445:$Y$15924, 0), MATCH(int_Year, SubIndicator!$L$4:$U$4, 0))), 1) -> 1 | M187: =SUMIFS(SubIndicator!V$5:V$16158, SubIndicator!$X$5:$X$16158, $R187) -> 12 | N187: 12 | O187: 13.5 | P187: 88.88888889 | Q187: None | R187: 1.03 > Tanzania | S187: 176 | T187: 3
A188: 1.03 | B188: Enabling framework | C188: Policy & Regulation | D188: Distributed energy regulatory framework | E188: Off-grid | F188: None | G188: Questions | H188: Africa | I188: Uganda | J188: User Defined | K188: 13.5 | L188: =IFERROR(IF($F188="None", 1, INDEX(SubIndicator!$L$15445:$U$15924, MATCH($F188&" > "&$I188, SubIndicator!$Y$15445:$Y$15924, 0), MATCH(int_Year, SubIndicator!$L$4:$U$4, 0))), 1) -> 1 | M188: =SUMIFS(SubIndicator!V$5:V$16158, SubIndicator!$X$5:$X$16158, $R188) -> 9.5 | N188: 9.5 | O188: 13.5 | P188: 70.37037037 | Q188: None | R188: 1.03 > Uganda | S188: 177 | T188: 3
A189: 1.03 | B189: Enabling framework | C189: Policy & Regulation | D189: Distributed energy regulatory framework | E189: Off-grid | F189: None | G189: Questions | H189: Africa | I189: Zambia | J189: User Defined | K189: 13.5 | L189: =IFERROR(IF($F189="None", 1, INDEX(SubIndicator!$L$15445:$U$15924, MATCH($F189&" > "&$I189, SubIndicator!$Y$15445:$Y$15924, 0), MATCH(int_Year, SubIndicator!$L$4:$U$4, 0))), 1) -> 1 | M189: =SUMIFS(SubIndicator!V$5:V$16158, SubIndicator!$X$5:$X$16158, $R189) -> 5 | N189: 5 | O189: 13.5 | P189: 37.03703704 | Q189: None | R189: 1.03 > Zambia | S189: 178 | T189: 3
A190: 1.03 | B190: Enabling framework | C190: Policy & Regulation | D190: Distributed energy regulatory framework | E190: Off-grid | F190: None | G190: Questions | H190: Africa | I190: Zimbabwe | J190: User Defined | K190: 13.5 | L190: =IFERROR(IF($F190="None", 1, INDEX(SubIndicator!$L$15445:$U$15924, MATCH($F190&" > "&$I190, SubIndicator!$Y$15445:$Y$15924, 0), MATCH(int_Year, SubIndicator!$L$4:$U$4, 0))), 1) -> 1 | M190: =SUMIFS(SubIndicator!V$5:V$16158, SubIndicator!$X$5:$X$16158, $R190) -> 3.5 | N190: 3.5 | O190: 13.5 | P190: 25.92592593 | Q190: None | R190: 1.03 > Zimbabwe | S190: 179 | T190: 3
A191: 1.03 | B191: Enabling framework | C191: Policy & Regulation | D191: Distributed energy regulatory framework | E191: Off-grid | F191: None | G191: Questions | H191: Asia | I191: Bangladesh | J191: User Defined | K191: 13.5 | L191: =IFERROR(IF($F191="None", 1, INDEX(SubIndicator!$L$15445:$U$15924, MATCH($F191&" > "&$I191, SubIndicator!$Y$15445:$Y$15924, 0), MATCH(int_Year, SubIndicator!$L$4:$U$4, 0))), 1) -> 1 | M191: =SUMIFS(SubIndicator!V$5:V$16158, SubIndicator!$X$5:$X$16158, $R191) -> 10.5 | N191: 10.5 | O191: 13.5 | P191: 77.77777778 | Q191: None | R191: 1.03 > Bangladesh | S191: 180 | T191: 3
A192: 1.03 | B192: Enabling framework | C192: Policy & Regulation | D192: Distributed energy regulatory framework | E192: Off-grid | F192: None | G192: Questions | H192: =H112 -> Asia | I192: China | J192: User Defined | K192: 13.5 | L192: =IFERROR(IF($F192="None", 1, INDEX(SubIndicator!$L$15445:$U$15924, MATCH($F192&" > "&$I192, SubIndicator!$Y$15445:$Y$15924, 0), MATCH(int_Year, SubIndicator!$L$4:$U$4, 0))), 1) -> 1 | M192: =SUMIFS(SubIndicator!V$5:V$16158, SubIndicator!$X$5:$X$16158, $R192) -> 0 | N192: 0 | O192: 13.5 | P192: 0 | Q192: None | R192: 1.03 > China | S192: 181 | T192: 3
A193: 1.03 | B193: Enabling framework | C193: Policy & Regulation | D193: Distributed energy regulatory framework | E193: Off-grid | F193: None | G193: Questions | H193: Asia | I193: China :: Fujian | J193: User Defined | K193: 13.5 | L193: =IFERROR(IF($F193="None", 1, INDEX(SubIndicator!$L$15445:$U$15924, MATCH($F193&" > "&$I193, SubIndicator!$Y$15445:$Y$15924, 0), MATCH(int_Year, SubIndicator!$L$4:$U$4, 0))), 1) -> 1 | M193: =SUMIFS(SubIndicator!V$5:V$16158, SubIndicator!$X$5:$X$16158, $R193) -> 0 | N193: 0 | O193: 13.5 | P193: 0 | Q193: None | R193: 1.03 > China :: Fujian | S193: 182 | T193: 3
A194: 1.03 | B194: Enabling framework | C194: Policy & Regulation | D194: Distributed energy regulatory framework | E194: Off-grid | F194: None | G194: Questions | H194: Asia | I194: China :: Gansu | J194: User Defined | K194: 13.5 | L194: =IFERROR(IF($F194="None", 1, INDEX(SubIndicator!$L$15445:$U$15924, MATCH($F194&" > "&$I194, SubIndicator!$Y$15445:$Y$15924, 0), MATCH(int_Year, SubIndicator!$L$4:$U$4, 0))), 1) -> 1 | M194: =SUMIFS(SubIndicator!V$5:V$16158, SubIndicator!$X$5:$X$16158, $R194) -> 0 | N194: 0 | O194: 13.5 | P194: 0 | Q194: None | R194: 1.03 > China :: Gansu | S194: 183 | T194: 3
A195: 1.03 | B195: Enabling framework | C195: Policy & Regulation | D195: Distributed energy regulatory framework | E195: Off-grid | F195: None | G195: Questions | H195: Asia | I195: China :: Guangdong | J195: User Defined | K195: 13.5 | L195: =IFERROR(IF($F195="None", 1, INDEX(SubIndicator!$L$15445:$U$15924, MATCH($F195&" > "&$I195, SubIndicator!$Y$15445:$Y$15924, 0), MATCH(int_Year, SubIndicator!$L$4:$U$4, 0))), 1) -> 1 | M195: =SUMIFS(SubIndicator!V$5:V$16158, SubIndicator!$X$5:$X$16158, $R195) -> 0 | N195: 0 | O195: 13.5 | P195: 0 | Q195: None | R195: 1.03 > China :: Guangdong | S195: 184 | T195: 3
A196: 1.03 | B196: Enabling framework | C196: Policy & Regulation | D196: Distributed energy regulatory framework | E196: Off-grid | F196: None | G196: Questions | H196: Asia | I196: China :: Hebei | J196: User Defined | K196: 13.5 | L196: =IFERROR(IF($F196="None", 1, INDEX(SubIndicator!$L$15445:$U$15924, MATCH($F196&" > "&$I196, SubIndicator!$Y$15445:$Y$15924, 0), MATCH(int_Year, SubIndicator!$L$4:$U$4, 0))), 1) -> 1 | M196: =SUMIFS(SubIndicator!V$5:V$16158, SubIndicator!$X$5:$X$16158, $R196) -> 0 | N196: 0 | O196: 13.5 | P196: 0 | Q196: None | R196: 1.03 > China :: Hebei | S196: 185 | T196: 3
A197: 1.03 | B197: Enabling framework | C197: Policy & Regulation | D197: Distributed energy regulatory framework | E197: Off-grid | F197: None | G197: Questions | H197: Asia | I197: China :: Heilongjiang | J197: User Defined | K197: 13.5 | L197: =IFERROR(IF($F197="None", 1, INDEX(SubIndicator!$L$15445:$U$15924, MATCH($F197&" > "&$I197, SubIndicator!$Y$15445:$Y$15924, 0), MATCH(int_Year, SubIndicator!$L$4:$U$4, 0))), 1) -> 1 | M197: =SUMIFS(SubIndicator!V$5:V$16158, SubIndicator!$X$5:$X$16158, $R197) -> 0 | N197: 0 | O197: 13.5 | P197: 0 | Q197: None | R197: 1.03 > China :: Heilongjiang | S197: 186 | T197: 3
A198: 1.03 | B198: Enabling framework | C198: Policy & Regulation | D198: Distributed energy regulatory framework | E198: Off-grid | F198: None | G198: Questions | H198: Asia | I198: China :: Hubei | J198: User Defined | K198: 13.5 | L198: =IFERROR(IF($F198="None", 1, INDEX(SubIndicator!$L$15445:$U$15924, MATCH($F198&" > "&$I198, SubIndicator!$Y$15445:$Y$15924, 0), MATCH(int_Year, SubIndicator!$L$4:$U$4, 0))), 1) -> 1 | M198: =SUMIFS(SubIndicator!V$5:V$16158, SubIndicator!$X$5:$X$16158, $R198) -> 0 | N198: 0 | O198: 13.5 | P198: 0 | Q198: None | R198: 1.03 > China :: Hubei | S198: 187 | T198: 3
A199: 1.03 | B199: Enabling framework | C199: Policy & Regulation | D199: Distributed energy regulatory framework | E199: Off-grid | F199: None | G199: Questions | H199: Asia | I199: China :: Inner Mongolia | J199: User Defined | K199: 13.5 | L199: =IFERROR(IF($F199="None", 1, INDEX(SubIndicator!$L$15445:$U$15924, MATCH($F199&" > "&$I199, SubIndicator!$Y$15445:$Y$15924, 0), MATCH(int_Year, SubIndicator!$L$4:$U$4, 0))), 1) -> 1 | M199: =SUMIFS(SubIndicator!V$5:V$16158, SubIndicator!$X$5:$X$16158, $R199) -> 0 | N199: 0 | O199: 13.5 | P199: 0 | Q199: None | R199: 1.03 > China :: Inner Mongolia | S199: 188 | T199: 3
A200: 1.03 | B200: Enabling framework | C200: Policy & Regulation | D200: Distributed energy regulatory framework | E200: Off-grid | F200: None | G200: Questions | H200: Asia | I200: China :: Jiangsu | J200: User Defined | K200: 13.5 | L200: =IFERROR(IF($F200="None", 1, INDEX(SubIndicator!$L$15445:$U$15924, MATCH($F200&" > "&$I200, SubIndicator!$Y$15445:$Y$15924, 0), MATCH(int_Year, SubIndicator!$L$4:$U$4, 0))), 1) -> 1 | M200: =SUMIFS(SubIndicator!V$5:V$16158, SubIndicator!$X$5:$X$16158, $R200) -> 0 | N200: 0 | O200: 13.5 | P200: 0 | Q200: None | R200: 1.03 > China :: Jiangsu | S200: 189 | T200: 3
A201: 1.03 | B201: Enabling framework | C201: Policy & Regulation | D201: Distributed energy regulatory framework | E201: Off-grid | F201: None | G201: Questions | H201: Asia | I201: China :: Jilin | J201: User Defined | K201: 13.5 | L201: =IFERROR(IF($F201="None", 1, INDEX(SubIndicator!$L$15445:$U$15924, MATCH($F201&" > "&$I201, SubIndicator!$Y$15445:$Y$15924, 0), MATCH(int_Year, SubIndicator!$L$4:$U$4, 0))), 1) -> 1 | M201: =SUMIFS(SubIndicator!V$5:V$16158, SubIndicator!$X$5:$X$16158, $R201) -> 0 | N201: 0 | O201: 13.5 | P201: 0 | Q201: None | R201: 1.03 > China :: Jilin | S201: 190 | T201: 3
A202: 1.03 | B202: Enabling framework | C202: Policy & Regulation | D202: Distributed energy regulatory framework | E202: Off-grid | F202: None | G202: Questions | H202: Asia | I202: China :: Qinghai | J202: User Defined | K202: 13.5 | L202: =IFERROR(IF($F202="None", 1, INDEX(SubIndicator!$L$15445:$U$15924, MATCH($F202&" > "&$I202, SubIndicator!$Y$15445:$Y$15924, 0), MATCH(int_Year, SubIndicator!$L$4:$U$4, 0))), 1) -> 1 | M202: =SUMIFS(SubIndicator!V$5:V$16158, SubIndicator!$X$5:$X$16158, $R202) -> 0 | N202: 0 | O202: 13.5 | P202: 0 | Q202: None | R202: 1.03 > China :: Qinghai | S202: 191 | T202: 3
... 4049 more rows

Sheet SubIndicator (hidden)
A1: SUB-INDICATOR DATABASE
A3: Sub-Indicator Database | L3: Underlying Data | V3: Year
A4: Parameter | B4: Category | C4: Indicator ID | D4: Indicator | E4: Sub-Indicator | F4: On/off-grid | G4: Units | H4: Data Type | I4: Clean? | J4: Region | K4: Countries & States | L4: 2006 | M4: 2007 | N4: 2008 | O4: 2009 | P4: 2010 | Q4: 2011 | R4: 2012 | S4: 2013 | T4: 2014 | U4: 2015 | V4: =int_Year -> 2014 | W4: Sub-Indicator Rows | X4: Indicator Rows | Y4: Levelisation Rows | Z4: Row | AA4: Sub-Indicator
A5: Enabling framework | B5: Policy & Regulation | C5: 1.01 | D5: Clean energy policies | E5: Energy target | F5: Both | G5: Policy Types | H5: Hardcoded | I5: =IF(E5="","",IF(OR(E5="Wind",E5="Solar",E5="Geothermal",E5="Small Hydro",E5="Biofuels",E5="Biomass & Waste"), 1, 0)) -> 0 | J5: Africa | K5: Botswana | S5: 0 | V5: =INDEX($L5:$U5, 1, MATCH(V$4, $L$4:$U$4, 0)) -> 0 | W5: =C5&" > "&E5&" > "&K5 -> 1.01 > Energy target > Botswana | X5: =C5&" > "&K5 -> 1.01 > Botswana | Y5: =IF(A5="Levelisation", E5&" > "&K5, "None") -> None | Z5: 1 | AA5: 1
A6: Enabling framework | B6: Policy & Regulation | C6: 1.01 | D6: Clean energy policies | E6: Energy target | F6: Both | G6: Policy Types | H6: Hardcoded | I6: 0 | J6: Africa | K6: Cameroon | S6: 0 | V6: 0 | W6: 1.01 > Energy target > Cameroon | X6: 1.01 > Cameroon | Y6: None | Z6: 2 | AA6: 1
A7: Enabling framework | B7: Policy & Regulation | C7: 1.01 | D7: Clean energy policies | E7: Energy target | F7: Both | G7: Policy Types | H7: Hardcoded | I7: 0 | J7: Africa | K7: Cote d'Ivoire | S7: 1 | T7: 1 | V7: 1 | W7: 1.01 > Energy target > Cote d'Ivoire | X7: 1.01 > Cote d'Ivoire | Y7: None | Z7: 3 | AA7: 1
A8: Enabling framework | B8: Policy & Regulation | C8: 1.01 | D8: Clean energy policies | E8: Energy target | F8: Both | G8: Policy Types | H8: Hardcoded | I8: 0 | J8: Africa | K8: Congo (Dem. Rep.) | S8: 0 | T8: 1 | V8: 1 | W8: 1.01 > Energy target > Congo (Dem. Rep.) | X8: 1.01 > Congo (Dem. Rep.) | Y8: None | Z8: 4 | AA8: 1
A9: Enabling framework | B9: Policy & Regulation | C9: 1.01 | D9: Clean energy policies | E9: Energy target | F9: Both | G9: Policy Types | H9: Hardcoded | I9: 0 | J9: Africa | K9: Ethiopia | S9: 1 | T9: 1 | V9: 1 | W9: 1.01 > Energy target > Ethiopia | X9: 1.01 > Ethiopia | Y9: None | Z9: 5 | AA9: 1
A10: Enabling framework | B10: Policy & Regulation | C10: 1.01 | D10: Clean energy policies | E10: Energy target | F10: Both | G10: Policy Types | H10: Hardcoded | I10: 0 | J10: Africa | K10: Ghana | S10: 1 | V10: 0 | W10: 1.01 > Energy target > Ghana | X10: 1.01 > Ghana | Y10: None | Z10: 6 | AA10: 1
A11: Enabling framework | B11: Policy & Regulation | C11: 1.01 | D11: Clean energy policies | E11: Energy target | F11: Both | G11: Policy Types | H11: Hardcoded | I11: 0 | J11: Africa | K11: Kenya | S11: 1 | T11: 1 | V11: 1 | W11: 1.01 > Energy target > Kenya | X11: 1.01 > Kenya | Y11: None | Z11: 7 | AA11: 1
A12: Enabling framework | B12: Policy & Regulation | C12: 1.01 | D12: Clean energy policies | E12: Energy target | F12: Both | G12: Policy Types | H12: Hardcoded | I12: 0 | J12: Africa | K12: Liberia | S12: 1 | T12: 1 | V12: 1 | W12: 1.01 > Energy target > Liberia | X12: 1.01 > Liberia | Y12: None | Z12: 8 | AA12: 1
A13: Enabling framework | B13: Policy & Regulation | C13: 1.01 | D13: Clean energy policies | E13: Energy target | F13: Both | G13: Policy Types | H13: Hardcoded | I13: 0 | J13: Africa | K13: Malawi | S13: 0 | T13: 1 | V13: 1 | W13: 1.01 > Energy target > Malawi | X13: 1.01 > Malawi | Y13: None | Z13: 9 | AA13: 1
A14: Enabling framework | B14: Policy & Regulation | C14: 1.01 | D14: Clean energy policies | E14: Energy target | F14: Both | G14: Policy Types | H14: Hardcoded | I14: 0 | J14: Africa | K14: Mozambique | S14: 1 | T14: 1 | V14: 1 | W14: 1.01 > Energy target > Mozambique | X14: 1.01 > Mozambique | Y14: None | Z14: 10 | AA14: 1
A15: Enabling framework | B15: Policy & Regulation | C15: 1.01 | D15: Clean energy policies | E15: Energy target | F15: Both | G15: Policy Types | H15: Hardcoded | I15: 0 | J15: Africa | K15: Nigeria | S15: 1 | T15: 1 | V15: 1 | W15: 1.01 > Energy target > Nigeria | X15: 1.01 > Nigeria | Y15: None | Z15: 11 | AA15: 1
A16: Enabling framework | B16: Policy & Regulation | C16: 1.01 | D16: Clean energy policies | E16: Energy target | F16: Both | G16: Policy Types | H16: Hardcoded | I16: 0 | J16: Africa | K16: Rwanda | S16: 1 | T16: 1 | V16: 1 | W16: 1.01 > Energy target > Rwanda | X16: 1.01 > Rwanda | Y16: None | Z16: 12 | AA16: 1
A17: Enabling framework | B17: Policy & Regulation | C17: 1.01 | D17: Clean energy policies | E17: Energy target | F17: Both | G17: Policy Types | H17: Hardcoded | I17: 0 | J17: Africa | K17: Senegal | S17: 1 | T17: 1 | V17: 1 | W17: 1.01 > Energy target > Senegal | X17: 1.01 > Senegal | Y17: None | Z17: 13 | AA17: 1
A18: Enabling framework | B18: Policy & Regulation | C18: 1.01 | D18: Clean energy policies | E18: Energy target | F18: Both | G18: Policy Types | H18: Hardcoded | I18: 0 | J18: Africa | K18: Sierra Leone | S18: 0 | V18: 0 | W18: 1.01 > Energy target > Sierra Leone | X18: 1.01 > Sierra Leone | Y18: None | Z18: 14 | AA18: 1
A19: Enabling framework | B19: Policy & Regulation | C19: 1.01 | D19: Clean energy policies | E19: Energy target | F19: Both | G19: Policy Types | H19: Hardcoded | I19: 0 | J19: Africa | K19: South Africa | S19: 1 | T19: 1 | V19: 1 | W19: 1.01 > Energy target > South Africa | X19: 1.01 > South Africa | Y19: None | Z19: 15 | AA19: 1
A20: Enabling framework | B20: Policy & Regulation | C20: 1.01 | D20: Clean energy policies | E20: Energy target | F20: Both | G20: Policy Types | H20: Hardcoded | I20: 0 | J20: Africa | K20: Tanzania | S20: 1 | T20: 1 | V20: 1 | W20: 1.01 > Energy target > Tanzania | X20: 1.01 > Tanzania | Y20: None | Z20: 16 | AA20: 1
A21: Enabling framework | B21: Policy & Regulation | C21: 1.01 | D21: Clean energy policies | E21: Energy target | F21: Both | G21: Policy Types | H21: Hardcoded | I21: 0 | J21: Africa | K21: Uganda | S21: 1 | T21: 1 | V21: 1 | W21: 1.01 > Energy target > Uganda | X21: 1.01 > Uganda | Y21: None | Z21: 17 | AA21: 1
A22: Enabling framework | B22: Policy & Regulation | C22: 1.01 | D22: Clean energy policies | E22: Energy target | F22: Both | G22: Policy Types | H22: Hardcoded | I22: 0 | J22: Africa | K22: Zambia | S22: 0 | V22: 0 | W22: 1.01 > Energy target > Zambia | X22: 1.01 > Zambia | Y22: None | Z22: 18 | AA22: 1
A23: Enabling framework | B23: Policy & Regulation | C23: 1.01 | D23: Clean energy policies | E23: Energy target | F23: Both | G23: Policy Types | H23: Hardcoded | I23: 0 | J23: Africa | K23: Zimbabwe | S23: 0 | V23: 0 | W23: 1.01 > Energy target > Zimbabwe | X23: 1.01 > Zimbabwe | Y23: None | Z23: 19 | AA23: 1
A24: Enabling framework | B24: Policy & Regulation | C24: 1.01 | D24: Clean energy policies | E24: Energy target | F24: Both | G24: Policy Types | H24: Hardcoded | I24: 0 | J24: Asia | K24: Bangladesh | S24: 1 | T24: 1 | V24: 1 | W24: 1.01 > Energy target > Bangladesh | X24: 1.01 > Bangladesh | Y24: None | Z24: 20 | AA24: 1
A25: Enabling framework | B25: Policy & Regulation | C25: 1.01 | D25: Clean energy policies | E25: Energy target | F25: Both | G25: Policy Types | H25: Hardcoded | I25: 0 | J25: Asia | K25: China | S25: 1 | T25: 1 | V25: 1 | W25: 1.01 > Energy target > China | X25: 1.01 > China | Y25: None | Z25: 21 | AA25: 1
A26: Enabling framework | B26: Policy & Regulation | C26: 1.01 | D26: Clean energy policies | E26: Energy target | F26: Both | G26: Policy Types | H26: Hardcoded | I26: 0 | J26: Asia | K26: China :: Fujian | S26: 1 | T26: 1 | V26: 1 | W26: 1.01 > Energy target > China :: Fujian | X26: 1.01 > China :: Fujian | Y26: None | Z26: 22 | AA26: 1
A27: Enabling framework | B27: Policy & Regulation | C27: 1.01 | D27: Clean energy policies | E27: Energy target | F27: Both | G27: Policy Types | H27: Hardcoded | I27: 0 | J27: Asia | K27: China :: Gansu | S27: 1 | T27: 1 | V27: 1 | W27: 1.01 > Energy target > China :: Gansu | X27: 1.01 > China :: Gansu | Y27: None | Z27: 23 | AA27: 1
A28: Enabling framework | B28: Policy & Regulation | C28: 1.01 | D28: Clean energy policies | E28: Energy target | F28: Both | G28: Policy Types | H28: Hardcoded | I28: 0 | J28: Asia | K28: China :: Guangdong | S28: 1 | T28: 1 | V28: 1 | W28: 1.01 > Energy target > China :: Guangdong | X28: 1.01 > China :: Guangdong | Y28: None | Z28: 24 | AA28: 1
A29: Enabling framework | B29: Policy & Regulation | C29: 1.01 | D29: Clean energy policies | E29: Energy target | F29: Both | G29: Policy Types | H29: Hardcoded | I29: 0 | J29: Asia | K29: China :: Hebei | S29: 1 | T29: 1 | V29: 1 | W29: 1.01 > Energy target > China :: Hebei | X29: 1.01 > China :: Hebei | Y29: None | Z29: 25 | AA29: 1
A30: Enabling framework | B30: Policy & Regulation | C30: 1.01 | D30: Clean energy policies | E30: Energy target | F30: Both | G30: Policy Types | H30: Hardcoded | I30: 0 | J30: Asia | K30: China :: Heilongjiang | S30: 1 | T30: 1 | V30: 1 | W30: 1.01 > Energy target > China :: Heilongjiang | X30: 1.01 > China :: Heilongjiang | Y30: None | Z30: 26 | AA30: 1
A31: Enabling framework | B31: Policy & Regulation | C31: 1.01 | D31: Clean energy policies | E31: Energy target | F31: Both | G31: Policy Types | H31: Hardcoded | I31: 0 | J31: Asia | K31: China :: Hubei | S31: 1 | T31: 1 | V31: 1 | W31: 1.01 > Energy target > China :: Hubei | X31: 1.01 > China :: Hubei | Y31: None | Z31: 27 | AA31: 1
A32: Enabling framework | B32: Policy & Regulation | C32: 1.01 | D32: Clean energy policies | E32: Energy target | F32: Both | G32: Policy Types | H32: Hardcoded | I32: 0 | J32: Asia | K32: China :: Inner Mongolia | S32: 1 | T32: 1 | V32: 1 | W32: 1.01 > Energy target > China :: Inner Mongolia | X32: 1.01 > China :: Inner Mongolia | Y32: None | Z32: 28 | AA32: 1
A33: Enabling framework | B33: Policy & Regulation | C33: 1.01 | D33: Clean energy policies | E33: Energy target | F33: Both | G33: Policy Types | H33: Hardcoded | I33: 0 | J33: Asia | K33: China :: Jiangsu | S33: 1 | T33: 1 | V33: 1 | W33: 1.01 > Energy target > China :: Jiangsu | X33: 1.01 > China :: Jiangsu | Y33: None | Z33: 29 | AA33: 1
A34: Enabling framework | B34: Policy & Regulation | C34: 1.01 | D34: Clean energy policies | E34: Energy target | F34: Both | G34: Policy Types | H34: Hardcoded | I34: 0 | J34: Asia | K34: China :: Jilin | S34: 1 | T34: 1 | V34: 1 | W34: 1.01 > Energy target > China :: Jilin | X34: 1.01 > China :: Jilin | Y34: None | Z34: 30 | AA34: 1
A35: Enabling framework | B35: Policy & Regulation | C35: 1.01 | D35: Clean energy policies | E35: Energy target | F35: Both | G35: Policy Types | H35: Hardcoded | I35: 0 | J35: Asia | K35: China :: Qinghai | S35: 1 | T35: 1 | V35: 1 | W35: 1.01 > Energy target > China :: Qinghai | X35: 1.01 > China :: Qinghai | Y35: None | Z35: 31 | AA35: 1
A36: Enabling framework | B36: Policy & Regulation | C36: 1.01 | D36: Clean energy policies | E36: Energy target | F36: Both | G36: Policy Types | H36: Hardcoded | I36: 0 | J36: Asia | K36: China :: Shandong | S36: 1 | T36: 1 | V36: 1 | W36: 1.01 > Energy target > China :: Shandong | X36: 1.01 > China :: Shandong | Y36: None | Z36: 32 | AA36: 1
A37: Enabling framework | B37: Policy & Regulation | C37: 1.01 | D37: Clean energy policies | E37: Energy target | F37: Both | G37: Policy Types | H37: Hardcoded | I37: 0 | J37: Asia | K37: China :: Sichuan | S37: 1 | T37: 1 | V37: 1 | W37: 1.01 > Energy target > China :: Sichuan | X37: 1.01 > China :: Sichuan | Y37: None | Z37: 33 | AA37: 1
A38: Enabling framework | B38: Policy & Regulation | C38: 1.01 | D38: Clean energy policies | E38: Energy target | F38: Both | G38: Policy Types | H38: Hardcoded | I38: 0 | J38: Asia | K38: China :: Tibet | S38: 1 | T38: 1 | V38: 1 | W38: 1.01 > Energy target > China :: Tibet | X38: 1.01 > China :: Tibet | Y38: None | Z38: 34 | AA38: 1
A39: Enabling framework | B39: Policy & Regulation | C39: 1.01 | D39: Clean energy policies | E39: Energy target | F39: Both | G39: Policy Types | H39: Hardcoded | I39: 0 | J39: Asia | K39: China :: Xinjiang | S39: 1 | T39: 1 | V39: 1 | W39: 1.01 > Energy target > China :: Xinjiang | X39: 1.01 > China :: Xinjiang | Y39: None | Z39: 35 | AA39: 1
A40: Enabling framework | B40: Policy & Regulation | C40: 1.01 | D40: Clean energy policies | E40: Energy target | F40: Both | G40: Policy Types | H40: Hardcoded | I40: 0 | J40: Asia | K40: China :: Yunnan | S40: 1 | T40: 1 | V40: 1 | W40: 1.01 > Energy target > China :: Yunnan | X40: 1.01 > China :: Yunnan | Y40: None | Z40: 36 | AA40: 1
A41: Enabling framework | B41: Policy & Regulation | C41: 1.01 | D41: Clean energy policies | E41: Energy target | F41: Both | G41: Policy Types | H41: Hardcoded | I41: 0 | J41: Asia | K41: India | S41: 1 | T41: 1 | V41: 1 | W41: 1.01 > Energy target > India | X41: 1.01 > India | Y41: None | Z41: 37 | AA41: 1
A42: Enabling framework | B42: Policy & Regulation | C42: 1.01 | D42: Clean energy policies | E42: Energy target | F42: Both | G42: Policy Types | H42: Hardcoded | I42: 0 | J42: Asia | K42: India :: Andhra Pradesh | V42: 0 | W42: 1.01 > Energy target > India :: Andhra Pradesh | X42: 1.01 > India :: Andhra Pradesh | Y42: None | Z42: 38 | AA42: 1
A43: Enabling framework | B43: Policy & Regulation | C43: 1.01 | D43: Clean energy policies | E43: Energy target | F43: Both | G43: Policy Types | H43: Hardcoded | I43: 0 | J43: Asia | K43: India :: Gujarat | S43: 1 | T43: 1 | V43: 1 | W43: 1.01 > Energy target > India :: Gujarat | X43: 1.01 > India :: Gujarat | Y43: None | Z43: 39 | AA43: 1
A44: Enabling framework | B44: Policy & Regulation | C44: 1.01 | D44: Clean energy policies | E44: Energy target | F44: Both | G44: Policy Types | H44: Hardcoded | I44: 0 | J44: Asia | K44: India :: Karnataka | S44: 1 | T44: 1 | V44: 1 | W44: 1.01 > Energy target > India :: Karnataka | X44: 1.01 > India :: Karnataka | Y44: None | Z44: 40 | AA44: 1
A45: Enabling framework | B45: Policy & Regulation | C45: 1.01 | D45: Clean energy policies | E45: Energy target | F45: Both | G45: Policy Types | H45: Hardcoded | I45: 0 | J45: Asia | K45: India :: Madhya Pradesh | S45: 0 | T45: 1 | V45: 1 | W45: 1.01 > Energy target > India :: Madhya Pradesh | X45: 1.01 > India :: Madhya Pradesh | Y45: None | Z45: 41 | AA45: 1
A46: Enabling framework | B46: Policy & Regulation | C46: 1.01 | D46: Clean energy policies | E46: Energy target | F46: Both | G46: Policy Types | H46: Hardcoded | I46: 0 | J46: Asia | K46: India :: Maharashtra | S46: 1 | T46: 1 | V46: 1 | W46: 1.01 > Energy target > India :: Maharashtra | X46: 1.01 > India :: Maharashtra | Y46: None | Z46: 42 | AA46: 1
A47: Enabling framework | B47: Policy & Regulation | C47: 1.01 | D47: Clean energy policies | E47: Energy target | F47: Both | G47: Policy Types | H47: Hardcoded | I47: 0 | J47: Asia | K47: India :: Punjab | S47: 1 | T47: 1 | V47: 1 | W47: 1.01 > Energy target > India :: Punjab | X47: 1.01 > India :: Punjab | Y47: None | Z47: 43 | AA47: 1
A48: Enabling framework | B48: Policy & Regulation | C48: 1.01 | D48: Clean energy policies | E48: Energy target | F48: Both | G48: Policy Types | H48: Hardcoded | I48: 0 | J48: Asia | K48: India :: Rajasthan | S48: 1 | T48: 1 | V48: 1 | W48: 1.01 > Energy target > India :: Rajasthan | X48: 1.01 > India :: Rajasthan | Y48: None | Z48: 44 | AA48: 1
A49: Enabling framework | B49: Policy & Regulation | C49: 1.01 | D49: Clean energy policies | E49: Energy target | F49: Both | G49: Policy Types | H49: Hardcoded | I49: 0 | J49: Asia | K49: India :: Tamil Nadu | S49: 1 | T49: 1 | V49: 1 | W49: 1.01 > Energy target > India :: Tamil Nadu | X49: 1.01 > India :: Tamil Nadu | Y49: None | Z49: 45 | AA49: 1
A50: Enabling framework | B50: Policy & Regulation | C50: 1.01 | D50: Clean energy policies | E50: Energy target | F50: Both | G50: Policy Types | H50: Hardcoded | I50: 0 | J50: Asia | K50: India :: Uttar Pradesh | S50: 1 | T50: 1 | V50: 1 | W50: 1.01 > Energy target > India :: Uttar Pradesh | X50: 1.01 > India :: Uttar Pradesh | Y50: None | Z50: 46 | AA50: 1
A51: Enabling framework | B51: Policy & Regulation | C51: 1.01 | D51: Clean energy policies | E51: Energy target | F51: Both | G51: Policy Types | H51: Hardcoded | I51: 0 | J51: Asia | K51: India :: West Bengal | S51: 1 | T51: 1 | V51: 1 | W51: 1.01 > Energy target > India :: West Bengal | X51: 1.01 > India :: West Bengal | Y51: None | Z51: 47 | AA51: 1
A52: Enabling framework | B52: Policy & Regulation | C52: 1.01 | D52: Clean energy policies | E52: Energy target | F52: Both | G52: Policy Types | H52: Hardcoded | I52: 0 | J52: Asia | K52: Indonesia | S52: 1 | T52: 1 | V52: 1 | W52: 1.01 > Energy target > Indonesia | X52: 1.01 > Indonesia | Y52: None | Z52: 48 | AA52: 1
A53: Enabling framework | B53: Policy & Regulation | C53: 1.01 | D53: Clean energy policies | E53: Energy target | F53: Both | G53: Policy Types | H53: Hardcoded | I53: 0 | J53: Asia | K53: Myanmar | S53: 0 | V53: 0 | W53: 1.01 > Energy target > Myanmar | X53: 1.01 > Myanmar | Y53: None | Z53: 49 | AA53: 1
A54: Enabling framework | B54: Policy & Regulation | C54: 1.01 | D54: Clean energy policies | E54: Energy target | F54: Both | G54: Policy Types | H54: Hardcoded | I54: 0 | J54: Asia | K54: Nepal | S54: 1 | T54: 1 | V54: 1 | W54: 1.01 > Energy target > Nepal | X54: 1.01 > Nepal | Y54: None | Z54: 50 | AA54: 1
A55: Enabling framework | B55: Policy & Regulation | C55: 1.01 | D55: Clean energy policies | E55: Energy target | F55: Both | G55: Policy Types | H55: Hardcoded | I55: 0 | J55: Asia | K55: Pakistan | S55: 1 | T55: 1 | V55: 1 | W55: 1.01 > Energy target > Pakistan | X55: 1.01 > Pakistan | Y55: None | Z55: 51 | AA55: 1
A56: Enabling framework | B56: Policy & Regulation | C56: 1.01 | D56: Clean energy policies | E56: Energy target | F56: Both | G56: Policy Types | H56: Hardcoded | I56: 0 | J56: Asia | K56: Sri Lanka | S56: 1 | T56: 1 | V56: 1 | W56: 1.01 > Energy target > Sri Lanka | X56: 1.01 > Sri Lanka | Y56: None | Z56: 52 | AA56: 1
A57: Enabling framework | B57: Policy & Regulation | C57: 1.01 | D57: Clean energy policies | E57: Energy target | F57: Both | G57: Policy Types | H57: Hardcoded | I57: 0 | J57: Asia | K57: Tajikistan | S57: 1 | T57: 1 | V57: 1 | W57: 1.01 > Energy target > Tajikistan | X57: 1.01 > Tajikistan | Y57: None | Z57: 53 | AA57: 1
A58: Enabling framework | B58: Policy & Regulation | C58: 1.01 | D58: Clean energy policies | E58: Energy target | F58: Both | G58: Policy Types | H58: Hardcoded | I58: 0 | J58: Asia | K58: Vietnam | S58: 1 | T58: 1 | V58: 1 | W58: 1.01 > Energy target > Vietnam | X58: 1.01 > Vietnam | Y58: None | Z58: 54 | AA58: 1
A59: Enabling framework | B59: Policy & Regulation | C59: 1.01 | D59: Clean energy policies | E59: Energy target | F59: Both | G59: Policy Types | H59: Hardcoded | I59: 0 | J59: LAC | K59: Argentina | S59: 1 | T59: 1 | V59: 1 | W59: 1.01 > Energy target > Argentina | X59: 1.01 > Argentina | Y59: None | Z59: 55 | AA59: 1
A60: Enabling framework | B60: Policy & Regulation | C60: 1.01 | D60: Clean energy policies | E60: Energy target | F60: Both | G60: Policy Types | H60: Hardcoded | I60: 0 | J60: LAC | K60: Bahamas | S60: 0 | T60: 0 | V60: 0 | W60: 1.01 > Energy target > Bahamas | X60: 1.01 > Bahamas | Y60: None | Z60: 56 | AA60: 1
A61: Enabling framework | B61: Policy & Regulation | C61: 1.01 | D61: Clean energy policies | E61: Energy target | F61: Both | G61: Policy Types | H61: Hardcoded | I61: 0 | J61: LAC | K61: Barbados | S61: 1 | T61: 1 | V61: 1 | W61: 1.01 > Energy target > Barbados | X61: 1.01 > Barbados | Y61: None | Z61: 57 | AA61: 1
A62: Enabling framework | B62: Policy & Regulation | C62: 1.01 | D62: Clean energy policies | E62: Energy target | F62: Both | G62: Policy Types | H62: Hardcoded | I62: 0 | J62: LAC | K62: Belize | S62: 0 | T62: 0 | V62: 0 | W62: 1.01 > Energy target > Belize | X62: 1.01 > Belize | Y62: None | Z62: 58 | AA62: 1
A63: Enabling framework | B63: Policy & Regulation | C63: 1.01 | D63: Clean energy policies | E63: Energy target | F63: Both | G63: Policy Types | H63: Hardcoded | I63: 0 | J63: LAC | K63: Bolivia | S63: 0 | T63: 0 | V63: 0 | W63: 1.01 > Energy target > Bolivia | X63: 1.01 > Bolivia | Y63: None | Z63: 59 | AA63: 1
A64: Enabling framework | B64: Policy & Regulation | C64: 1.01 | D64: Clean energy policies | E64: Energy target | F64: Both | G64: Policy Types | H64: Hardcoded | I64: 0 | J64: LAC | K64: Brazil | S64: 0 | T64: 0 | V64: 0 | W64: 1.01 > Energy target > Brazil | X64: 1.01 > Brazil | Y64: None | Z64: 60 | AA64: 1
A65: Enabling framework | B65: Policy & Regulation | C65: 1.01 | D65: Clean energy policies | E65: Energy target | F65: Both | G65: Policy Types | H65: Hardcoded | I65: 0 | J65: LAC | K65: Chile | S65: 1 | T65: 1 | V65: 1 | W65: 1.01 > Energy target > Chile | X65: 1.01 > Chile | Y65: None | Z65: 61 | AA65: 1
A66: Enabling framework | B66: Policy & Regulation | C66: 1.01 | D66: Clean energy policies | E66: Energy target | F66: Both | G66: Policy Types | H66: Hardcoded | I66: 0 | J66: LAC | K66: Colombia | S66: 1 | T66: 1 | V66: 1 | W66: 1.01 > Energy target > Colombia | X66: 1.01 > Colombia | Y66: None | Z66: 62 | AA66: 1
A67: Enabling framework | B67: Policy & Regulation | C67: 1.01 | D67: Clean energy policies | E67: Energy target | F67: Both | G67: Policy Types | H67: Hardcoded | I67: 0 | J67: LAC | K67: Costa Rica | S67: 1 | T67: 1 | V67: 1 | W67: 1.01 > Energy target > Costa Rica | X67: 1.01 > Costa Rica | Y67: None | Z67: 63 | AA67: 1
A68: Enabling framework | B68: Policy & Regulation | C68: 1.01 | D68: Clean energy policies | E68: Energy target | F68: Both | G68: Policy Types | H68: Hardcoded | I68: 0 | J68: LAC | K68: Dominican Republic | S68: 1 | T68: 1 | V68: 1 | W68: 1.01 > Energy target > Dominican Republic | X68: 1.01 > Dominican Republic | Y68: None | Z68: 64 | AA68: 1
A69: Enabling framework | B69: Policy & Regulation | C69: 1.01 | D69: Clean energy policies | E69: Energy target | F69: Both | G69: Policy Types | H69: Hardcoded | I69: =IF(E69="","",IF(OR(E69="Wind",E69="Solar",E69="Geothermal",E69="Small Hydro",E69="Biofuels",E69="Biomass & Waste"), 1, 0)) -> 0 | J69: LAC | K69: Ecuador | S69: 0 | T69: 0 | V69: =INDEX($L69:$U69, 1, MATCH(V$4, $L$4:$U$4, 0)) -> 0 | W69: =C69&" > "&E69&" > "&K69 -> 1.01 > Energy target > Ecuador | X69: =C69&" > "&K69 -> 1.01 > Ecuador | Y69: =IF(A69="Levelisation", E69&" > "&K69, "None") -> None | Z69: 65 | AA69: 1
A70: Enabling framework | B70: Policy & Regulation | C70: 1.01 | D70: Clean energy policies | E70: Energy target | F70: Both | G70: Policy Types | H70: Hardcoded | I70: 0 | J70: LAC | K70: El Salvador | S70: 0 | T70: 0 | V70: 0 | W70: 1.01 > Energy target > El Salvador | X70: 1.01 > El Salvador | Y70: None | Z70: 66 | AA70: 1
A71: Enabling framework | B71: Policy & Regulation | C71: 1.01 | D71: Clean energy policies | E71: Energy target | F71: Both | G71: Policy Types | H71: Hardcoded | I71: 0 | J71: LAC | K71: Guatemala | S71: 0 | T71: 0 | V71: 0 | W71: 1.01 > Energy target > Guatemala | X71: 1.01 > Guatemala | Y71: None | Z71: 67 | AA71: 1
A72: Enabling framework | B72: Policy & Regulation | C72: 1.01 | D72: Clean energy policies | E72: Energy target | F72: Both | G72: Policy Types | H72: Hardcoded | I72: 0 | J72: LAC | K72: Guyana | S72: 0 | T72: 0 | V72: 0 | W72: 1.01 > Energy target > Guyana | X72: 1.01 > Guyana | Y72: None | Z72: 68 | AA72: 1
A73: Enabling framework | B73: Policy & Regulation | C73: 1.01 | D73: Clean energy policies | E73: Energy target | F73: Both | G73: Policy Types | H73: Hardcoded | I73: 0 | J73: LAC | K73: Haiti | S73: 0 | T73: 0 | V73: 0 | W73: 1.01 > Energy target > Haiti | X73: 1.01 > Haiti | Y73: None | Z73: 69 | AA73: 1
A74: Enabling framework | B74: Policy & Regulation | C74: 1.01 | D74: Clean energy policies | E74: Energy target | F74: Both | G74: Policy Types | H74: Hardcoded | I74: 0 | J74: LAC | K74: Honduras | S74: 0 | T74: 0 | V74: 0 | W74: 1.01 > Energy target > Honduras | X74: 1.01 > Honduras | Y74: None | Z74: 70 | AA74: 1
A75: Enabling framework | B75: Policy & Regulation | C75: 1.01 | D75: Clean energy policies | E75: Energy target | F75: Both | G75: Policy Types | H75: Hardcoded | I75: 0 | J75: LAC | K75: Jamaica | S75: 1 | T75: 1 | V75: 1 | W75: 1.01 > Energy target > Jamaica | X75: 1.01 > Jamaica | Y75: None | Z75: 71 | AA75: 1
A76: Enabling framework | B76: Policy & Regulation | C76: 1.01 | D76: Clean energy policies | E76: Energy target | F76: Both | G76: Policy Types | H76: Hardcoded | I76: 0 | J76: LAC | K76: Mexico | S76: 1 | T76: 1 | V76: 1 | W76: 1.01 > Energy target > Mexico | X76: 1.01 > Mexico | Y76: None | Z76: 72 | AA76: 1
A77: Enabling framework | B77: Policy & Regulation | C77: 1.01 | D77: Clean energy policies | E77: Energy target | F77: Both | G77: Policy Types | H77: Hardcoded | I77: 0 | J77: LAC | K77: Nicaragua | S77: 1 | T77: 1 | V77: 1 | W77: 1.01 > Energy target > Nicaragua | X77: 1.01 > Nicaragua | Y77: None | Z77: 73 | AA77: 1
A78: Enabling framework | B78: Policy & Regulation | C78: 1.01 | D78: Clean energy policies | E78: Energy target | F78: Both | G78: Policy Types | H78: Hardcoded | I78: 0 | J78: LAC | K78: Panama | S78: 0 | T78: 0 | V78: 0 | W78: 1.01 > Energy target > Panama | X78: 1.01 > Panama | Y78: None | Z78: 74 | AA78: 1
A79: Enabling framework | B79: Policy & Regulation | C79: 1.01 | D79: Clean energy policies | E79: Energy target | F79: Both | G79: Policy Types | H79: Hardcoded | I79: 0 | J79: LAC | K79: Paraguay | S79: 0 | T79: 0 | V79: 0 | W79: 1.01 > Energy target > Paraguay | X79: 1.01 > Paraguay | Y79: None | Z79: 75 | AA79: 1
A80: Enabling framework | B80: Policy & Regulation | C80: 1.01 | D80: Clean energy policies | E80: Energy target | F80: Both | G80: Policy Types | H80: Hardcoded | I80: 0 | J80: LAC | K80: Peru | S80: 0 | T80: 0 | V80: 0 | W80: 1.01 > Energy target > Peru | X80: 1.01 > Peru | Y80: None | Z80: 76 | AA80: 1
A81: Enabling framework | B81: Policy & Regulation | C81: 1.01 | D81: Clean energy policies | E81: Energy target | F81: Both | G81: Policy Types | H81: Hardcoded | I81: 0 | J81: LAC | K81: Suriname | S81: 0 | T81: 0 | V81: 0 | W81: 1.01 > Energy target > Suriname | X81: 1.01 > Suriname | Y81: None | Z81: 77 | AA81: 1
A82: Enabling framework | B82: Policy & Regulation | C82: 1.01 | D82: Clean energy policies | E82: Energy target | F82: Both | G82: Policy Types | H82: Hardcoded | I82: 0 | J82: LAC | K82: Trinidad & Tobago | S82: 0 | T82: 0 | V82: 0 | W82: 1.01 > Energy target > Trinidad & Tobago | X82: 1.01 > Trinidad & Tobago | Y82: None | Z82: 78 | AA82: 1
A83: Enabling framework | B83: Policy & Regulation | C83: 1.01 | D83: Clean energy policies | E83: Energy target | F83: Both | G83: Policy Types | H83: Hardcoded | I83: 0 | J83: LAC | K83: Uruguay | S83: 1 | T83: 1 | V83: 1 | W83: 1.01 > Energy target > Uruguay | X83: 1.01 > Uruguay | Y83: None | Z83: 79 | AA83: 1
A84: Enabling framework | B84: Policy & Regulation | C84: 1.01 | D84: Clean energy policies | E84: Energy target | F84: Both | G84: Policy Types | H84: Hardcoded | I84: 0 | J84: LAC | K84: Venezuela | S84: 0 | T84: 0 | V84: 0 | W84: 1.01 > Energy target > Venezuela | X84: 1.01 > Venezuela | Y84: None | Z84: 80 | AA84: 1
A85: Enabling framework | B85: Policy & Regulation | C85: 1.01 | D85: Clean energy policies | E85: Auctions | F85: Both | G85: Policy Types | H85: Hardcoded | I85: 0 | J85: Africa | K85: Botswana | S85: 0 | V85: 0 | W85: 1.01 > Auctions > Botswana | X85: 1.01 > Botswana | Y85: None | Z85: 81 | AA85: =AA5+1 -> 2
A86: Enabling framework | B86: Policy & Regulation | C86: 1.01 | D86: Clean energy policies | E86: Auctions | F86: Both | G86: Policy Types | H86: Hardcoded | I86: 0 | J86: Africa | K86: Cameroon | S86: 0 | V86: 0 | W86: 1.01 > Auctions > Cameroon | X86: 1.01 > Cameroon | Y86: None | Z86: 82 | AA86: 2
A87: Enabling framework | B87: Policy & Regulation | C87: 1.01 | D87: Clean energy policies | E87: Auctions | F87: Both | G87: Policy Types | H87: Hardcoded | I87: 0 | J87: Africa | K87: Cote d'Ivoire | S87: 1 | T87: 1 | V87: 1 | W87: 1.01 > Auctions > Cote d'Ivoire | X87: 1.01 > Cote d'Ivoire | Y87: None | Z87: 83 | AA87: 2
A88: Enabling framework | B88: Policy & Regulation | C88: 1.01 | D88: Clean energy policies | E88: Auctions | F88: Both | G88: Policy Types | H88: Hardcoded | I88: 0 | J88: Africa | K88: Congo (Dem. Rep.) | S88: 0 | V88: 0 | W88: 1.01 > Auctions > Congo (Dem. Rep.) | X88: 1.01 > Congo (Dem. Rep.) | Y88: None | Z88: 84 | AA88: 2
A89: Enabling framework | B89: Policy & Regulation | C89: 1.01 | D89: Clean energy policies | E89: Auctions | F89: Both | G89: Policy Types | H89: Hardcoded | I89: 0 | J89: Africa | K89: Ethiopia | S89: 0 | V89: 0 | W89: 1.01 > Auctions > Ethiopia | X89: 1.01 > Ethiopia | Y89: None | Z89: 85 | AA89: 2
A90: Enabling framework | B90: Policy & Regulation | C90: 1.01 | D90: Clean energy policies | E90: Auctions | F90: Both | G90: Policy Types | H90: Hardcoded | I90: 0 | J90: Africa | K90: Ghana | S90: 0 | V90: 0 | W90: 1.01 > Auctions > Ghana | X90: 1.01 > Ghana | Y90: None | Z90: 86 | AA90: 2
A91: Enabling framework | B91: Policy & Regulation | C91: 1.01 | D91: Clean energy policies | E91: Auctions | F91: Both | G91: Policy Types | H91: Hardcoded | I91: 0 | J91: Africa | K91: Kenya | S91: 0 | V91: 0 | W91: 1.01 > Auctions > Kenya | X91: 1.01 > Kenya | Y91: None | Z91: 87 | AA91: 2
A92: Enabling framework | B92: Policy & Regulation | C92: 1.01 | D92: Clean energy policies | E92: Auctions | F92: Both | G92: Policy Types | H92: Hardcoded | I92: 0 | J92: Africa | K92: Liberia | S92: 0 | V92: 0 | W92: 1.01 > Auctions > Liberia | X92: 1.01 > Liberia | Y92: None | Z92: 88 | AA92: 2
A93: Enabling framework | B93: Policy & Regulation | C93: 1.01 | D93: Clean energy policies | E93: Auctions | F93: Both | G93: Policy Types | H93: Hardcoded | I93: 0 | J93: Africa | K93: Malawi | S93: 0 | V93: 0 | W93: 1.01 > Auctions > Malawi | X93: 1.01 > Malawi | Y93: None | Z93: 89 | AA93: 2
A94: Enabling framework | B94: Policy & Regulation | C94: 1.01 | D94: Clean energy policies | E94: Auctions | F94: Both | G94: Policy Types | H94: Hardcoded | I94: 0 | J94: Africa | K94: Mozambique | S94: 0 | V94: 0 | W94: 1.01 > Auctions > Mozambique | X94: 1.01 > Mozambique | Y94: None | Z94: 90 | AA94: 2
A95: Enabling framework | B95: Policy & Regulation | C95: 1.01 | D95: Clean energy policies | E95: Auctions | F95: Both | G95: Policy Types | H95: Hardcoded | I95: 0 | J95: Africa | K95: Nigeria | S95: 0 | V95: 0 | W95: 1.01 > Auctions > Nigeria | X95: 1.01 > Nigeria | Y95: None | Z95: 91 | AA95: 2
A96: Enabling framework | B96: Policy & Regulation | C96: 1.01 | D96: Clean energy policies | E96: Auctions | F96: Both | G96: Policy Types | H96: Hardcoded | I96: 0 | J96: Africa | K96: Rwanda | S96: 1 | T96: 1 | V96: 1 | W96: 1.01 > Auctions > Rwanda | X96: 1.01 > Rwanda | Y96: None | Z96: 92 | AA96: 2
A97: Enabling framework | B97: Policy & Regulation | C97: 1.01 | D97: Clean energy policies | E97: Auctions | F97: Both | G97: Policy Types | H97: Hardcoded | I97: 0 | J97: Africa | K97: Senegal | S97: 1 | T97: 1 | V97: 1 | W97: 1.01 > Auctions > Senegal | X97: 1.01 > Senegal | Y97: None | Z97: 93 | AA97: 2
A98: Enabling framework | B98: Policy & Regulation | C98: 1.01 | D98: Clean energy policies | E98: Auctions | F98: Both | G98: Policy Types | H98: Hardcoded | I98: 0 | J98: Africa | K98: Sierra Leone | S98: 0 | V98: 0 | W98: 1.01 > Auctions > Sierra Leone | X98: 1.01 > Sierra Leone | Y98: None | Z98: 94 | AA98: 2
A99: Enabling framework | B99: Policy & Regulation | C99: 1.01 | D99: Clean energy policies | E99: Auctions | F99: Both | G99: Policy Types | H99: Hardcoded | I99: 0 | J99: Africa | K99: South Africa | S99: 1 | T99: 1 | V99: 1 | W99: 1.01 > Auctions > South Africa | X99: 1.01 > South Africa | Y99: None | Z99: 95 | AA99: 2
A100: Enabling framework | B100: Policy & Regulation | C100: 1.01 | D100: Clean energy policies | E100: Auctions | F100: Both | G100: Policy Types | H100: Hardcoded | I100: 0 | J100: Africa | K100: Tanzania | S100: 0 | V100: 0 | W100: 1.01 > Auctions > Tanzania | X100: 1.01 > Tanzania | Y100: None | Z100: 96 | AA100: 2
A101: Enabling framework | B101: Policy & Regulation | C101: 1.01 | D101: Clean energy policies | E101: Auctions | F101: Both | G101: Policy Types | H101: Hardcoded | I101: 0 | J101: Africa | K101: Uganda | S101: 1 | T101: 1 | V101: 1 | W101: 1.01 > Auctions > Uganda | X101: 1.01 > Uganda | Y101: None | Z101: 97 | AA101: 2
A102: Enabling framework | B102: Policy & Regulation | C102: 1.01 | D102: Clean energy policies | E102: Auctions | F102: Both | G102: Policy Types | H102: Hardcoded | I102: 0 | J102: Africa | K102: Zambia | S102: 0 | V102: 0 | W102: 1.01 > Auctions > Zambia | X102: 1.01 > Zambia | Y102: None | Z102: 98 | AA102: 2
A103: Enabling framework | B103: Policy & Regulation | C103: 1.01 | D103: Clean energy policies | E103: Auctions | F103: Both | G103: Policy Types | H103: Hardcoded | I103: 0 | J103: Africa | K103: Zimbabwe | S103: 0 | V103: 0 | W103: 1.01 > Auctions > Zimbabwe | X103: 1.01 > Zimbabwe | Y103: None | Z103: 99 | AA103: 2
A104: Enabling framework | B104: Policy & Regulation | C104: 1.01 | D104: Clean energy policies | E104: Auctions | F104: Both | G104: Policy Types | H104: Hardcoded | I104: 0 | J104: Asia | K104: Bangladesh | S104: 1 | T104: 1 | V104: 1 | W104: 1.01 > Auctions > Bangladesh | X104: 1.01 > Bangladesh | Y104: None | Z104: 100 | AA104: 2
A105: Enabling framework | B105: Policy & Regulation | C105: 1.01 | D105: Clean energy policies | E105: Auctions | F105: Both | G105: Policy Types | H105: Hardcoded | I105: 0 | J105: Asia | K105: China | S105: 1 | T105: 1 | V105: 1 | W105: 1.01 > Auctions > China | X105: 1.01 > China | Y105: None | Z105: 101 | AA105: 2
A106: Enabling framework | B106: Policy & Regulation | C106: 1.01 | D106: Clean energy policies | E106: Auctions | F106: Both | G106: Policy Types | H106: Hardcoded | I106: 0 | J106: Asia | K106: China :: Fujian | S106: 0 | T106: 0 | V106: 0 | W106: 1.01 > Auctions > China :: Fujian | X106: 1.01 > China :: Fujian | Y106: None | Z106: 102 | AA106: 2
A107: Enabling framework | B107: Policy & Regulation | C107: 1.01 | D107: Clean energy policies | E107: Auctions | F107: Both | G107: Policy Types | H107: Hardcoded | I107: 0 | J107: Asia | K107: China :: Gansu | S107: 0 | T107: 1 | V107: 1 | W107: 1.01 > Auctions > China :: Gansu | X107: 1.01 > China :: Gansu | Y107: None | Z107: 103 | AA107: 2
A108: Enabling framework | B108: Policy & Regulation | C108: 1.01 | D108: Clean energy policies | E108: Auctions | F108: Both | G108: Policy Types | H108: Hardcoded | I108: 0 | J108: Asia | K108: China :: Guangdong | S108: 0 | T108: 0 | V108: 0 | W108: 1.01 > Auctions > China :: Guangdong | X108: 1.01 > China :: Guangdong | Y108: None | Z108: 104 | AA108: 2
A109: Enabling framework | B109: Policy & Regulation | C109: 1.01 | D109: Clean energy policies | E109: Auctions | F109: Both | G109: Policy Types | H109: Hardcoded | I109: 0 | J109: Asia | K109: China :: Hebei | S109: 0 | T109: 1 | V109: 1 | W109: 1.01 > Auctions > China :: Hebei | X109: 1.01 > China :: Hebei | Y109: None | Z109: 105 | AA109: 2
A110: Enabling framework | B110: Policy & Regulation | C110: 1.01 | D110: Clean energy policies | E110: Auctions | F110: Both | G110: Policy Types | H110: Hardcoded | I110: 0 | J110: Asia | K110: China :: Heilongjiang | S110: 0 | T110: 0 | V110: 0 | W110: 1.01 > Auctions > China :: Heilongjiang | X110: 1.01 > China :: Heilongjiang | Y110: None | Z110: 106 | AA110: 2
A111: Enabling framework | B111: Policy & Regulation | C111: 1.01 | D111: Clean energy policies | E111: Auctions | F111: Both | G111: Policy Types | H111: Hardcoded | I111: 0 | J111: Asia | K111: China :: Hubei | S111: 0 | T111: 0 | V111: 0 | W111: 1.01 > Auctions > China :: Hubei | X111: 1.01 > China :: Hubei | Y111: None | Z111: 107 | AA111: 2
A112: Enabling framework | B112: Policy & Regulation | C112: 1.01 | D112: Clean energy policies | E112: Auctions | F112: Both | G112: Policy Types | H112: Hardcoded | I112: 0 | J112: Asia | K112: China :: Inner Mongolia | S112: 0 | T112: 1 | V112: 1 | W112: 1.01 > Auctions > China :: Inner Mongolia | X112: 1.01 > China :: Inner Mongolia | Y112: None | Z112: 108 | AA112: 2
A113: Enabling framework | B113: Policy & Regulation | C113: 1.01 | D113: Clean energy policies | E113: Auctions | F113: Both | G113: Policy Types | H113: Hardcoded | I113: 0 | J113: Asia | K113: China :: Jiangsu | S113: 1 | T113: 1 | V113: 1 | W113: 1.01 > Auctions > China :: Jiangsu | X113: 1.01 > China :: Jiangsu | Y113: None | Z113: 109 | AA113: 2
A114: Enabling framework | B114: Policy & Regulation | C114: 1.01 | D114: Clean energy policies | E114: Auctions | F114: Both | G114: Policy Types | H114: Hardcoded | I114: 0 | J114: Asia | K114: China :: Jilin | S114: 0 | T114: 1 | V114: 1 | W114: 1.01 > Auctions > China :: Jilin | X114: 1.01 > China :: Jilin | Y114: None | Z114: 110 | AA114: 2
A115: Enabling framework | B115: Policy & Regulation | C115: 1.01 | D115: Clean energy policies | E115: Auctions | F115: Both | G115: Policy Types | H115: Hardcoded | I115: 0 | J115: Asia | K115: China :: Qinghai | S115: 0 | T115: 1 | V115: 1 | W115: 1.01 > Auctions > China :: Qinghai | X115: 1.01 > China :: Qinghai | Y115: None | Z115: 111 | AA115: 2
A116: Enabling framework | B116: Policy & Regulation | C116: 1.01 | D116: Clean energy policies | E116: Auctions | F116: Both | G116: Policy Types | H116: Hardcoded | I116: 0 | J116: Asia | K116: China :: Shandong | S116: 0 | T116: 0 | V116: 0 | W116: 1.01 > Auctions > China :: Shandong | X116: 1.01 > China :: Shandong | Y116: None | Z116: 112 | AA116: 2
A117: Enabling framework | B117: Policy & Regulation | C117: 1.01 | D117: Clean energy policies | E117: Auctions | F117: Both | G117: Policy Types | H117: Hardcoded | I117: 0 | J117: Asia | K117: China :: Sichuan | S117: 0 | T117: 0 | V117: 0 | W117: 1.01 > Auctions > China :: Sichuan | X117: 1.01 > China :: Sichuan | Y117: None | Z117: 113 | AA117: 2
A118: Enabling framework | B118: Policy & Regulation | C118: 1.01 | D118: Clean energy policies | E118: Auctions | F118: Both | G118: Policy Types | H118: Hardcoded | I118: 0 | J118: Asia | K118: China :: Tibet | S118: 0 | T118: 1 | V118: 1 | W118: 1.01 > Auctions > China :: Tibet | X118: 1.01 > China :: Tibet | Y118: None | Z118: 114 | AA118: 2
A119: Enabling framework | B119: Policy & Regulation | C119: 1.01 | D119: Clean energy policies | E119: Auctions | F119: Both | G119: Policy Types | H119: Hardcoded | I119: 0 | J119: Asia | K119: China :: Xinjiang | S119: 0 | T119: 1 | V119: 1 | W119: 1.01 > Auctions > China :: Xinjiang | X119: 1.01 > China :: Xinjiang | Y119: None | Z119: 115 | AA119: 2
A120: Enabling framework | B120: Policy & Regulation | C120: 1.01 | D120: Clean energy policies | E120: Auctions | F120: Both | G120: Policy Types | H120: Hardcoded | I120: 0 | J120: Asia | K120: China :: Yunnan | S120: 1 | T120: 1 | V120: 1 | W120: 1.01 > Auctions > China :: Yunnan | X120: 1.01 > China :: Yunnan | Y120: None | Z120: 116 | AA120: 2
A121: Enabling framework | B121: Policy & Regulation | C121: 1.01 | D121: Clean energy policies | E121: Auctions | F121: Both | G121: Policy Types | H121: Hardcoded | I121: 0 | J121: Asia | K121: India | S121: 1 | T121: 1 | V121: 1 | W121: 1.01 > Auctions > India | X121: 1.01 > India | Y121: None | Z121: 117 | AA121: 2
A122: Enabling framework | B122: Policy & Regulation | C122: 1.01 | D122: Clean energy policies | E122: Auctions | F122: Both | G122: Policy Types | H122: Hardcoded | I122: 0 | J122: Asia | K122: India :: Andhra Pradesh | S122: 0 | T122: 1 | V122: 1 | W122: 1.01 > Auctions > India :: Andhra Pradesh | X122: 1.01 > India :: Andhra Pradesh | Y122: None | Z122: 118 | AA122: 2
A123: Enabling framework | B123: Policy & Regulation | C123: 1.01 | D123: Clean energy policies | E123: Auctions | F123: Both | G123: Policy Types | H123: Hardcoded | I123: 0 | J123: Asia | K123: India :: Gujarat | S123: 0 | T123: 0 | V123: 0 | W123: 1.01 > Auctions > India :: Gujarat | X123: 1.01 > India :: Gujarat | Y123: None | Z123: 119 | AA123: 2
A124: Enabling framework | B124: Policy & Regulation | C124: 1.01 | D124: Clean energy policies | E124: Auctions | F124: Both | G124: Policy Types | H124: Hardcoded | I124: 0 | J124: Asia | K124: India :: Karnataka | S124: 1 | T124: 1 | V124: 1 | W124: 1.01 > Auctions > India :: Karnataka | X124: 1.01 > India :: Karnataka | Y124: None | Z124: 120 | AA124: 2
A125: Enabling framework | B125: Policy & Regulation | C125: 1.01 | D125: Clean energy policies | E125: Auctions | F125: Both | G125: Policy Types | H125: Hardcoded | I125: 0 | J125: Asia | K125: India :: Madhya Pradesh | S125: 1 | T125: 1 | V125: 1 | W125: 1.01 > Auctions > India :: Madhya Pradesh | X125: 1.01 > India :: Madhya Pradesh | Y125: None | Z125: 121 | AA125: 2
A126: Enabling framework | B126: Policy & Regulation | C126: 1.01 | D126: Clean energy policies | E126: Auctions | F126: Both | G126: Policy Types | H126: Hardcoded | I126: 0 | J126: Asia | K126: India :: Maharashtra | S126: 0 | T126: 0 | V126: 0 | W126: 1.01 > Auctions > India :: Maharashtra | X126: 1.01 > India :: Maharashtra | Y126: None | Z126: 122 | AA126: 2
A127: Enabling framework | B127: Policy & Regulation | C127: 1.01 | D127: Clean energy policies | E127: Auctions | F127: Both | G127: Policy Types | H127: Hardcoded | I127: 0 | J127: Asia | K127: India :: Punjab | S127: 1 | T127: 1 | V127: 1 | W127: 1.01 > Auctions > India :: Punjab | X127: 1.01 > India :: Punjab | Y127: None | Z127: 123 | AA127: 2
A128: Enabling framework | B128: Policy & Regulation | C128: 1.01 | D128: Clean energy policies | E128: Auctions | F128: Both | G128: Policy Types | H128: Hardcoded | I128: 0 | J128: Asia | K128: India :: Rajasthan | S128: 1 | T128: 1 | V128: 1 | W128: 1.01 > Auctions > India :: Rajasthan | X128: 1.01 > India :: Rajasthan | Y128: None | Z128: 124 | AA128: 2
A129: Enabling framework | B129: Policy & Regulation | C129: 1.01 | D129: Clean energy policies | E129: Auctions | F129: Both | G129: Policy Types | H129: Hardcoded | I129: 0 | J129: Asia | K129: India :: Tamil Nadu | S129: 1 | T129: 0 | V129: 0 | W129: 1.01 > Auctions > India :: Tamil Nadu | X129: 1.01 > India :: Tamil Nadu | Y129: None | Z129: 125 | AA129: 2
A130: Enabling framework | B130: Policy & Regulation | C130: 1.01 | D130: Clean energy policies | E130: Auctions | F130: Both | G130: Policy Types | H130: Hardcoded | I130: 0 | J130: Asia | K130: India :: Uttar Pradesh | S130: 1 | T130: 1 | V130: 1 | W130: 1.01 > Auctions > India :: Uttar Pradesh | X130: 1.01 > India :: Uttar Pradesh | Y130: None | Z130: 126 | AA130: 2
A131: Enabling framework | B131: Policy & Regulation | C131: 1.01 | D131: Clean energy policies | E131: Auctions | F131: Both | G131: Policy Types | H131: Hardcoded | I131: 0 | J131: Asia | K131: India :: West Bengal | S131: 0 | T131: 0 | V131: 0 | W131: 1.01 > Auctions > India :: West Bengal | X131: 1.01 > India :: West Bengal | Y131: None | Z131: 127 | AA131: 2
A132: Enabling framework | B132: Policy & Regulation | C132: 1.01 | D132: Clean energy policies | E132: Auctions | F132: Both | G132: Policy Types | H132: Hardcoded | I132: 0 | J132: Asia | K132: Indonesia | S132: 1 | T132: 1 | V132: 1 | W132: 1.01 > Auctions > Indonesia | X132: 1.01 > Indonesia | Y132: None | Z132: 128 | AA132: 2
A133: Enabling framework | B133: Policy & Regulation | C133: 1.01 | D133: Clean energy policies | E133: Auctions | F133: Both | G133: Policy Types | H133: Hardcoded | I133: =IF(E133="","",IF(OR(E133="Wind",E133="Solar",E133="Geothermal",E133="Small Hydro",E133="Biofuels",E133="Biomass & Waste"), 1, 0)) -> 0 | J133: Asia | K133: Myanmar | S133: 0 | T133: 0 | V133: =INDEX($L133:$U133, 1, MATCH(V$4, $L$4:$U$4, 0)) -> 0 | W133: =C133&" > "&E133&" > "&K133 -> 1.01 > Auctions > Myanmar | X133: =C133&" > "&K133 -> 1.01 > Myanmar | Y133: =IF(A133="Levelisation", E133&" > "&K133, "None") -> None | Z133: 129 | AA133: 2
A134: Enabling framework | B134: Policy & Regulation | C134: 1.01 | D134: Clean energy policies | E134: Auctions | F134: Both | G134: Policy Types | H134: Hardcoded | I134: 0 | J134: Asia | K134: Nepal | S134: 0 | T134: 0 | V134: 0 | W134: 1.01 > Auctions > Nepal | X134: 1.01 > Nepal | Y134: None | Z134: 130 | AA134: 2
A135: Enabling framework | B135: Policy & Regulation | C135: 1.01 | D135: Clean energy policies | E135: Auctions | F135: Both | G135: Policy Types | H135: Hardcoded | I135: 0 | J135: Asia | K135: Pakistan | S135: 0 | T135: 0 | V135: 0 | W135: 1.01 > Auctions > Pakistan | X135: 1.01 > Pakistan | Y135: None | Z135: 131 | AA135: 2
A136: Enabling framework | B136: Policy & Regulation | C136: 1.01 | D136: Clean energy policies | E136: Auctions | F136: Both | G136: Policy Types | H136: Hardcoded | I136: 0 | J136: Asia | K136: Sri Lanka | S136: 0 | T136: 0 | V136: 0 | W136: 1.01 > Auctions > Sri Lanka | X136: 1.01 > Sri Lanka | Y136: None | Z136: 132 | AA136: 2
A137: Enabling framework | B137: Policy & Regulation | C137: 1.01 | D137: Clean energy policies | E137: Auctions | F137: Both | G137: Policy Types | H137: Hardcoded | I137: 0 | J137: Asia | K137: Tajikistan | S137: 0 | T137: 0 | V137: 0 | W137: 1.01 > Auctions > Tajikistan | X137: 1.01 > Tajikistan | Y137: None | Z137: 133 | AA137: 2
A138: Enabling framework | B138: Policy & Regulation | C138: 1.01 | D138: Clean energy policies | E138: Auctions | F138: Both | G138: Policy Types | H138: Hardcoded | I138: 0 | J138: Asia | K138: Vietnam | S138: 0 | T138: 0 | V138: 0 | W138: 1.01 > Auctions > Vietnam | X138: 1.01 > Vietnam | Y138: None | Z138: 134 | AA138: 2
A139: Enabling framework | B139: Policy & Regulation | C139: 1.01 | D139: Clean energy policies | E139: Auctions | F139: Both | G139: Policy Types | H139: Hardcoded | I139: 0 | J139: LAC | K139: Argentina | S139: 1 | T139: 1 | V139: 1 | W139: 1.01 > Auctions > Argentina | X139: 1.01 > Argentina | Y139: None | Z139: 135 | AA139: 2
A140: Enabling framework | B140: Policy & Regulation | C140: 1.01 | D140: Clean energy policies | E140: Auctions | F140: Both | G140: Policy Types | H140: Hardcoded | I140: 0 | J140: LAC | K140: Bahamas | S140: 0 | T140: 0 | V140: 0 | W140: 1.01 > Auctions > Bahamas | X140: 1.01 > Bahamas | Y140: None | Z140: 136 | AA140: 2
A141: Enabling framework | B141: Policy & Regulation | C141: 1.01 | D141: Clean energy policies | E141: Auctions | F141: Both | G141: Policy Types | H141: Hardcoded | I141: 0 | J141: LAC | K141: Barbados | S141: 0 | T141: 0 | V141: 0 | W141: 1.01 > Auctions > Barbados | X141: 1.01 > Barbados | Y141: None | Z141: 137 | AA141: 2
A142: Enabling framework | B142: Policy & Regulation | C142: 1.01 | D142: Clean energy policies | E142: Auctions | F142: Both | G142: Policy Types | H142: Hardcoded | I142: 0 | J142: LAC | K142: Belize | S142: 1 | T142: 1 | V142: 1 | W142: 1.01 > Auctions > Belize | X142: 1.01 > Belize | Y142: None | Z142: 138 | AA142: 2
A143: Enabling framework | B143: Policy & Regulation | C143: 1.01 | D143: Clean energy policies | E143: Auctions | F143: Both | G143: Policy Types | H143: Hardcoded | I143: 0 | J143: LAC | K143: Bolivia | S143: 0 | T143: 0 | V143: 0 | W143: 1.01 > Auctions > Bolivia | X143: 1.01 > Bolivia | Y143: None | Z143: 139 | AA143: 2
A144: Enabling framework | B144: Policy & Regulation | C144: 1.01 | D144: Clean energy policies | E144: Auctions | F144: Both | G144: Policy Types | H144: Hardcoded | I144: 0 | J144: LAC | K144: Brazil | S144: 1 | T144: 1 | V144: 1 | W144: 1.01 > Auctions > Brazil | X144: 1.01 > Brazil | Y144: None | Z144: 140 | AA144: 2
A145: Enabling framework | B145: Policy & Regulation | C145: 1.01 | D145: Clean energy policies | E145: Auctions | F145: Both | G145: Policy Types | H145: Hardcoded | I145: 0 | J145: LAC | K145: Chile | S145: 0 | T145: 1 | V145: 1 | W145: 1.01 > Auctions > Chile | X145: 1.01 > Chile | Y145: None | Z145: 141 | AA145: 2
A146: Enabling framework | B146: Policy & Regulation | C146: 1.01 | D146: Clean energy policies | E146: Auctions | F146: Both | G146: Policy Types | H146: Hardcoded | I146: 0 | J146: LAC | K146: Colombia | S146: 0 | T146: 0 | V146: 0 | W146: 1.01 > Auctions > Colombia | X146: 1.01 > Colombia | Y146: None | Z146: 142 | AA146: 2
A147: Enabling framework | B147: Policy & Regulation | C147: 1.01 | D147: Clean energy policies | E147: Auctions | F147: Both | G147: Policy Types | H147: Hardcoded | I147: 0 | J147: LAC | K147: Costa Rica | S147: 1 | T147: 1 | V147: 1 | W147: 1.01 > Auctions > Costa Rica | X147: 1.01 > Costa Rica | Y147: None | Z147: 143 | AA147: 2
A148: Enabling framework | B148: Policy & Regulation | C148: 1.01 | D148: Clean energy policies | E148: Auctions | F148: Both | G148: Policy Types | H148: Hardcoded | I148: 0 | J148: LAC | K148: Dominican Republic | S148: 0 | T148: 0 | V148: 0 | W148: 1.01 > Auctions > Dominican Republic | X148: 1.01 > Dominican Republic | Y148: None | Z148: 144 | AA148: 2
A149: Enabling framework | B149: Policy & Regulation | C149: 1.01 | D149: Clean energy policies | E149: Auctions | F149: Both | G149: Policy Types | H149: Hardcoded | I149: 0 | J149: LAC | K149: Ecuador | S149: 0 | T149: 0 | V149: 0 | W149: 1.01 > Auctions > Ecuador | X149: 1.01 > Ecuador | Y149: None | Z149: 145 | AA149: =AA69+1 -> 2
A150: Enabling framework | B150: Policy & Regulation | C150: 1.01 | D150: Clean energy policies | E150: Auctions | F150: Both | G150: Policy Types | H150: Hardcoded | I150: 0 | J150: LAC | K150: El Salvador | S150: 1 | T150: 1 | V150: 1 | W150: 1.01 > Auctions > El Salvador | X150: 1.01 > El Salvador | Y150: None | Z150: 146 | AA150: 2
A151: Enabling framework | B151: Policy & Regulation | C151: 1.01 | D151: Clean energy policies | E151: Auctions | F151: Both | G151: Policy Types | H151: Hardcoded | I151: 0 | J151: LAC | K151: Guatemala | S151: 1 | T151: 1 | V151: 1 | W151: 1.01 > Auctions > Guatemala | X151: 1.01 > Guatemala | Y151: None | Z151: 147 | AA151: 2
A152: Enabling framework | B152: Policy & Regulation | C152: 1.01 | D152: Clean energy policies | E152: Auctions | F152: Both | G152: Policy Types | H152: Hardcoded | I152: 0 | J152: LAC | K152: Guyana | S152: 0 | T152: 0 | V152: 0 | W152: 1.01 > Auctions > Guyana | X152: 1.01 > Guyana | Y152: None | Z152: 148 | AA152: 2
A153: Enabling framework | B153: Policy & Regulation | C153: 1.01 | D153: Clean energy policies | E153: Auctions | F153: Both | G153: Policy Types | H153: Hardcoded | I153: 0 | J153: LAC | K153: Haiti | S153: 0 | T153: 0 | V153: 0 | W153: 1.01 > Auctions > Haiti | X153: 1.01 > Haiti | Y153: None | Z153: 149 | AA153: 2
A154: Enabling framework | B154: Policy & Regulation | C154: 1.01 | D154: Clean energy policies | E154: Auctions | F154: Both | G154: Policy Types | H154: Hardcoded | I154: 0 | J154: LAC | K154: Honduras | S154: 1 | T154: 1 | V154: 1 | W154: 1.01 > Auctions > Honduras | X154: 1.01 > Honduras | Y154: None | Z154: 150 | AA154: 2
A155: Enabling framework | B155: Policy & Regulation | C155: 1.01 | D155: Clean energy policies | E155: Auctions | F155: Both | G155: Policy Types | H155: Hardcoded | I155: 0 | J155: LAC | K155: Jamaica | S155: 1 | T155: 1 | V155: 1 | W155: 1.01 > Auctions > Jamaica | X155: 1.01 > Jamaica | Y155: None | Z155: 151 | AA155: 2
A156: Enabling framework | B156: Policy & Regulation | C156: 1.01 | D156: Clean energy policies | E156: Auctions | F156: Both | G156: Policy Types | H156: Hardcoded | I156: 0 | J156: LAC | K156: Mexico | S156: 0 | T156: 0 | V156: 0 | W156: 1.01 > Auctions > Mexico | X156: 1.01 > Mexico | Y156: None | Z156: 152 | AA156: 2
A157: Enabling framework | B157: Policy & Regulation | C157: 1.01 | D157: Clean energy policies | E157: Auctions | F157: Both | G157: Policy Types | H157: Hardcoded | I157: 0 | J157: LAC | K157: Nicaragua | S157: 0 | T157: 0 | V157: 0 | W157: 1.01 > Auctions > Nicaragua | X157: 1.01 > Nicaragua | Y157: None | Z157: 153 | AA157: 2
A158: Enabling framework | B158: Policy & Regulation | C158: 1.01 | D158: Clean energy policies | E158: Auctions | F158: Both | G158: Policy Types | H158: Hardcoded | I158: 0 | J158: LAC | K158: Panama | S158: 1 | T158: 1 | V158: 1 | W158: 1.01 > Auctions > Panama | X158: 1.01 > Panama | Y158: None | Z158: 154 | AA158: 2
A159: Enabling framework | B159: Policy & Regulation | C159: 1.01 | D159: Clean energy policies | E159: Auctions | F159: Both | G159: Policy Types | H159: Hardcoded | I159: 0 | J159: LAC | K159: Paraguay | S159: 0 | T159: 0 | V159: 0 | W159: 1.01 > Auctions > Paraguay | X159: 1.01 > Paraguay | Y159: None | Z159: 155 | AA159: 2
A160: Enabling framework | B160: Policy & Regulation | C160: 1.01 | D160: Clean energy policies | E160: Auctions | F160: Both | G160: Policy Types | H160: Hardcoded | I160: 0 | J160: LAC | K160: Peru | S160: 1 | T160: 1 | V160: 1 | W160: 1.01 > Auctions > Peru | X160: 1.01 > Peru | Y160: None | Z160: 156 | AA160: 2
A161: Enabling framework | B161: Policy & Regulation | C161: 1.01 | D161: Clean energy policies | E161: Auctions | F161: Both | G161: Policy Types | H161: Hardcoded | I161: 0 | J161: LAC | K161: Suriname | S161: 0 | T161: 0 | V161: 0 | W161: 1.01 > Auctions > Suriname | X161: 1.01 > Suriname | Y161: None | Z161: 157 | AA161: 2
A162: Enabling framework | B162: Policy & Regulation | C162: 1.01 | D162: Clean energy policies | E162: Auctions | F162: Both | G162: Policy Types | H162: Hardcoded | I162: 0 | J162: LAC | K162: Trinidad & Tobago | S162: 0 | T162: 0 | V162: 0 | W162: 1.01 > Auctions > Trinidad & Tobago | X162: 1.01 > Trinidad & Tobago | Y162: None | Z162: 158 | AA162: 2
A163: Enabling framework | B163: Policy & Regulation | C163: 1.01 | D163: Clean energy policies | E163: Auctions | F163: Both | G163: Policy Types | H163: Hardcoded | I163: 0 | J163: LAC | K163: Uruguay | S163: 1 | T163: 1 | V163: 1 | W163: 1.01 > Auctions > Uruguay | X163: 1.01 > Uruguay | Y163: None | Z163: 159 | AA163: 2
A164: Enabling framework | B164: Policy & Regulation | C164: 1.01 | D164: Clean energy policies | E164: Auctions | F164: Both | G164: Policy Types | H164: Hardcoded | I164: 0 | J164: LAC | K164: Venezuela | S164: 0 | T164: 0 | V164: 0 | W164: 1.01 > Auctions > Venezuela | X164: 1.01 > Venezuela | Y164: None | Z164: 160 | AA164: 2
A165: Enabling framework | B165: Policy & Regulation | C165: 1.01 | D165: Clean energy policies | E165: Feed-in tariff | F165: Both | G165: Policy Types | H165: Hardcoded | I165: 0 | J165: Africa | K165: Botswana | S165: 0 | V165: 0 | W165: 1.01 > Feed-in tariff > Botswana | X165: 1.01 > Botswana | Y165: None | Z165: 161 | AA165: 3
A166: Enabling framework | B166: Policy & Regulation | C166: 1.01 | D166: Clean energy policies | E166: Feed-in tariff | F166: Both | G166: Policy Types | H166: Hardcoded | I166: 0 | J166: Africa | K166: Cameroon | S166: 0 | V166: 0 | W166: 1.01 > Feed-in tariff > Cameroon | X166: 1.01 > Cameroon | Y166: None | Z166: 162 | AA166: 3
A167: Enabling framework | B167: Policy & Regulation | C167: 1.01 | D167: Clean energy policies | E167: Feed-in tariff | F167: Both | G167: Policy Types | H167: Hardcoded | I167: 0 | J167: Africa | K167: Cote d'Ivoire | S167: 0 | V167: 0 | W167: 1.01 > Feed-in tariff > Cote d'Ivoire | X167: 1.01 > Cote d'Ivoire | Y167: None | Z167: 163 | AA167: 3
A168: Enabling framework | B168: Policy & Regulation | C168: 1.01 | D168: Clean energy policies | E168: Feed-in tariff | F168: Both | G168: Policy Types | H168: Hardcoded | I168: 0 | J168: Africa | K168: Congo (Dem. Rep.) | S168: 0 | V168: 0 | W168: 1.01 > Feed-in tariff > Congo (Dem. Rep.) | X168: 1.01 > Congo (Dem. Rep.) | Y168: None | Z168: 164 | AA168: 3
A169: Enabling framework | B169: Policy & Regulation | C169: 1.01 | D169: Clean energy policies | E169: Feed-in tariff | F169: Both | G169: Policy Types | H169: Hardcoded | I169: 0 | J169: Africa | K169: Ethiopia | S169: 0 | V169: 0 | W169: 1.01 > Feed-in tariff > Ethiopia | X169: 1.01 > Ethiopia | Y169: None | Z169: 165 | AA169: 3
A170: Enabling framework | B170: Policy & Regulation | C170: 1.01 | D170: Clean energy policies | E170: Feed-in tariff | F170: Both | G170: Policy Types | H170: Hardcoded | I170: 0 | J170: Africa | K170: Ghana | S170: 1 | T170: 1 | V170: 1 | W170: 1.01 > Feed-in tariff > Ghana | X170: 1.01 > Ghana | Y170: None | Z170: 166 | AA170: 3
A171: Enabling framework | B171: Policy & Regulation | C171: 1.01 | D171: Clean energy policies | E171: Feed-in tariff | F171: Both | G171: Policy Types | H171: Hardcoded | I171: 0 | J171: Africa | K171: Kenya | S171: 1 | T171: 1 | V171: 1 | W171: 1.01 > Feed-in tariff > Kenya | X171: 1.01 > Kenya | Y171: None | Z171: 167 | AA171: 3
A172: Enabling framework | B172: Policy & Regulation | C172: 1.01 | D172: Clean energy policies | E172: Feed-in tariff | F172: Both | G172: Policy Types | H172: Hardcoded | I172: 0 | J172: Africa | K172: Liberia | S172: 0 | V172: 0 | W172: 1.01 > Feed-in tariff > Liberia | X172: 1.01 > Liberia | Y172: None | Z172: 168 | AA172: 3
A173: Enabling framework | B173: Policy & Regulation | C173: 1.01 | D173: Clean energy policies | E173: Feed-in tariff | F173: Both | G173: Policy Types | H173: Hardcoded | I173: 0 | J173: Africa | K173: Malawi | T173: 1 | V173: 1 | W173: 1.01 > Feed-in tariff > Malawi | X173: 1.01 > Malawi | Y173: None | Z173: 169 | AA173: 3
A174: Enabling framework | B174: Policy & Regulation | C174: 1.01 | D174: Clean energy policies | E174: Feed-in tariff | F174: Both | G174: Policy Types | H174: Hardcoded | I174: 0 | J174: Africa | K174: Mozambique | S174: 0 | V174: 0 | W174: 1.01 > Feed-in tariff > Mozambique | X174: 1.01 > Mozambique | Y174: None | Z174: 170 | AA174: 3
A175: Enabling framework | B175: Policy & Regulation | C175: 1.01 | D175: Clean energy policies | E175: Feed-in tariff | F175: Both | G175: Policy Types | H175: Hardcoded | I175: 0 | J175: Africa | K175: Nigeria | S175: 1 | T175: 1 | V175: 1 | W175: 1.01 > Feed-in tariff > Nigeria | X175: 1.01 > Nigeria | Y175: None | Z175: 171 | AA175: 3
A176: Enabling framework | B176: Policy & Regulation | C176: 1.01 | D176: Clean energy policies | E176: Feed-in tariff | F176: Both | G176: Policy Types | H176: Hardcoded | I176: 0 | J176: Africa | K176: Rwanda | S176: 1 | T176: 1 | V176: 1 | W176: 1.01 > Feed-in tariff > Rwanda | X176: 1.01 > Rwanda | Y176: None | Z176: 172 | AA176: 3
A177: Enabling framework | B177: Policy & Regulation | C177: 1.01 | D177: Clean energy policies | E177: Feed-in tariff | F177: Both | G177: Policy Types | H177: Hardcoded | I177: 0 | J177: Africa | K177: Senegal | S177: 0 | V177: 0 | W177: 1.01 > Feed-in tariff > Senegal | X177: 1.01 > Senegal | Y177: None | Z177: 173 | AA177: 3
A178: Enabling framework | B178: Policy & Regulation | C178: 1.01 | D178: Clean energy policies | E178: Feed-in tariff | F178: Both | G178: Policy Types | H178: Hardcoded | I178: 0 | J178: Africa | K178: Sierra Leone | S178: 0 | V178: 0 | W178: 1.01 > Feed-in tariff > Sierra Leone | X178: 1.01 > Sierra Leone | Y178: None | Z178: 174 | AA178: 3
A179: Enabling framework | B179: Policy & Regulation | C179: 1.01 | D179: Clean energy policies | E179: Feed-in tariff | F179: Both | G179: Policy Types | H179: Hardcoded | I179: 0 | J179: Africa | K179: South Africa | S179: 0 | V179: 0 | W179: 1.01 > Feed-in tariff > South Africa | X179: 1.01 > South Africa | Y179: None | Z179: 175 | AA179: 3
A180: Enabling framework | B180: Policy & Regulation | C180: 1.01 | D180: Clean energy policies | E180: Feed-in tariff | F180: Both | G180: Policy Types | H180: Hardcoded | I180: 0 | J180: Africa | K180: Tanzania | S180: 0 | V180: 0 | W180: 1.01 > Feed-in tariff > Tanzania | X180: 1.01 > Tanzania | Y180: None | Z180: 176 | AA180: 3
A181: Enabling framework | B181: Policy & Regulation | C181: 1.01 | D181: Clean energy policies | E181: Feed-in tariff | F181: Both | G181: Policy Types | H181: Hardcoded | I181: 0 | J181: Africa | K181: Uganda | S181: 1 | T181: 1 | V181: 1 | W181: 1.01 > Feed-in tariff > Uganda | X181: 1.01 > Uganda | Y181: None | Z181: 177 | AA181: 3
A182: Enabling framework | B182: Policy & Regulation | C182: 1.01 | D182: Clean energy policies | E182: Feed-in tariff | F182: Both | G182: Policy Types | H182: Hardcoded | I182: 0 | J182: Africa | K182: Zambia | S182: 0 | V182: 0 | W182: 1.01 > Feed-in tariff > Zambia | X182: 1.01 > Zambia | Y182: None | Z182: 178 | AA182: 3
A183: Enabling framework | B183: Policy & Regulation | C183: 1.01 | D183: Clean energy policies | E183: Feed-in tariff | F183: Both | G183: Policy Types | H183: Hardcoded | I183: 0 | J183: Africa | K183: Zimbabwe | V183: 0 | W183: 1.01 > Feed-in tariff > Zimbabwe | X183: 1.01 > Zimbabwe | Y183: None | Z183: 179 | AA183: 3
A184: Enabling framework | B184: Policy & Regulation | C184: 1.01 | D184: Clean energy policies | E184: Feed-in tariff | F184: Both | G184: Policy Types | H184: Hardcoded | I184: 0 | J184: Asia | K184: Bangladesh | S184: 0 | T184: 0 | V184: 0 | W184: 1.01 > Feed-in tariff > Bangladesh | X184: 1.01 > Bangladesh | Y184: None | Z184: 180 | AA184: 3
A185: Enabling framework | B185: Policy & Regulation | C185: 1.01 | D185: Clean energy policies | E185: Feed-in tariff | F185: Both | G185: Policy Types | H185: Hardcoded | I185: 0 | J185: Asia | K185: China | S185: 1 | T185: 1 | V185: 1 | W185: 1.01 > Feed-in tariff > China | X185: 1.01 > China | Y185: None | Z185: 181 | AA185: 3
A186: Enabling framework | B186: Policy & Regulation | C186: 1.01 | D186: Clean energy policies | E186: Feed-in tariff | F186: Both | G186: Policy Types | H186: Hardcoded | I186: 0 | J186: Asia | K186: China :: Fujian | S186: 0 | T186: 1 | V186: 1 | W186: 1.01 > Feed-in tariff > China :: Fujian | X186: 1.01 > China :: Fujian | Y186: None | Z186: 182 | AA186: 3
A187: Enabling framework | B187: Policy & Regulation | C187: 1.01 | D187: Clean energy policies | E187: Feed-in tariff | F187: Both | G187: Policy Types | H187: Hardcoded | I187: 0 | J187: Asia | K187: China :: Gansu | S187: 0 | T187: 1 | V187: 1 | W187: 1.01 > Feed-in tariff > China :: Gansu | X187: 1.01 > China :: Gansu | Y187: None | Z187: 183 | AA187: 3
A188: Enabling framework | B188: Policy & Regulation | C188: 1.01 | D188: Clean energy policies | E188: Feed-in tariff | F188: Both | G188: Policy Types | H188: Hardcoded | I188: 0 | J188: Asia | K188: China :: Guangdong | S188: 0 | T188: 1 | V188: 1 | W188: 1.01 > Feed-in tariff > China :: Guangdong | X188: 1.01 > China :: Guangdong | Y188: None | Z188: 184 | AA188: 3
A189: Enabling framework | B189: Policy & Regulation | C189: 1.01 | D189: Clean energy policies | E189: Feed-in tariff | F189: Both | G189: Policy Types | H189: Hardcoded | I189: 0 | J189: Asia | K189: China :: Hebei | S189: 0 | T189: 1 | V189: 1 | W189: 1.01 > Feed-in tariff > China :: Hebei | X189: 1.01 > China :: Hebei | Y189: None | Z189: 185 | AA189: 3
A190: Enabling framework | B190: Policy & Regulation | C190: 1.01 | D190: Clean energy policies | E190: Feed-in tariff | F190: Both | G190: Policy Types | H190: Hardcoded | I190: 0 | J190: Asia | K190: China :: Heilongjiang | S190: 0 | T190: 1 | V190: 1 | W190: 1.01 > Feed-in tariff > China :: Heilongjiang | X190: 1.01 > China :: Heilongjiang | Y190: None | Z190: 186 | AA190: 3
A191: Enabling framework | B191: Policy & Regulation | C191: 1.01 | D191: Clean energy policies | E191: Feed-in tariff | F191: Both | G191: Policy Types | H191: Hardcoded | I191: 0 | J191: Asia | K191: China :: Hubei | S191: 0 | T191: 1 | V191: 1 | W191: 1.01 > Feed-in tariff > China :: Hubei | X191: 1.01 > China :: Hubei | Y191: None | Z191: 187 | AA191: 3
A192: Enabling framework | B192: Policy & Regulation | C192: 1.01 | D192: Clean energy policies | E192: Feed-in tariff | F192: Both | G192: Policy Types | H192: Hardcoded | I192: 0 | J192: Asia | K192: China :: Inner Mongolia | S192: 0 | T192: 1 | V192: 1 | W192: 1.01 > Feed-in tariff > China :: Inner Mongolia | X192: 1.01 > China :: Inner Mongolia | Y192: None | Z192: 188 | AA192: 3
A193: Enabling framework | B193: Policy & Regulation | C193: 1.01 | D193: Clean energy policies | E193: Feed-in tariff | F193: Both | G193: Policy Types | H193: Hardcoded | I193: 0 | J193: Asia | K193: China :: Jiangsu | S193: 1 | T193: 1 | V193: 1 | W193: 1.01 > Feed-in tariff > China :: Jiangsu | X193: 1.01 > China :: Jiangsu | Y193: None | Z193: 189 | AA193: 3
A194: Enabling framework | B194: Policy & Regulation | C194: 1.01 | D194: Clean energy policies | E194: Feed-in tariff | F194: Both | G194: Policy Types | H194: Hardcoded | I194: 0 | J194: Asia | K194: China :: Jilin | S194: 0 | T194: 1 | V194: 1 | W194: 1.01 > Feed-in tariff > China :: Jilin | X194: 1.01 > China :: Jilin | Y194: None | Z194: 190 | AA194: 3
A195: Enabling framework | B195: Policy & Regulation | C195: 1.01 | D195: Clean energy policies | E195: Feed-in tariff | F195: Both | G195: Policy Types | H195: Hardcoded | I195: 0 | J195: Asia | K195: China :: Qinghai | S195: 0 | T195: 1 | V195: 1 | W195: 1.01 > Feed-in tariff > China :: Qinghai | X195: 1.01 > China :: Qinghai | Y195: None | Z195: 191 | AA195: 3
A196: Enabling framework | B196: Policy & Regulation | C196: 1.01 | D196: Clean energy policies | E196: Feed-in tariff | F196: Both | G196: Policy Types | H196: Hardcoded | I196: 0 | J196: Asia | K196: China :: Shandong | S196: 0 | T196: 1 | V196: 1 | W196: 1.01 > Feed-in tariff > China :: Shandong | X196: 1.01 > China :: Shandong | Y196: None | Z196: 192 | AA196: 3
A197: Enabling framework | B197: Policy & Regulation | C197: 1.01 | D197: Clean energy policies | E197: Feed-in tariff | F197: Both | G197: Policy Types | H197: Hardcoded | I197: =IF(E197="","",IF(OR(E197="Wind",E197="Solar",E197="Geothermal",E197="Small Hydro",E197="Biofuels",E197="Biomass & Waste"), 1, 0)) -> 0 | J197: Asia | K197: China :: Sichuan | S197: 0 | T197: 1 | V197: =INDEX($L197:$U197, 1, MATCH(V$4, $L$4:$U$4, 0)) -> 1 | W197: =C197&" > "&E197&" > "&K197 -> 1.01 > Feed-in tariff > China :: Sichuan | X197: =C197&" > "&K197 -> 1.01 > China :: Sichuan | Y197: =IF(A197="Levelisation", E197&" > "&K197, "None") -> None | Z197: 193 | AA197: 3
A198: Enabling framework | B198: Policy & Regulation | C198: 1.01 | D198: Clean energy policies | E198: Feed-in tariff | F198: Both | G198: Policy Types | H198: Hardcoded | I198: 0 | J198: Asia | K198: China :: Tibet | S198: 0 | T198: 1 | V198: 1 | W198: 1.01 > Feed-in tariff > China :: Tibet | X198: 1.01 > China :: Tibet | Y198: None | Z198: 194 | AA198: 3
A199: Enabling framework | B199: Policy & Regulation | C199: 1.01 | D199: Clean energy policies | E199: Feed-in tariff | F199: Both | G199: Policy Types | H199: Hardcoded | I199: 0 | J199: Asia | K199: China :: Xinjiang | S199: 0 | T199: 1 | V199: 1 | W199: 1.01 > Feed-in tariff > China :: Xinjiang | X199: 1.01 > China :: Xinjiang | Y199: None | Z199: 195 | AA199: 3
A200: Enabling framework | B200: Policy & Regulation | C200: 1.01 | D200: Clean energy policies | E200: Feed-in tariff | F200: Both | G200: Policy Types | H200: Hardcoded | I200: 0 | J200: Asia | K200: China :: Yunnan | S200: 1 | T200: 1 | V200: 1 | W200: 1.01 > Feed-in tariff > China :: Yunnan | X200: 1.01 > China :: Yunnan | Y200: None | Z200: 196 | AA200: 3
A201: Enabling framework | B201: Policy & Regulation | C201: 1.01 | D201: Clean energy policies | E201: Feed-in tariff | F201: Both | G201: Policy Types | H201: Hardcoded | I201: 0 | J201: Asia | K201: India | S201: 1 | T201: 1 | V201: 1 | W201: 1.01 > Feed-in tariff > India | X201: 1.01 > India | Y201: None | Z201: 197 | AA201: 3
... 2049 more rows

Sheet Investment (hidden)
A1: BNEF DESKTOP DEALS DATABASE
A3: Database Summary | K3: BNEF Clean Energy Investment Database
A4: Year | B4: Month | C4: Quarter | D4: Period | E4: Region | F4: Country | G4: State | H4: Sector | I4: Deal Type | J4: Value | K4: Type | L4: Channel | M4: DealID | N4: TargetOrg | O4: Country | P4: CountryGrouped | Q4: Continent | R4: Region | S4: OECD/non-OECD | T4: Tradeblock | U4: Sector | V4: SectorGrouped | W4: Subsector | X4: Technology | Y4: BusinessModel (for PM, target country/for AF, transType) | Z4: FinancingType | AA4: FinancingType_Grouped | AB4: Date | AC4: CapacityMW | AD4: CapacityMWth | AE4: CapacityNm3/hr | AF4: CapacityMLPA | AG4: TransactionValue | AH4: Grossedup | AI4: Grossedup & Buffered | AJ4: State
A5: =IF(M5="","",IF(AND(YEAR(AB5)<2004,YEAR(AB5)>1910),2004,YEAR(AB5))) -> 2006 | B5: =IF(M5="","",IF(ISNUMBER(AB5),MONTH(AB5),0)) -> 1 | C5: =IF(M5="","",IF(AND(B5>=1,B5<=3),"Q1",IF(AND(B5>3,B5<=6),"Q2",IF(AND(B5>6,B5<=9),"Q3",IF(AND(B5>9,B5<=12),"Q4",0))))) -> Q1 | D5: =IF(A5<2006, "< 2006", A5&C5) -> 2006Q1 | E5: =IF(M5="","", IF(G5="Main", F5, F5 & " :: " & G5)) -> Brazil | F5: =IF(M5="","", O5) -> Brazil | G5: =IF(M5="","", AJ5) -> Main | H5: =IF(M5="","",IF(OR(V5="Wind",V5="Solar",V5="Geothermal",V5="Small Hydro",V5="Biofuels",V5="Biomass & Waste"),V5,"Other Clean Energy")) -> Biofuels | I5: =IF(M5="","",IF(OR(L5="PM",L5="MA"), "Corporate finance investments", IF(L5="VCPE", "VC/PE investments", IF(L5="AF", "Asset finance investments")))) -> Asset finance investments | J5: =IF(M5="","",AI5) -> 179.7534927 | K5: New Investment | L5: AF | M5: AF50038 | N5: Moreno Coplasa Ethanol and Biomass Plant | O5: Brazil | P5: Brazil | Q5: Central & South America | R5: AMER | S5: non-OECD | T5: BASIC | U5: Biofuels | V5: Biofuels | W5: Gasoline/Petrol Substitute | X5: 1-Gen fermentation | Y5: New build | Z5: Balance Sheet | AA5: Equity | AB5: 2006-01-01 | AC5: 10 | AD5: 0 | AE5: 0 | AF5: 240 | AG5: 0 | AH5: 175.2 | AI5: 179.7534927 | AJ5: Main
A6: 2006 | B6: 1 | C6: Q1 | D6: 2006Q1 | E6: Brazil | F6: Brazil | G6: Main | H6: Small Hydro | I6: Asset finance investments | J6: 27.92171881 | K6: New Investment | L6: AF | M6: AF6943 | N6: Deal data has been hidden for data security reasons…
A7: 2006 | B7: 1 | C7: Q1 | D7: 2006Q1 | E7: Brazil | F7: Brazil | G7: Main | H7: Small Hydro | I7: Asset finance investments | J7: 60.13906462 | K7: New Investment | L7: AF | M7: AF6955 | N7: Deal data has been hidden for data security reasons…
A8: 2006 | B8: 1 | C8: Q1 | D8: 2006Q1 | E8: Brazil | F8: Brazil | G8: Main | H8: Biofuels | I8: Asset finance investments | J8: 82.38701748 | K8: New Investment | L8: AF | M8: AF7381 | N8: Deal data has been hidden for data security reasons…
A9: 2006 | B9: 1 | C9: Q1 | D9: 2006Q1 | E9: China :: Zhejiang | F9: China | G9: Zhejiang | H9: Small Hydro | I9: Asset finance investments | J9: 57.19161353 | K9: New Investment | L9: AF | M9: AF11233 | N9: Deal data has been hidden for data security reasons…
A10: 2006 | B10: 1 | C10: Q1 | D10: 2006Q1 | E10: China :: Fujian | F10: China | G10: Fujian | H10: Small Hydro | I10: Asset finance investments | J10: 39.71285797 | K10: New Investment | L10: AF | M10: AF13495 | N10: Deal data has been hidden for data security reasons…
A11: 2006 | B11: 1 | C11: Q1 | D11: 2006Q1 | E11: China :: Sichuan | F11: China | G11: Sichuan | H11: Small Hydro | I11: Asset finance investments | J11: 30.92812633 | K11: New Investment | L11: AF | M11: AF13517 | N11: Deal data has been hidden for data security reasons…
A12: 2006 | B12: 1 | C12: Q1 | D12: 2006Q1 | E12: China :: Jilin | F12: China | G12: Jilin | H12: Small Hydro | I12: Asset finance investments | J12: 35.15854985 | K12: New Investment | L12: AF | M12: AF13540 | N12: Deal data has been hidden for data security reasons…
A13: 2006 | B13: 1 | C13: Q1 | D13: 2006Q1 | E13: China :: Hunan | F13: China | G13: Hunan | H13: Small Hydro | I13: Asset finance investments | J13: 22.37046433 | K13: New Investment | L13: AF | M13: AF13548 | N13: Deal data has been hidden for data security reasons…
A14: 2006 | B14: 1 | C14: Q1 | D14: 2006Q1 | E14: China :: Other | F14: China | G14: Other | H14: Small Hydro | I14: Asset finance investments | J14: 16.41949772 | K14: New Investment | L14: AF | M14: AF13550 | N14: Deal data has been hidden for data security reasons…
A15: 2006 | B15: 1 | C15: Q1 | D15: 2006Q1 | E15: China :: Guangdong | F15: China | G15: Guangdong | H15: Small Hydro | I15: Asset finance investments | J15: 30.07210983 | K15: New Investment | L15: AF | M15: AF13569 | N15: Deal data has been hidden for data security reasons…
A16: 2006 | B16: 1 | C16: Q1 | D16: 2006Q1 | E16: China :: Yunnan | F16: China | G16: Yunnan | H16: Small Hydro | I16: Asset finance investments | J16: 15.19734645 | K16: New Investment | L16: AF | M16: AF13583 | N16: Deal data has been hidden for data security reasons…
A17: 2006 | B17: 1 | C17: Q1 | D17: 2006Q1 | E17: China :: Yunnan | F17: China | G17: Yunnan | H17: Small Hydro | I17: Asset finance investments | J17: 10.89123305 | K17: New Investment | L17: AF | M17: AF13675 | N17: Deal data has been hidden for data security reasons…
A18: 2006 | B18: 1 | C18: Q1 | D18: 2006Q1 | E18: China :: Sichuan | F18: China | G18: Sichuan | H18: Small Hydro | I18: Asset finance investments | J18: 7.145855514 | K18: New Investment | L18: AF | M18: AF13800 | N18: Deal data has been hidden for data security reasons…
A19: 2006 | B19: 1 | C19: Q1 | D19: 2006Q1 | E19: China :: Shaanxi | F19: China | G19: Shaanxi | H19: Small Hydro | I19: Asset finance investments | J19: 12.02137506 | K19: New Investment | L19: AF | M19: AF13805 | N19: Deal data has been hidden for data security reasons…
A20: 2006 | B20: 1 | C20: Q1 | D20: 2006Q1 | E20: China :: Fujian | F20: China | G20: Fujian | H20: Small Hydro | I20: Asset finance investments | J20: 6.674425704 | K20: New Investment | L20: AF | M20: AF13840 | N20: Deal data has been hidden for data security reasons…
A21: 2006 | B21: 1 | C21: Q1 | D21: 2006Q1 | E21: China :: Fujian | F21: China | G21: Fujian | H21: Small Hydro | I21: Asset finance investments | J21: 10.4706336 | K21: New Investment | L21: AF | M21: AF13968 | N21: Deal data has been hidden for data security reasons…
A22: 2006 | B22: 1 | C22: Q1 | D22: 2006Q1 | E22: China :: Sichuan | F22: China | G22: Sichuan | H22: Small Hydro | I22: Asset finance investments | J22: 7.77484242 | K22: New Investment | L22: AF | M22: AF14033 | N22: Deal data has been hidden for data security reasons…
A23: 2006 | B23: 1 | C23: Q1 | D23: 2006Q1 | E23: China :: Henan | F23: China | G23: Henan | H23: Small Hydro | I23: Asset finance investments | J23: 6.984573997 | K23: New Investment | L23: AF | M23: AF14077 | N23: Deal data has been hidden for data security reasons…
A24: 2006 | B24: 1 | C24: Q1 | D24: 2006Q1 | E24: China :: Hunan | F24: China | G24: Hunan | H24: Small Hydro | I24: Asset finance investments | J24: 6.227815366 | K24: New Investment | L24: AF | M24: AF14086 | N24: Deal data has been hidden for data security reasons…
A25: 2006 | B25: 1 | C25: Q1 | D25: 2006Q1 | E25: China :: Fujian | F25: China | G25: Fujian | H25: Small Hydro | I25: Asset finance investments | J25: 6.426311074 | K25: New Investment | L25: AF | M25: AF14104 | N25: Deal data has been hidden for data security reasons…
A26: 2006 | B26: 1 | C26: Q1 | D26: 2006Q1 | E26: China :: Sichuan | F26: China | G26: Sichuan | H26: Small Hydro | I26: Asset finance investments | J26: 5.322169936 | K26: New Investment | L26: AF | M26: AF14142 | N26: Deal data has been hidden for data security reasons…
A27: 2006 | B27: 1 | C27: Q1 | D27: 2006Q1 | E27: China :: Yunnan | F27: China | G27: Yunnan | H27: Small Hydro | I27: Asset finance investments | J27: 6.668228345 | K27: New Investment | L27: AF | M27: AF14143 | N27: Deal data has been hidden for data security reasons…
A28: 2006 | B28: 1 | C28: Q1 | D28: 2006Q1 | E28: China :: Jiangxi | F28: China | G28: Jiangxi | H28: Small Hydro | I28: Asset finance investments | J28: 8.646978058 | K28: New Investment | L28: AF | M28: AF14176 | N28: Deal data has been hidden for data security reasons…
A29: 2006 | B29: 1 | C29: Q1 | D29: 2006Q1 | E29: China :: Fujian | F29: China | G29: Fujian | H29: Small Hydro | I29: Asset finance investments | J29: 9.942166059 | K29: New Investment | L29: AF | M29: AF47877 | N29: Deal data has been hidden for data security reasons…
A30: 2006 | B30: 1 | C30: Q1 | D30: 2006Q1 | E30: China :: Hunan | F30: China | G30: Hunan | H30: Small Hydro | I30: Asset finance investments | J30: 24.32818908 | K30: New Investment | L30: AF | M30: AF5046 | N30: Deal data has been hidden for data security reasons…
A31: 2006 | B31: 1 | C31: Q1 | D31: 2006Q1 | E31: China :: Guangdong | F31: China | G31: Guangdong | H31: Biomass & Waste | I31: Asset finance investments | J31: 28.90602514 | K31: New Investment | L31: AF | M31: AF7233 | N31: Deal data has been hidden for data security reasons…
A32: 2006 | B32: 1 | C32: Q1 | D32: 2006Q1 | E32: China :: Jilin | F32: China | G32: Jilin | H32: Wind | I32: Asset finance investments | J32: 122.25117 | K32: New Investment | L32: AF | M32: AF7276 | N32: Deal data has been hidden for data security reasons…
A33: 2006 | B33: 1 | C33: Q1 | D33: 2006Q1 | E33: China :: Hunan | F33: China | G33: Hunan | H33: Small Hydro | I33: Asset finance investments | J33: 3.672170605 | K33: New Investment | L33: AF | M33: AF8302 | N33: Deal data has been hidden for data security reasons…
A34: 2006 | B34: 1 | C34: Q1 | D34: 2006Q1 | E34: India :: Tamil Nadu | F34: India | G34: Tamil Nadu | H34: Biomass & Waste | I34: Asset finance investments | J34: 10.61260218 | K34: New Investment | L34: AF | M34: AF33770 | N34: Deal data has been hidden for data security reasons…
A35: 2006 | B35: 1 | C35: Q1 | D35: 2006Q1 | E35: India :: Maharashtra | F35: India | G35: Maharashtra | H35: Biomass & Waste | I35: Asset finance investments | J35: 46.16181594 | K35: New Investment | L35: AF | M35: AF52187 | N35: Deal data has been hidden for data security reasons…
A36: 2006 | B36: 1 | C36: Q1 | D36: 2006Q1 | E36: India :: Uttar Pradesh | F36: India | G36: Uttar Pradesh | H36: Biomass & Waste | I36: Asset finance investments | J36: 6.882372635 | K36: New Investment | L36: AF | M36: AF52223 | N36: Deal data has been hidden for data security reasons…
A37: 2006 | B37: 1 | C37: Q1 | D37: 2006Q1 | E37: India :: Karnataka | F37: India | G37: Karnataka | H37: Wind | I37: Asset finance investments | J37: 7.258619419 | K37: New Investment | L37: AF | M37: AF8243 | N37: Deal data has been hidden for data security reasons…
A38: 2006 | B38: 1 | C38: Q1 | D38: 2006Q1 | E38: Indonesia | F38: Indonesia | G38: Main | H38: Biomass & Waste | I38: Asset finance investments | J38: 29.28026955 | K38: New Investment | L38: AF | M38: AF52361 | N38: Deal data has been hidden for data security reasons…
A39: 2006 | B39: 1 | C39: Q1 | D39: 2006Q1 | E39: Nicaragua | F39: Nicaragua | G39: Main | H39: Small Hydro | I39: Asset finance investments | J39: 53.48300114 | K39: New Investment | L39: AF | M39: AF8537 | N39: Deal data has been hidden for data security reasons…
A40: 2006 | B40: 1 | C40: Q1 | D40: 2006Q1 | E40: Uganda | F40: Uganda | G40: Main | H40: Small Hydro | I40: Asset finance investments | J40: 19.09573068 | K40: New Investment | L40: AF | M40: AF49710 | N40: Deal data has been hidden for data security reasons…
A41: 2006 | B41: 1 | C41: Q1 | D41: 2006Q1 | E41: Brazil | F41: Brazil | G41: Main | H41: Small Hydro | I41: Asset finance investments | J41: 70.23748575 | K41: New Investment | L41: AF | M41: AF6065 | N41: Deal data has been hidden for data security reasons…
A42: 2006 | B42: 1 | C42: Q1 | D42: 2006Q1 | E42: Brazil | F42: Brazil | G42: Main | H42: Small Hydro | I42: Asset finance investments | J42: 65.88223708 | K42: New Investment | L42: AF | M42: AF6066 | N42: Deal data has been hidden for data security reasons…
A43: 2006 | B43: 1 | C43: Q1 | D43: 2006Q1 | E43: China :: Fujian | F43: China | G43: Fujian | H43: Small Hydro | I43: Asset finance investments | J43: 37.64470209 | K43: New Investment | L43: AF | M43: AF13374 | N43: Deal data has been hidden for data security reasons…
A44: 2006 | B44: 1 | C44: Q1 | D44: 2006Q1 | E44: India | F44: India | G44: Main | H44: Other Clean Energy | I44: VC/PE investments | J44: 0.6007133312 | K44: New Investment | L44: VCPE | M44: VCPE752 | N44: Deal data has been hidden for data security reasons…
A45: 2006 | B45: 1 | C45: Q1 | D45: 2006Q1 | E45: Brazil | F45: Brazil | G45: Main | H45: Small Hydro | I45: Asset finance investments | J45: 56.787 | K45: Acquisitions | L45: AF | M45: AF8501 | N45: Deal data has been hidden for data security reasons…
A46: 2006 | B46: 1 | C46: Q1 | D46: 2006Q1 | E46: China :: Beijing Municipality | F46: China | G46: Beijing Municipality | H46: Other Clean Energy | I46: Corporate finance investments | J46: 0.565 | K46: Acquisitions | L46: MA | M46: MA792 | N46: Deal data has been hidden for data security reasons…
A47: 2006 | B47: 1 | C47: Q1 | D47: 2006Q1 | E47: China :: Guangxi | F47: China | G47: Guangxi | H47: Small Hydro | I47: Asset finance investments | J47: 5.323171125 | K47: New Investment | L47: AF | M47: AF13975 | N47: Deal data has been hidden for data security reasons…
A48: 2006 | B48: 1 | C48: Q1 | D48: 2006Q1 | E48: India :: Maharashtra | F48: India | G48: Maharashtra | H48: Wind | I48: Asset finance investments | J48: 3.556723515 | K48: New Investment | L48: AF | M48: AF54051 | N48: Deal data has been hidden for data security reasons…
A49: 2006 | B49: 1 | C49: Q1 | D49: 2006Q1 | E49: China :: Hubei | F49: China | G49: Hubei | H49: Small Hydro | I49: Asset finance investments | J49: 18.82235104 | K49: New Investment | L49: AF | M49: AF52147 | N49: Deal data has been hidden for data security reasons…
A50: 2006 | B50: 1 | C50: Q1 | D50: 2006Q1 | E50: India :: Maharashtra | F50: India | G50: Maharashtra | H50: Biomass & Waste | I50: Asset finance investments | J50: 12.15443307 | K50: New Investment | L50: AF | M50: AF11166 | N50: Deal data has been hidden for data security reasons…
A51: 2006 | B51: 1 | C51: Q1 | D51: 2006Q1 | E51: India :: Maharashtra | F51: India | G51: Maharashtra | H51: Wind | I51: Asset finance investments | J51: 3.629309709 | K51: New Investment | L51: AF | M51: AF54049 | N51: Deal data has been hidden for data security reasons…
A52: 2006 | B52: 1 | C52: Q1 | D52: 2006Q1 | E52: China :: Gansu | F52: China | G52: Gansu | H52: Small Hydro | I52: Asset finance investments | J52: 17.666078 | K52: New Investment | L52: AF | M52: AF13225 | N52: Deal data has been hidden for data security reasons…
A53: 2006 | B53: 1 | C53: Q1 | D53: 2006Q1 | E53: India :: Gujarat | F53: India | G53: Gujarat | H53: Wind | I53: Asset finance investments | J53: 3.019775904 | K53: New Investment | L53: AF | M53: AF9481 | N53: Deal data has been hidden for data security reasons…
A54: 2006 | B54: 1 | C54: Q1 | D54: 2006Q1 | E54: China :: Yunnan | F54: China | G54: Yunnan | H54: Small Hydro | I54: Asset finance investments | J54: 18.82235104 | K54: New Investment | L54: AF | M54: AF52219 | N54: Deal data has been hidden for data security reasons…
A55: 2006 | B55: 1 | C55: Q1 | D55: 2006Q1 | E55: India :: Punjab | F55: India | G55: Punjab | H55: Biomass & Waste | I55: Asset finance investments | J55: 13.66622828 | K55: New Investment | L55: AF | M55: AF52125 | N55: Deal data has been hidden for data security reasons…
A56: 2006 | B56: 1 | C56: Q1 | D56: 2006Q1 | E56: India :: Kerala | F56: India | G56: Kerala | H56: Small Hydro | I56: Asset finance investments | J56: 19.40964844 | K56: New Investment | L56: AF | M56: AF8643 | N56: Deal data has been hidden for data security reasons…
A57: 2006 | B57: 1 | C57: Q1 | D57: 2006Q1 | E57: India :: Tamil Nadu | F57: India | G57: Tamil Nadu | H57: Wind | I57: Asset finance investments | J57: 7.596790988 | K57: New Investment | L57: AF | M57: AF7927 | N57: Deal data has been hidden for data security reasons…
A58: 2006 | B58: 1 | C58: Q1 | D58: 2006Q1 | E58: India :: Maharashtra | F58: India | G58: Maharashtra | H58: Wind | I58: Asset finance investments | J58: 24.36873723 | K58: New Investment | L58: AF | M58: AF8596 | N58: Deal data has been hidden for data security reasons…
A59: 2006 | B59: 1 | C59: Q1 | D59: 2006Q1 | E59: India :: Uttarakhand | F59: India | G59: Uttarakhand | H59: Small Hydro | I59: Asset finance investments | J59: 7.194723544 | K59: New Investment | L59: AF | M59: AF8941 | N59: Deal data has been hidden for data security reasons…
A60: 2006 | B60: 1 | C60: Q1 | D60: 2006Q1 | E60: India :: Chhattisgarh | F60: India | G60: Chhattisgarh | H60: Biomass & Waste | I60: Asset finance investments | J60: 15.91890328 | K60: New Investment | L60: AF | M60: AF22924 | N60: Deal data has been hidden for data security reasons…
A61: 2006 | B61: 1 | C61: Q1 | D61: 2006Q1 | E61: China :: Yunnan | F61: China | G61: Yunnan | H61: Small Hydro | I61: Asset finance investments | J61: 9.115594527 | K61: New Investment | L61: AF | M61: AF13852 | N61: Deal data has been hidden for data security reasons…
A62: 2006 | B62: 1 | C62: Q1 | D62: 2006Q1 | E62: China :: Xinjiang | F62: China | G62: Xinjiang | H62: Wind | I62: Asset finance investments | J62: 43.55171651 | K62: New Investment | L62: AF | M62: AF52507 | N62: Deal data has been hidden for data security reasons…
A63: 2006 | B63: 1 | C63: Q1 | D63: 2006Q1 | E63: India :: Uttar Pradesh | F63: India | G63: Uttar Pradesh | H63: Biomass & Waste | I63: Asset finance investments | J63: 11.65383863 | K63: New Investment | L63: AF | M63: AF22602 | N63: Deal data has been hidden for data security reasons…
A64: 2006 | B64: 1 | C64: Q1 | D64: 2006Q1 | E64: China :: Sichuan | F64: China | G64: Sichuan | H64: Biomass & Waste | I64: Asset finance investments | J64: 31.03114867 | K64: New Investment | L64: AF | M64: AF3245 | N64: Deal data has been hidden for data security reasons…
A65: 2006 | B65: 1 | C65: Q1 | D65: 2006Q1 | E65: China :: Jiangsu | F65: China | G65: Jiangsu | H65: Biomass & Waste | I65: Asset finance investments | J65: 37.23741845 | K65: New Investment | L65: AF | M65: AF4251 | N65: Deal data has been hidden for data security reasons…
A66: 2006 | B66: 1 | C66: Q1 | D66: 2006Q1 | E66: India :: Karnataka | F66: India | G66: Karnataka | H66: Biomass & Waste | I66: Asset finance investments | J66: 58.56954979 | K66: New Investment | L66: AF | M66: AF2033 | N66: Deal data has been hidden for data security reasons…
A67: 2006 | B67: 1 | C67: Q1 | D67: 2006Q1 | E67: Indonesia | F67: Indonesia | G67: Main | H67: Biomass & Waste | I67: Asset finance investments | J67: 21.13009142 | K67: New Investment | L67: AF | M67: AF8191 | N67: Deal data has been hidden for data security reasons…
A68: 2006 | B68: 1 | C68: Q1 | D68: 2006Q1 | E68: China :: Sichuan | F68: China | G68: Sichuan | H68: Biomass & Waste | I68: Asset finance investments | J68: 31.02153725 | K68: New Investment | L68: AF | M68: AF3250 | N68: Deal data has been hidden for data security reasons…
A69: 2006 | B69: 1 | C69: Q1 | D69: 2006Q1 | E69: India :: Gujarat | F69: India | G69: Gujarat | H69: Wind | I69: Asset finance investments | J69: 1.442603053 | K69: New Investment | L69: AF | M69: AF10857 | N69: Deal data has been hidden for data security reasons…
A70: 2006 | B70: 1 | C70: Q1 | D70: 2006Q1 | E70: India :: Maharashtra | F70: India | G70: Maharashtra | H70: Biomass & Waste | I70: Asset finance investments | J70: 5.836931201 | K70: New Investment | L70: AF | M70: AF11195 | N70: Deal data has been hidden for data security reasons…
A71: 2006 | B71: 1 | C71: Q1 | D71: 2006Q1 | E71: India :: West Bengal | F71: India | G71: West Bengal | H71: Biomass & Waste | I71: Asset finance investments | J71: 12.7005816 | K71: New Investment | L71: AF | M71: AF7156 | N71: Deal data has been hidden for data security reasons…
A72: 2006 | B72: 1 | C72: Q1 | D72: 2006Q1 | E72: China | F72: China | G72: Main | H72: Biofuels | I72: VC/PE investments | J72: 25.02972213 | K72: New Investment | L72: VCPE | M72: VCPE2312 | N72: Deal data has been hidden for data security reasons…
A73: 2006 | B73: 1 | C73: Q1 | D73: 2006Q1 | E73: India :: Maharashtra | F73: India | G73: Maharashtra | H73: Wind | I73: Asset finance investments | J73: 3.629309709 | K73: New Investment | L73: AF | M73: AF54087 | N73: Deal data has been hidden for data security reasons…
A74: 2006 | B74: 1 | C74: Q1 | D74: 2006Q1 | E74: China :: Shaanxi | F74: China | G74: Shaanxi | H74: Small Hydro | I74: Asset finance investments | J74: 11.19829768 | K74: New Investment | L74: AF | M74: AF13814 | N74: Deal data has been hidden for data security reasons…
A75: 2006 | B75: 1 | C75: Q1 | D75: 2006Q1 | E75: Brazil | F75: Brazil | G75: Main | H75: Biofuels | I75: Asset finance investments | J75: 52.42810204 | K75: New Investment | L75: AF | M75: AF50096 | N75: Deal data has been hidden for data security reasons…
A76: 2006 | B76: 1 | C76: Q1 | D76: 2006Q1 | E76: China :: Guangdong | F76: China | G76: Guangdong | H76: Wind | I76: Asset finance investments | J76: 53.90481054 | K76: New Investment | L76: AF | M76: AF2531 | N76: Deal data has been hidden for data security reasons…
A77: 2006 | B77: 1 | C77: Q1 | D77: 2006Q1 | E77: China :: Sichuan | F77: China | G77: Sichuan | H77: Small Hydro | I77: Asset finance investments | J77: 28.23352657 | K77: New Investment | L77: AF | M77: AF56219 | N77: Deal data has been hidden for data security reasons…
A78: 2006 | B78: 1 | C78: Q1 | D78: 2006Q1 | E78: China :: Yunnan | F78: China | G78: Yunnan | H78: Biomass & Waste | I78: Asset finance investments | J78: 37.26134686 | K78: New Investment | L78: AF | M78: AF7217 | N78: Deal data has been hidden for data security reasons…
A79: 2006 | B79: 1 | C79: Q1 | D79: 2006Q1 | E79: India :: Uttar Pradesh | F79: India | G79: Uttar Pradesh | H79: Biomass & Waste | I79: Asset finance investments | J79: 26.22113691 | K79: New Investment | L79: AF | M79: AF11084 | N79: Deal data has been hidden for data security reasons…
A80: 2006 | B80: 1 | C80: Q1 | D80: 2006Q1 | E80: India :: Uttar Pradesh | F80: India | G80: Uttar Pradesh | H80: Biomass & Waste | I80: Asset finance investments | J80: 17.5309175 | K80: New Investment | L80: AF | M80: AF11092 | N80: Deal data has been hidden for data security reasons…
A81: 2006 | B81: 1 | C81: Q1 | D81: 2006Q1 | E81: India :: Tamil Nadu | F81: India | G81: Tamil Nadu | H81: Biomass & Waste | I81: Asset finance investments | J81: 1.48175955 | K81: New Investment | L81: AF | M81: AF18841 | N81: Deal data has been hidden for data security reasons…
A82: 2006 | B82: 1 | C82: Q1 | D82: 2006Q1 | E82: India :: Uttar Pradesh | F82: India | G82: Uttar Pradesh | H82: Biomass & Waste | I82: Asset finance investments | J82: 19.42306438 | K82: New Investment | L82: AF | M82: AF24318 | N82: Deal data has been hidden for data security reasons…
A83: 2006 | B83: 1 | C83: Q1 | D83: 2006Q1 | E83: India :: Himachal Pradesh | F83: India | G83: Himachal Pradesh | H83: Small Hydro | I83: Asset finance investments | J83: 30.11576167 | K83: New Investment | L83: AF | M83: AF5371 | N83: Deal data has been hidden for data security reasons…
A84: 2006 | B84: 2 | C84: Q1 | D84: 2006Q1 | E84: China :: Yunnan | F84: China | G84: Yunnan | H84: Small Hydro | I84: Asset finance investments | J84: 10.65174867 | K84: New Investment | L84: AF | M84: AF13338 | N84: Deal data has been hidden for data security reasons…
A85: 2006 | B85: 2 | C85: Q1 | D85: 2006Q1 | E85: China :: Gansu | F85: China | G85: Gansu | H85: Wind | I85: Asset finance investments | J85: 56.60011113 | K85: New Investment | L85: AF | M85: AF4187 | N85: Deal data has been hidden for data security reasons…
A86: 2006 | B86: 2 | C86: Q1 | D86: 2006Q1 | E86: China :: Yunnan | F86: China | G86: Yunnan | H86: Small Hydro | I86: Asset finance investments | J86: 37.64470209 | K86: New Investment | L86: AF | M86: AF52485 | N86: Deal data has been hidden for data security reasons…
A87: 2006 | B87: 2 | C87: Q1 | D87: 2006Q1 | E87: India :: Uttar Pradesh | F87: India | G87: Uttar Pradesh | H87: Biomass & Waste | I87: Asset finance investments | J87: 33.99036266 | K87: New Investment | L87: AF | M87: AF10972 | N87: Deal data has been hidden for data security reasons…
A88: 2006 | B88: 2 | C88: Q1 | D88: 2006Q1 | E88: India :: Himachal Pradesh | F88: India | G88: Himachal Pradesh | H88: Small Hydro | I88: Asset finance investments | J88: 12.51886582 | K88: New Investment | L88: AF | M88: AF4402 | N88: Deal data has been hidden for data security reasons…
A89: 2006 | B89: 2 | C89: Q1 | D89: 2006Q1 | E89: India :: Uttarakhand | F89: India | G89: Uttarakhand | H89: Small Hydro | I89: Asset finance investments | J89: 18.314 | K89: Acquisitions | L89: AF | M89: AF5790 | N89: Deal data has been hidden for data security reasons…
A90: 2006 | B90: 2 | C90: Q1 | D90: 2006Q1 | E90: India :: Karnataka | F90: India | G90: Karnataka | H90: Biomass & Waste | I90: Asset finance investments | J90: 15.92711303 | K90: New Investment | L90: AF | M90: AF7978 | N90: Deal data has been hidden for data security reasons…
A91: 2006 | B91: 2 | C91: Q1 | D91: 2006Q1 | E91: China :: Yunnan | F91: China | G91: Yunnan | H91: Small Hydro | I91: Asset finance investments | J91: 94.11175522 | K91: New Investment | L91: AF | M91: AF12193 | N91: Deal data has been hidden for data security reasons…
A92: 2006 | B92: 2 | C92: Q1 | D92: 2006Q1 | E92: China :: Yunnan | F92: China | G92: Yunnan | H92: Small Hydro | I92: Asset finance investments | J92: 5.981102401 | K92: New Investment | L92: AF | M92: AF14007 | N92: Deal data has been hidden for data security reasons…
A93: 2006 | B93: 2 | C93: Q1 | D93: 2006Q1 | E93: India :: Maharashtra | F93: India | G93: Maharashtra | H93: Wind | I93: Asset finance investments | J93: 14.51723884 | K93: New Investment | L93: AF | M93: AF54175 | N93: Deal data has been hidden for data security reasons…
A94: 2006 | B94: 2 | C94: Q1 | D94: 2006Q1 | E94: India :: Uttar Pradesh | F94: India | G94: Uttar Pradesh | H94: Biomass & Waste | I94: Asset finance investments | J94: 19.26607796 | K94: New Investment | L94: AF | M94: AF11081 | N94: Deal data has been hidden for data security reasons…
A95: 2006 | B95: 2 | C95: Q1 | D95: 2006Q1 | E95: Peru | F95: Peru | G95: Main | H95: Small Hydro | I95: Asset finance investments | J95: 8.197539791 | K95: New Investment | L95: AF | M95: AF55469 | N95: Deal data has been hidden for data security reasons…
A96: 2006 | B96: 2 | C96: Q1 | D96: 2006Q1 | E96: China :: Other | F96: China | G96: Other | H96: Wind | I96: Corporate finance investments | J96: 68.598 | K96: Acquisitions | L96: MA | M96: MA2852 | N96: Deal data has been hidden for data security reasons…
A97: 2006 | B97: 2 | C97: Q1 | D97: 2006Q1 | E97: India :: Andhra Pradesh | F97: India | G97: Andhra Pradesh | H97: Small Hydro | I97: Asset finance investments | J97: 179.7144061 | K97: New Investment | L97: AF | M97: AF22226 | N97: Deal data has been hidden for data security reasons…
A98: 2006 | B98: 2 | C98: Q1 | D98: 2006Q1 | E98: India :: Maharashtra | F98: India | G98: Maharashtra | H98: Wind | I98: Asset finance investments | J98: 7.258619419 | K98: New Investment | L98: AF | M98: AF53773 | N98: Deal data has been hidden for data security reasons…
A99: 2006 | B99: 2 | C99: Q1 | D99: 2006Q1 | E99: Indonesia | F99: Indonesia | G99: Main | H99: Geothermal | I99: Asset finance investments | J99: 83.99974748 | K99: New Investment | L99: AF | M99: AF18005 | N99: Deal data has been hidden for data security reasons…
A100: 2006 | B100: 2 | C100: Q1 | D100: 2006Q1 | E100: China :: Yunnan | F100: China | G100: Yunnan | H100: Small Hydro | I100: Asset finance investments | J100: 26.35129146 | K100: New Investment | L100: AF | M100: AF13819 | N100: Deal data has been hidden for data security reasons…
A101: 2006 | B101: 2 | C101: Q1 | D101: 2006Q1 | E101: India :: Himachal Pradesh | F101: India | G101: Himachal Pradesh | H101: Small Hydro | I101: Asset finance investments | J101: 5.646705313 | K101: New Investment | L101: AF | M101: AF9284 | N101: Deal data has been hidden for data security reasons…
A102: 2006 | B102: 2 | C102: Q1 | D102: 2006Q1 | E102: China :: Shaanxi | F102: China | G102: Shaanxi | H102: Small Hydro | I102: Asset finance investments | J102: 18.82235104 | K102: New Investment | L102: AF | M102: AF52119 | N102: Deal data has been hidden for data security reasons…
A103: 2006 | B103: 2 | C103: Q1 | D103: 2006Q1 | E103: China | F103: China | G103: Main | H103: Wind | I103: VC/PE investments | J103: 2.002377771 | K103: New Investment | L103: VCPE | M103: VCPE780 | N103: Deal data has been hidden for data security reasons…
A104: 2006 | B104: 2 | C104: Q1 | D104: 2006Q1 | E104: China :: Guangxi | F104: China | G104: Guangxi | H104: Small Hydro | I104: Asset finance investments | J104: 12.59215285 | K104: New Investment | L104: AF | M104: AF52845 | N104: Deal data has been hidden for data security reasons…
A105: 2006 | B105: 2 | C105: Q1 | D105: 2006Q1 | E105: China :: Hunan | F105: China | G105: Hunan | H105: Small Hydro | I105: Asset finance investments | J105: 15.43432786 | K105: New Investment | L105: AF | M105: AF52837 | N105: Deal data has been hidden for data security reasons…
A106: 2006 | B106: 2 | C106: Q1 | D106: 2006Q1 | E106: India :: Himachal Pradesh | F106: India | G106: Himachal Pradesh | H106: Biomass & Waste | I106: Asset finance investments | J106: 22.03566677 | K106: New Investment | L106: AF | M106: AF11019 | N106: Deal data has been hidden for data security reasons…
A107: 2006 | B107: 2 | C107: Q1 | D107: 2006Q1 | E107: India :: Tamil Nadu | F107: India | G107: Tamil Nadu | H107: Wind | I107: Asset finance investments | J107: 7.704659079 | K107: New Investment | L107: AF | M107: AF9673 | N107: Deal data has been hidden for data security reasons…
A108: 2006 | B108: 2 | C108: Q1 | D108: 2006Q1 | E108: Brazil | F108: Brazil | G108: Main | H108: Biofuels | I108: Asset finance investments | J108: 50.87557358 | K108: New Investment | L108: AF | M108: AF3029 | N108: Deal data has been hidden for data security reasons…
A109: 2006 | B109: 2 | C109: Q1 | D109: 2006Q1 | E109: China | F109: China | G109: Main | H109: Solar | I109: VC/PE investments | J109: 150.1783328 | K109: New Investment | L109: VCPE | M109: VCPE1270 | N109: Deal data has been hidden for data security reasons…
A110: 2006 | B110: 2 | C110: Q1 | D110: 2006Q1 | E110: India :: Chandigarh | F110: India | G110: Chandigarh | H110: Biomass & Waste | I110: Asset finance investments | J110: 46.16181594 | K110: New Investment | L110: AF | M110: AF52043 | N110: Deal data has been hidden for data security reasons…
A111: 2006 | B111: 2 | C111: Q1 | D111: 2006Q1 | E111: Vietnam | F111: Vietnam | G111: Main | H111: Small Hydro | I111: Asset finance investments | J111: 19.50666365 | K111: New Investment | L111: AF | M111: AF30960 | N111: Deal data has been hidden for data security reasons…
A112: 2006 | B112: 2 | C112: Q1 | D112: 2006Q1 | E112: India | F112: India | G112: Main | H112: Other Clean Energy | I112: VC/PE investments | J112: 10.01188885 | K112: New Investment | L112: VCPE | M112: VCPE813 | N112: Deal data has been hidden for data security reasons…
A113: 2006 | B113: 2 | C113: Q1 | D113: 2006Q1 | E113: China :: Shandong | F113: China | G113: Shandong | H113: Wind | I113: Asset finance investments | J113: 33.44761816 | K113: New Investment | L113: AF | M113: AF4128 | N113: Deal data has been hidden for data security reasons…
A114: 2006 | B114: 2 | C114: Q1 | D114: 2006Q1 | E114: India :: Uttar Pradesh | F114: India | G114: Uttar Pradesh | H114: Biomass & Waste | I114: Asset finance investments | J114: 24.27883047 | K114: New Investment | L114: AF | M114: AF11085 | N114: Deal data has been hidden for data security reasons…
A115: 2006 | B115: 2 | C115: Q1 | D115: 2006Q1 | E115: Brazil | F115: Brazil | G115: Main | H115: Small Hydro | I115: Asset finance investments | J115: 43.11105702 | K115: New Investment | L115: AF | M115: AF50238 | N115: Deal data has been hidden for data security reasons…
A116: 2006 | B116: 2 | C116: Q1 | D116: 2006Q1 | E116: Brazil | F116: Brazil | G116: Main | H116: Small Hydro | I116: Asset finance investments | J116: 12.12498479 | K116: New Investment | L116: AF | M116: AF50248 | N116: Deal data has been hidden for data security reasons…
A117: 2006 | B117: 2 | C117: Q1 | D117: 2006Q1 | E117: Brazil | F117: Brazil | G117: Main | H117: Small Hydro | I117: Asset finance investments | J117: 59.2777034 | K117: New Investment | L117: AF | M117: AF50568 | N117: Deal data has been hidden for data security reasons…
A118: 2006 | B118: 2 | C118: Q1 | D118: 2006Q1 | E118: India :: Madhya Pradesh | F118: India | G118: Madhya Pradesh | H118: Wind | I118: Asset finance investments | J118: 4.995251729 | K118: New Investment | L118: AF | M118: AF9681 | N118: Deal data has been hidden for data security reasons…
A119: 2006 | B119: 2 | C119: Q1 | D119: 2006Q1 | E119: China :: Sichuan | F119: China | G119: Sichuan | H119: Small Hydro | I119: Asset finance investments | J119: 11.66775515 | K119: New Investment | L119: AF | M119: AF4465 | N119: Deal data has been hidden for data security reasons…
A120: 2006 | B120: 2 | C120: Q1 | D120: 2006Q1 | E120: India :: Tamil Nadu | F120: India | G120: Tamil Nadu | H120: Wind | I120: Asset finance investments | J120: 11.39603249 | K120: New Investment | L120: AF | M120: AF15760 | N120: Deal data has been hidden for data security reasons…
A121: 2006 | B121: 2 | C121: Q1 | D121: 2006Q1 | E121: India :: Uttarakhand | F121: India | G121: Uttarakhand | H121: Small Hydro | I121: Asset finance investments | J121: 21.3589632 | K121: New Investment | L121: AF | M121: AF4204 | N121: Deal data has been hidden for data security reasons…
A122: 2006 | B122: 2 | C122: Q1 | D122: 2006Q1 | E122: India :: Maharashtra | F122: India | G122: Maharashtra | H122: Wind | I122: Asset finance investments | J122: 9.073274273 | K122: New Investment | L122: AF | M122: AF54083 | N122: Deal data has been hidden for data security reasons…
A123: 2006 | B123: 2 | C123: Q1 | D123: 2006Q1 | E123: India :: Other | F123: India | G123: Other | H123: Small Hydro | I123: Asset finance investments | J123: 9.034728501 | K123: New Investment | L123: AF | M123: AF8939 | N123: Deal data has been hidden for data security reasons…
A124: 2006 | B124: 3 | C124: Q1 | D124: 2006Q1 | E124: Brazil | F124: Brazil | G124: Main | H124: Biofuels | I124: Asset finance investments | J124: 61.59337558 | K124: New Investment | L124: AF | M124: AF6280 | N124: Deal data has been hidden for data security reasons…
A125: 2006 | B125: 3 | C125: Q1 | D125: 2006Q1 | E125: China :: Sichuan | F125: China | G125: Sichuan | H125: Small Hydro | I125: Asset finance investments | J125: 23.04616671 | K125: New Investment | L125: AF | M125: AF13303 | N125: Deal data has been hidden for data security reasons…
A126: 2006 | B126: 3 | C126: Q1 | D126: 2006Q1 | E126: China :: Yunnan | F126: China | G126: Yunnan | H126: Small Hydro | I126: Asset finance investments | J126: 15.77102768 | K126: New Investment | L126: AF | M126: AF13308 | N126: Deal data has been hidden for data security reasons…
A127: 2006 | B127: 3 | C127: Q1 | D127: 2006Q1 | E127: China :: Sichuan | F127: China | G127: Sichuan | H127: Small Hydro | I127: Asset finance investments | J127: 18.76958839 | K127: New Investment | L127: AF | M127: AF13328 | N127: Deal data has been hidden for data security reasons…
A128: 2006 | B128: 3 | C128: Q1 | D128: 2006Q1 | E128: China :: Yunnan | F128: China | G128: Yunnan | H128: Small Hydro | I128: Asset finance investments | J128: 10.59127686 | K128: New Investment | L128: AF | M128: AF13636 | N128: Deal data has been hidden for data security reasons…
A129: 2006 | B129: 3 | C129: Q1 | D129: 2006Q1 | E129: China :: Yunnan | F129: China | G129: Yunnan | H129: Small Hydro | I129: Asset finance investments | J129: 5.166084589 | K129: New Investment | L129: AF | M129: AF14147 | N129: Deal data has been hidden for data security reasons…
A130: 2006 | B130: 3 | C130: Q1 | D130: 2006Q1 | E130: China :: Jiangsu | F130: China | G130: Jiangsu | H130: Biomass & Waste | I130: Asset finance investments | J130: 2.815373181 | K130: New Investment | L130: AF | M130: AF5047 | N130: Deal data has been hidden for data security reasons…
A131: 2006 | B131: 3 | C131: Q1 | D131: 2006Q1 | E131: China :: Fujian | F131: China | G131: Fujian | H131: Small Hydro | I131: Asset finance investments | J131: 10.5140852 | K131: New Investment | L131: AF | M131: AF8210 | N131: Deal data has been hidden for data security reasons…
A132: 2006 | B132: 3 | C132: Q1 | D132: 2006Q1 | E132: India :: Uttar Pradesh | F132: India | G132: Uttar Pradesh | H132: Biomass & Waste | I132: Asset finance investments | J132: 11.71390996 | K132: New Investment | L132: AF | M132: AF38988 | N132: Deal data has been hidden for data security reasons…
A133: 2006 | B133: 3 | C133: Q1 | D133: 2006Q1 | E133: Indonesia | F133: Indonesia | G133: Main | H133: Biomass & Waste | I133: Asset finance investments | J133: 46.16181594 | K133: New Investment | L133: AF | M133: AF52403 | N133: Deal data has been hidden for data security reasons…
A134: 2006 | B134: 3 | C134: Q1 | D134: 2006Q1 | E134: Brazil | F134: Brazil | G134: Main | H134: Biofuels | I134: Asset finance investments | J134: 90.70061652 | K134: New Investment | L134: AF | M134: AF2804 | N134: Deal data has been hidden for data security reasons…
A135: 2006 | B135: 3 | C135: Q1 | D135: 2006Q1 | E135: China :: Hunan | F135: China | G135: Hunan | H135: Small Hydro | I135: Asset finance investments | J135: 19.7634686 | K135: New Investment | L135: AF | M135: AF52481 | N135: Deal data has been hidden for data security reasons…
A136: 2006 | B136: 3 | C136: Q1 | D136: 2006Q1 | E136: India :: Tamil Nadu | F136: India | G136: Tamil Nadu | H136: Wind | I136: Asset finance investments | J136: 2.944256226 | K136: New Investment | L136: AF | M136: AF10334 | N136: Deal data has been hidden for data security reasons…
A137: 2006 | B137: 3 | C137: Q1 | D137: 2006Q1 | E137: India :: Himachal Pradesh | F137: India | G137: Himachal Pradesh | H137: Small Hydro | I137: Asset finance investments | J137: 12.55470838 | K137: New Investment | L137: AF | M137: AF5761 | N137: Deal data has been hidden for data security reasons…
A138: 2006 | B138: 3 | C138: Q1 | D138: 2006Q1 | E138: Vietnam | F138: Vietnam | G138: Main | H138: Small Hydro | I138: Asset finance investments | J138: 6.776046376 | K138: New Investment | L138: AF | M138: AF55665 | N138: Deal data has been hidden for data security reasons…
A139: 2006 | B139: 3 | C139: Q1 | D139: 2006Q1 | E139: India :: Chhattisgarh | F139: India | G139: Chhattisgarh | H139: Biomass & Waste | I139: Asset finance investments | J139: 7.959451638 | K139: New Investment | L139: AF | M139: AF11392 | N139: Deal data has been hidden for data security reasons…
A140: 2006 | B140: 3 | C140: Q1 | D140: 2006Q1 | E140: India :: Rajasthan | F140: India | G140: Rajasthan | H140: Wind | I140: Asset finance investments | J140: 64.01581709 | K140: New Investment | L140: AF | M140: AF2060 | N140: Deal data has been hidden for data security reasons…
A141: 2006 | B141: 3 | C141: Q1 | D141: 2006Q1 | E141: India :: Maharashtra | F141: India | G141: Maharashtra | H141: Biomass & Waste | I141: Asset finance investments | J141: 10.03771953 | K141: New Investment | L141: AF | M141: AF5429 | N141: Deal data has been hidden for data security reasons…
A142: 2006 | B142: 3 | C142: Q1 | D142: 2006Q1 | E142: India :: Karnataka | F142: India | G142: Karnataka | H142: Wind | I142: Asset finance investments | J142: 73.42128583 | K142: New Investment | L142: AF | M142: AF9896 | N142: Deal data has been hidden for data security reasons…
A143: 2006 | B143: 3 | C143: Q1 | D143: 2006Q1 | E143: China :: Sichuan | F143: China | G143: Sichuan | H143: Small Hydro | I143: Asset finance investments | J143: 37.64470209 | K143: New Investment | L143: AF | M143: AF56321 | N143: Deal data has been hidden for data security reasons…
A144: 2006 | B144: 3 | C144: Q1 | D144: 2006Q1 | E144: Mexico | F144: Mexico | G144: Main | H144: Small Hydro | I144: Asset finance investments | J144: 3.974564747 | K144: New Investment | L144: AF | M144: AF75024 | N144: Deal data has been hidden for data security reasons…
A145: 2006 | B145: 3 | C145: Q1 | D145: 2006Q1 | E145: China :: Shandong | F145: China | G145: Shandong | H145: Biomass & Waste | I145: Asset finance investments | J145: 36.89511197 | K145: New Investment | L145: AF | M145: AF5103 | N145: Deal data has been hidden for data security reasons…
A146: 2006 | B146: 3 | C146: Q1 | D146: 2006Q1 | E146: China :: Hunan | F146: China | G146: Hunan | H146: Small Hydro | I146: Asset finance investments | J146: 12.04630467 | K146: New Investment | L146: AF | M146: AF52267 | N146: Deal data has been hidden for data security reasons…
A147: 2006 | B147: 3 | C147: Q1 | D147: 2006Q1 | E147: China :: Inner Mongolia | F147: China | G147: Inner Mongolia | H147: Wind | I147: Asset finance investments | J147: 56.50119367 | K147: New Investment | L147: AF | M147: AF7389 | N147: Deal data has been hidden for data security reasons…
A148: 2006 | B148: 3 | C148: Q1 | D148: 2006Q1 | E148: China :: Inner Mongolia | F148: China | G148: Inner Mongolia | H148: Wind | I148: Asset finance investments | J148: 63.05307386 | K148: New Investment | L148: AF | M148: AF7392 | N148: Deal data has been hidden for data security reasons…
A149: 2006 | B149: 3 | C149: Q1 | D149: 2006Q1 | E149: China | F149: China | G149: Main | H149: Solar | I149: Corporate finance investments | J149: 19.52318326 | K149: New Investment | L149: PM | M149: PM1153 | N149: Deal data has been hidden for data security reasons…
A150: 2006 | B150: 3 | C150: Q1 | D150: 2006Q1 | E150: Guatemala | F150: Guatemala | G150: Main | H150: Geothermal | I150: Asset finance investments | J150: 56.63466216 | K150: New Investment | L150: AF | M150: AF1579 | N150: Deal data has been hidden for data security reasons…
A151: 2006 | B151: 3 | C151: Q1 | D151: 2006Q1 | E151: China :: Sichuan | F151: China | G151: Sichuan | H151: Small Hydro | I151: Asset finance investments | J151: 18.69239673 | K151: New Investment | L151: AF | M151: AF13411 | N151: Deal data has been hidden for data security reasons…
A152: 2006 | B152: 3 | C152: Q1 | D152: 2006Q1 | E152: China :: Fujian | F152: China | G152: Fujian | H152: Small Hydro | I152: Asset finance investments | J152: 3.764470209 | K152: New Investment | L152: AF | M152: AF56273 | N152: Deal data has been hidden for data security reasons…
A153: 2006 | B153: 3 | C153: Q1 | D153: 2006Q1 | E153: El Salvador | F153: El Salvador | G153: Main | H153: Small Hydro | I153: Asset finance investments | J153: 4.968205934 | K153: New Investment | L153: AF | M153: AF52575 | N153: Deal data has been hidden for data security reasons…
A154: 2006 | B154: 3 | C154: Q1 | D154: 2006Q1 | E154: India :: Gujarat | F154: India | G154: Gujarat | H154: Biomass & Waste | I154: Asset finance investments | J154: 18.92347112 | K154: New Investment | L154: AF | M154: AF11365 | N154: Deal data has been hidden for data security reasons…
A155: 2006 | B155: 3 | C155: Q1 | D155: 2006Q1 | E155: India :: Madhya Pradesh | F155: India | G155: Madhya Pradesh | H155: Wind | I155: Asset finance investments | J155: 6.968274642 | K155: New Investment | L155: AF | M155: AF52301 | N155: Deal data has been hidden for data security reasons…
A156: 2006 | B156: 3 | C156: Q1 | D156: 2006Q1 | E156: India :: Maharashtra | F156: India | G156: Maharashtra | H156: Wind | I156: Asset finance investments | J156: 3.629309709 | K156: New Investment | L156: AF | M156: AF54091 | N156: Deal data has been hidden for data security reasons…
A157: 2006 | B157: 3 | C157: Q1 | D157: 2006Q1 | E157: Guatemala | F157: Guatemala | G157: Main | H157: Geothermal | I157: Asset finance investments | J157: 14.851 | K157: Acquisitions | L157: AF | M157: AF2422 | N157: Deal data has been hidden for data security reasons…
A158: 2006 | B158: 3 | C158: Q1 | D158: 2006Q1 | E158: India :: Gujarat | F158: India | G158: Gujarat | H158: Biomass & Waste | I158: Asset finance investments | J158: 18.92347112 | K158: New Investment | L158: AF | M158: AF11368 | N158: Deal data has been hidden for data security reasons…
A159: 2006 | B159: 3 | C159: Q1 | D159: 2006Q1 | E159: India :: Madhya Pradesh | F159: India | G159: Madhya Pradesh | H159: Wind | I159: Asset finance investments | J159: 17.78361758 | K159: New Investment | L159: AF | M159: AF55697 | N159: Deal data has been hidden for data security reasons…
A160: 2006 | B160: 3 | C160: Q1 | D160: 2006Q1 | E160: Brazil | F160: Brazil | G160: Main | H160: Biofuels | I160: Asset finance investments | J160: 9.924362698 | K160: New Investment | L160: AF | M160: AF6684 | N160: Deal data has been hidden for data security reasons…
A161: 2006 | B161: 3 | C161: Q1 | D161: 2006Q1 | E161: China :: Jiangsu | F161: China | G161: Jiangsu | H161: Biomass & Waste | I161: Asset finance investments | J161: 48.39006192 | K161: New Investment | L161: AF | M161: AF3130 | N161: Deal data has been hidden for data security reasons…
A162: 2006 | B162: 3 | C162: Q1 | D162: 2006Q1 | E162: India :: Bihar | F162: India | G162: Bihar | H162: Biomass & Waste | I162: Asset finance investments | J162: 39.04636653 | K162: New Investment | L162: AF | M162: AF10917 | N162: Deal data has been hidden for data security reasons…
A163: 2006 | B163: 3 | C163: Q1 | D163: 2006Q1 | E163: India :: Maharashtra | F163: India | G163: Maharashtra | H163: Wind | I163: Asset finance investments | J163: 5.443964564 | K163: New Investment | L163: AF | M163: AF54059 | N163: Deal data has been hidden for data security reasons…
A164: 2006 | B164: 3 | C164: Q1 | D164: 2006Q1 | E164: India :: Maharashtra | F164: India | G164: Maharashtra | H164: Wind | I164: Asset finance investments | J164: 8.436267845 | K164: New Investment | L164: AF | M164: AF10166 | N164: Deal data has been hidden for data security reasons…
A165: 2006 | B165: 3 | C165: Q1 | D165: 2006Q1 | E165: India :: Maharashtra | F165: India | G165: Maharashtra | H165: Wind | I165: Asset finance investments | J165: 13.92543609 | K165: New Investment | L165: AF | M165: AF7924 | N165: Deal data has been hidden for data security reasons…
A166: 2006 | B166: 3 | C166: Q1 | D166: 2006Q1 | E166: India :: Andhra Pradesh | F166: India | G166: Andhra Pradesh | H166: Biomass & Waste | I166: Asset finance investments | J166: 18.92347112 | K166: New Investment | L166: AF | M166: AF10860 | N166: Deal data has been hidden for data security reasons…
A167: 2006 | B167: 3 | C167: Q1 | D167: 2006Q1 | E167: India :: Maharashtra | F167: India | G167: Maharashtra | H167: Wind | I167: Asset finance investments | J167: 10.88792913 | K167: New Investment | L167: AF | M167: AF10124 | N167: Deal data has been hidden for data security reasons…
A168: 2006 | B168: 3 | C168: Q1 | D168: 2006Q1 | E168: India :: Maharashtra | F168: India | G168: Maharashtra | H168: Wind | I168: Asset finance investments | J168: 10.88792913 | K168: New Investment | L168: AF | M168: AF10126 | N168: Deal data has been hidden for data security reasons…
A169: 2006 | B169: 3 | C169: Q1 | D169: 2006Q1 | E169: India :: Karnataka | F169: India | G169: Karnataka | H169: Wind | I169: Asset finance investments | J169: 3.629309709 | K169: New Investment | L169: AF | M169: AF15564 | N169: Deal data has been hidden for data security reasons…
A170: 2006 | B170: 3 | C170: Q1 | D170: 2006Q1 | E170: China :: Gansu | F170: China | G170: Gansu | H170: Small Hydro | I170: Asset finance investments | J170: 11.22132503 | K170: New Investment | L170: AF | M170: AF13875 | N170: Deal data has been hidden for data security reasons…
A171: 2006 | B171: 3 | C171: Q1 | D171: 2006Q1 | E171: India :: Punjab | F171: India | G171: Punjab | H171: Biomass & Waste | I171: Asset finance investments | J171: 21.99451791 | K171: New Investment | L171: AF | M171: AF10930 | N171: Deal data has been hidden for data security reasons…
A172: 2006 | B172: 3 | C172: Q1 | D172: 2006Q1 | E172: India :: Maharashtra | F172: India | G172: Maharashtra | H172: Wind | I172: Asset finance investments | J172: 14.07571454 | K172: New Investment | L172: AF | M172: AF5553 | N172: Deal data has been hidden for data security reasons…
A173: 2006 | B173: 3 | C173: Q1 | D173: 2006Q1 | E173: China :: Shandong | F173: China | G173: Shandong | H173: Biofuels | I173: Asset finance investments | J173: 20.23572939 | K173: New Investment | L173: AF | M173: AF43984 | N173: Deal data has been hidden for data security reasons…
A174: 2006 | B174: 3 | C174: Q1 | D174: 2006Q1 | E174: Brazil | F174: Brazil | G174: Main | H174: Wind | I174: Asset finance investments | J174: 96.84404074 | K174: New Investment | L174: AF | M174: AF570 | N174: Deal data has been hidden for data security reasons…
A175: 2006 | B175: 3 | C175: Q1 | D175: 2006Q1 | E175: Brazil | F175: Brazil | G175: Main | H175: Biofuels | I175: Asset finance investments | J175: 37.53051833 | K175: New Investment | L175: AF | M175: AF7912 | N175: Deal data has been hidden for data security reasons…
A176: 2006 | B176: 3 | C176: Q1 | D176: 2006Q1 | E176: China :: Inner Mongolia | F176: China | G176: Inner Mongolia | H176: Wind | I176: Asset finance investments | J176: 59.48413584 | K176: New Investment | L176: AF | M176: AF7508 | N176: Deal data has been hidden for data security reasons…
A177: 2006 | B177: 3 | C177: Q1 | D177: 2006Q1 | E177: Costa Rica | F177: Costa Rica | G177: Main | H177: Small Hydro | I177: Asset finance investments | J177: 43.47180192 | K177: New Investment | L177: AF | M177: AF57287 | N177: Deal data has been hidden for data security reasons…
A178: 2006 | B178: 3 | C178: Q1 | D178: 2006Q1 | E178: India :: Rajasthan | F178: India | G178: Rajasthan | H178: Wind | I178: Asset finance investments | J178: 11.22813311 | K178: New Investment | L178: AF | M178: AF10072 | N178: Deal data has been hidden for data security reasons…
A179: 2006 | B179: 3 | C179: Q1 | D179: 2006Q1 | E179: India :: Maharashtra | F179: India | G179: Maharashtra | H179: Wind | I179: Asset finance investments | J179: 12.70258398 | K179: New Investment | L179: AF | M179: AF10117 | N179: Deal data has been hidden for data security reasons…
A180: 2006 | B180: 3 | C180: Q1 | D180: 2006Q1 | E180: India :: Karnataka | F180: India | G180: Karnataka | H180: Wind | I180: Asset finance investments | J180: 1.74206866 | K180: New Investment | L180: AF | M180: AF12953 | N180: Deal data has been hidden for data security reasons…
A181: 2006 | B181: 3 | C181: Q1 | D181: 2006Q1 | E181: India :: Maharashtra | F181: India | G181: Maharashtra | H181: Wind | I181: Asset finance investments | J181: 3.629309709 | K181: New Investment | L181: AF | M181: AF13162 | N181: Deal data has been hidden for data security reasons…
A182: 2006 | B182: 3 | C182: Q1 | D182: 2006Q1 | E182: India :: Maharashtra | F182: India | G182: Maharashtra | H182: Wind | I182: Asset finance investments | J182: 5.443964564 | K182: New Investment | L182: AF | M182: AF13191 | N182: Deal data has been hidden for data security reasons…
A183: 2006 | B183: 3 | C183: Q1 | D183: 2006Q1 | E183: India :: Tamil Nadu | F183: India | G183: Tamil Nadu | H183: Wind | I183: Asset finance investments | J183: 23.59051311 | K183: New Investment | L183: AF | M183: AF17344 | N183: Deal data has been hidden for data security reasons…
A184: 2006 | B184: 3 | C184: Q1 | D184: 2006Q1 | E184: India :: Tamil Nadu | F184: India | G184: Tamil Nadu | H184: Wind | I184: Asset finance investments | J184: 3.266378738 | K184: New Investment | L184: AF | M184: AF19088 | N184: Deal data has been hidden for data security reasons…
A185: 2006 | B185: 3 | C185: Q1 | D185: 2006Q1 | E185: India :: Maharashtra | F185: India | G185: Maharashtra | H185: Wind | I185: Asset finance investments | J185: 12.41223921 | K185: New Investment | L185: AF | M185: AF52295 | N185: Deal data has been hidden for data security reasons…
A186: 2006 | B186: 3 | C186: Q1 | D186: 2006Q1 | E186: India :: Gujarat | F186: India | G186: Gujarat | H186: Wind | I186: Asset finance investments | J186: 10.08948099 | K186: New Investment | L186: AF | M186: AF52305 | N186: Deal data has been hidden for data security reasons…
A187: 2006 | B187: 3 | C187: Q1 | D187: 2006Q1 | E187: India :: Karnataka | F187: India | G187: Karnataka | H187: Wind | I187: Asset finance investments | J187: 6.097240312 | K187: New Investment | L187: AF | M187: AF53609 | N187: Deal data has been hidden for data security reasons…
A188: 2006 | B188: 3 | C188: Q1 | D188: 2006Q1 | E188: India :: Maharashtra | F188: India | G188: Maharashtra | H188: Wind | I188: Asset finance investments | J188: 7.258619419 | K188: New Investment | L188: AF | M188: AF53651 | N188: Deal data has been hidden for data security reasons…
A189: 2006 | B189: 3 | C189: Q1 | D189: 2006Q1 | E189: India :: Maharashtra | F189: India | G189: Maharashtra | H189: Wind | I189: Asset finance investments | J189: 5.443964564 | K189: New Investment | L189: AF | M189: AF55439 | N189: Deal data has been hidden for data security reasons…
A190: 2006 | B190: 3 | C190: Q1 | D190: 2006Q1 | E190: India :: Tamil Nadu | F190: India | G190: Tamil Nadu | H190: Wind | I190: Asset finance investments | J190: 16.76741086 | K190: New Investment | L190: AF | M190: AF55847 | N190: Deal data has been hidden for data security reasons…
A191: 2006 | B191: 3 | C191: Q1 | D191: 2006Q1 | E191: India :: Tamil Nadu | F191: India | G191: Tamil Nadu | H191: Wind | I191: Asset finance investments | J191: 7.403791807 | K191: New Investment | L191: AF | M191: AF55915 | N191: Deal data has been hidden for data security reasons…
A192: 2006 | B192: 3 | C192: Q1 | D192: 2006Q1 | E192: India :: Tamil Nadu | F192: India | G192: Tamil Nadu | H192: Wind | I192: Asset finance investments | J192: 3.629309709 | K192: New Investment | L192: AF | M192: AF55923 | N192: Deal data has been hidden for data security reasons…
A193: 2006 | B193: 3 | C193: Q1 | D193: 2006Q1 | E193: India :: Tamil Nadu | F193: India | G193: Tamil Nadu | H193: Wind | I193: Asset finance investments | J193: 11.97672204 | K193: New Investment | L193: AF | M193: AF55925 | N193: Deal data has been hidden for data security reasons…
A194: 2006 | B194: 3 | C194: Q1 | D194: 2006Q1 | E194: India :: Tamil Nadu | F194: India | G194: Tamil Nadu | H194: Wind | I194: Asset finance investments | J194: 2.177585826 | K194: New Investment | L194: AF | M194: AF56081 | N194: Deal data has been hidden for data security reasons…
